Workbook

Sheet Votos
A1: DataEleicao | B1: TipoEleicao | C1: Freguesia | D1: Local | E1: Mesa | F1: Inscritos | G1: Votantes | H1: Expressos | I1: Brancos | J1: Nulos | K1: Abstencao | L1: TipoEleicaoID | M1: EleicaoID | N1: FreguesiaID | O1: LocalID | P1: MesaID | Q1: Apurado | R1: Seccao | S1: L | T1: MPT | U1: PCTP/MRPP | V1: R.I.R. | W1: B.E. | X1: NC | Y1: E | Z1: A | AA1: ADN | AB1: PCP-PEV | AC1: PPD/PSD | AD1: PS | AE1: JPP | AF1: PAN | AG1: IL | AH1: PTP | AI1: VP | AJ1: CDS-PP | AK1: MAS | AL1: CH
A2: 2022-01-30 | B2: Legislativas | C2: Barcarena | D2: CERCI Oeiras | E2: BARC_01 | F2: 755 | G2: 533 | H2: 523 | I2: 7 | J2: 3 | K2: 222 | L2: 5 | M2: 36 | N2: 14 | O2: 162 | P2: 1036 | Q2: 1 | R2: 1 | S2: 19 | T2: 0 | U2: 0 | V2: 0 | W2: 40 | X2: 1 | Y2: 0 | Z2: 0 | AA2: 1 | AB2: 25 | AC2: 143 | AD2: 176 | AE2: 0 | AF2: 12 | AG2: 72 | AH2: 0 | AI2: 1 | AJ2: 6 | AK2: 1 | AL2: 26
A3: 2022-01-30 | B3: Legislativas | C3: Barcarena | D3: CERCI Oeiras | E3: BARC_02 | F3: 756 | G3: 531 | H3: 524 | I3: 4 | J3: 3 | K3: 225 | L3: 5 | M3: 36 | N3: 14 | O3: 162 | P3: 1037 | Q3: 1 | R3: 2 | S3: 15 | T3: 1 | U3: 3 | V3: 2 | W3: 25 | X3: 0 | Y3: 0 | Z3: 0 | AA3: 0 | AB3: 21 | AC3: 152 | AD3: 202 | AE3: 1 | AF3: 17 | AG3: 41 | AH3: 0 | AI3: 0 | AJ3: 6 | AK3: 0 | AL3: 38
A4: 2022-01-30 | B4: Legislativas | C4: Barcarena | D4: CERCI Oeiras | E4: BARC_03 | F4: 749 | G4: 518 | H4: 508 | I4: 9 | J4: 1 | K4: 231 | L4: 5 | M4: 36 | N4: 14 | O4: 162 | P4: 1038 | Q4: 1 | R4: 3 | S4: 17 | T4: 1 | U4: 1 | V4: 1 | W4: 20 | X4: 0 | Y4: 0 | Z4: 0 | AA4: 2 | AB4: 12 | AC4: 138 | AD4: 178 | AE4: 0 | AF4: 18 | AG4: 77 | AH4: 0 | AI4: 1 | AJ4: 5 | AK4: 1 | AL4: 36
A5: 2022-01-30 | B5: Legislativas | C5: Barcarena | D5: EB1 Visconde de Leceia | E5: BARC_04 | F5: 641 | G5: 444 | H5: 432 | I5: 7 | J5: 5 | K5: 197 | L5: 5 | M5: 36 | N5: 14 | O5: 163 | P5: 1039 | Q5: 1 | R5: 4 | S5: 10 | T5: 0 | U5: 2 | V5: 1 | W5: 15 | X5: 0 | Y5: 1 | Z5: 1 | AA5: 4 | AB5: 21 | AC5: 131 | AD5: 140 | AE5: 0 | AF5: 10 | AG5: 56 | AH5: 0 | AI5: 0 | AJ5: 7 | AK5: 1 | AL5: 32
A6: 2022-01-30 | B6: Legislativas | C6: Barcarena | D6: EB1 Visconde de Leceia | E6: BARC_05 | F6: 639 | G6: 468 | H6: 459 | I6: 7 | J6: 2 | K6: 171 | L6: 5 | M6: 36 | N6: 14 | O6: 163 | P6: 1040 | Q6: 1 | R6: 5 | S6: 10 | T6: 0 | U6: 2 | V6: 1 | W6: 10 | X6: 1 | Y6: 0 | Z6: 1 | AA6: 1 | AB6: 26 | AC6: 141 | AD6: 169 | AE6: 0 | AF6: 12 | AG6: 41 | AH6: 0 | AI6: 0 | AJ6: 11 | AK6: 0 | AL6: 33
A7: 2022-01-30 | B7: Legislativas | C7: Barcarena | D7: EB1 Visconde de Leceia | E7: BARC_06 | F7: 659 | G7: 466 | H7: 456 | I7: 9 | J7: 1 | K7: 193 | L7: 5 | M7: 36 | N7: 14 | O7: 163 | P7: 1041 | Q7: 1 | R7: 6 | S7: 11 | T7: 0 | U7: 1 | V7: 1 | W7: 14 | X7: 0 | Y7: 1 | Z7: 0 | AA7: 2 | AB7: 25 | AC7: 124 | AD7: 162 | AE7: 0 | AF7: 9 | AG7: 67 | AH7: 0 | AI7: 0 | AJ7: 5 | AK7: 0 | AL7: 34
A8: 2022-01-30 | B8: Legislativas | C8: Barcarena | D8: EB1 Jorge Mineiro - Queluz de Baixo | E8: BARC_07 | F8: 764 | G8: 527 | H8: 516 | I8: 6 | J8: 5 | K8: 237 | L8: 5 | M8: 36 | N8: 14 | O8: 164 | P8: 1042 | Q8: 1 | R8: 7 | S8: 8 | T8: 1 | U8: 3 | V8: 2 | W8: 38 | X8: 1 | Y8: 0 | Z8: 0 | AA8: 0 | AB8: 24 | AC8: 123 | AD8: 222 | AE8: 1 | AF8: 10 | AG8: 32 | AH8: 0 | AI8: 1 | AJ8: 6 | AK8: 1 | AL8: 43
A9: 2022-01-30 | B9: Legislativas | C9: Barcarena | D9: EB1 Jorge Mineiro - Queluz de Baixo | E9: BARC_08 | F9: 758 | G9: 496 | H9: 486 | I9: 9 | J9: 1 | K9: 262 | L9: 5 | M9: 36 | N9: 14 | O9: 164 | P9: 1043 | Q9: 1 | R9: 8 | S9: 5 | T9: 3 | U9: 2 | V9: 1 | W9: 23 | X9: 0 | Y9: 0 | Z9: 0 | AA9: 0 | AB9: 26 | AC9: 121 | AD9: 215 | AE9: 0 | AF9: 11 | AG9: 31 | AH9: 0 | AI9: 0 | AJ9: 5 | AK9: 1 | AL9: 42
A10: 2022-01-30 | B10: Legislativas | C10: Barcarena | D10: EB1 Jorge Mineiro - Queluz de Baixo | E10: BARC_09 | F10: 758 | G10: 493 | H10: 488 | I10: 3 | J10: 2 | K10: 265 | L10: 5 | M10: 36 | N10: 14 | O10: 164 | P10: 1044 | Q10: 1 | R10: 9 | S10: 2 | T10: 0 | U10: 2 | V10: 0 | W10: 24 | X10: 0 | Y10: 0 | Z10: 0 | AA10: 1 | AB10: 26 | AC10: 99 | AD10: 279 | AE10: 0 | AF10: 8 | AG10: 20 | AH10: 0 | AI10: 0 | AJ10: 6 | AK10: 0 | AL10: 21
A11: 2022-01-30 | B11: Legislativas | C11: Barcarena | D11: EB1 Jorge Mineiro - Queluz de Baixo | E11: BARC_10 | F11: 766 | G11: 486 | H11: 476 | I11: 7 | J11: 3 | K11: 280 | L11: 5 | M11: 36 | N11: 14 | O11: 164 | P11: 1045 | Q11: 1 | R11: 10 | S11: 14 | T11: 2 | U11: 2 | V11: 4 | W11: 35 | X11: 0 | Y11: 0 | Z11: 1 | AA11: 1 | AB11: 22 | AC11: 93 | AD11: 192 | AE11: 0 | AF11: 16 | AG11: 41 | AH11: 0 | AI11: 1 | AJ11: 4 | AK11: 2 | AL11: 46
A12: 2022-01-30 | B12: Legislativas | C12: Barcarena | D12: EB1 Santo António de Tercena | E12: BARC_11 | F12: 764 | G12: 556 | H12: 545 | I12: 7 | J12: 4 | K12: 208 | L12: 5 | M12: 36 | N12: 14 | O12: 165 | P12: 1046 | Q12: 1 | R12: 11 | S12: 8 | T12: 1 | U12: 2 | V12: 2 | W12: 33 | X12: 1 | Y12: 1 | Z12: 1 | AA12: 2 | AB12: 29 | AC12: 127 | AD12: 225 | AE12: 0 | AF12: 19 | AG12: 43 | AH12: 0 | AI12: 1 | AJ12: 9 | AK12: 1 | AL12: 40
A13: 2022-01-30 | B13: Legislativas | C13: Barcarena | D13: EB1 Santo António de Tercena | E13: BARC_12 | F13: 763 | G13: 522 | H13: 522 | I13: 0 | J13: 0 | K13: 241 | L13: 5 | M13: 36 | N13: 14 | O13: 165 | P13: 1047 | Q13: 1 | R13: 12 | S13: 10 | T13: 1 | U13: 4 | V13: 1 | W13: 29 | X13: 2 | Y13: 0 | Z13: 1 | AA13: 1 | AB13: 30 | AC13: 111 | AD13: 225 | AE13: 0 | AF13: 15 | AG13: 46 | AH13: 0 | AI13: 0 | AJ13: 6 | AK13: 0 | AL13: 40
A14: 2022-01-30 | B14: Legislativas | C14: Barcarena | D14: EB1 Santo António de Tercena | E14: BARC_13 | F14: 770 | G14: 542 | H14: 526 | I14: 10 | J14: 6 | K14: 228 | L14: 5 | M14: 36 | N14: 14 | O14: 165 | P14: 1048 | Q14: 1 | R14: 13 | S14: 10 | T14: 1 | U14: 2 | V14: 2 | W14: 31 | X14: 0 | Y14: 1 | Z14: 1 | AA14: 0 | AB14: 38 | AC14: 121 | AD14: 214 | AE14: 0 | AF14: 12 | AG14: 36 | AH14: 0 | AI14: 0 | AJ14: 10 | AK14: 1 | AL14: 46
A15: 2022-01-30 | B15: Legislativas | C15: Barcarena | D15: EB1 Santo António de Tercena | E15: BARC_14 | F15: 774 | G15: 531 | H15: 518 | I15: 7 | J15: 6 | K15: 243 | L15: 5 | M15: 36 | N15: 14 | O15: 165 | P15: 1049 | Q15: 1 | R15: 14 | S15: 12 | T15: 0 | U15: 6 | V15: 1 | W15: 20 | X15: 0 | Y15: 0 | Z15: 0 | AA15: 0 | AB15: 25 | AC15: 149 | AD15: 221 | AE15: 0 | AF15: 12 | AG15: 33 | AH15: 0 | AI15: 0 | AJ15: 13 | AK15: 1 | AL15: 25
A16: 2022-01-30 | B16: Legislativas | C16: Barcarena | D16: EB1 Santo António de Tercena | E16: BARC_15 | F16: 768 | G16: 534 | H16: 522 | I16: 7 | J16: 5 | K16: 234 | L16: 5 | M16: 36 | N16: 14 | O16: 165 | P16: 1050 | Q16: 1 | R16: 15 | S16: 17 | T16: 1 | U16: 1 | V16: 2 | W16: 27 | X16: 2 | Y16: 0 | Z16: 0 | AA16: 2 | AB16: 30 | AC16: 108 | AD16: 184 | AE16: 0 | AF16: 21 | AG16: 66 | AH16: 0 | AI16: 2 | AJ16: 4 | AK16: 1 | AL16: 54
A17: 2022-01-30 | B17: Legislativas | C17: Barcarena | D17: EB1/JI de São Bento - Valejas | E17: BARC_16 | F17: 501 | G17: 347 | H17: 344 | I17: 2 | J17: 1 | K17: 154 | L17: 5 | M17: 36 | N17: 14 | O17: 166 | P17: 1051 | Q17: 1 | R17: 16 | S17: 6 | T17: 1 | U17: 0 | V17: 0 | W17: 17 | X17: 0 | Y17: 0 | Z17: 0 | AA17: 0 | AB17: 15 | AC17: 82 | AD17: 145 | AE17: 1 | AF17: 13 | AG17: 31 | AH17: 1 | AI17: 0 | AJ17: 5 | AK17: 0 | AL17: 27
A18: 2022-01-30 | B18: Legislativas | C18: Barcarena | D18: EB1/JI de São Bento - Valejas | E18: BARC_17 | F18: 498 | G18: 355 | H18: 346 | I18: 3 | J18: 6 | K18: 143 | L18: 5 | M18: 36 | N18: 14 | O18: 166 | P18: 1052 | Q18: 1 | R18: 17 | S18: 10 | T18: 0 | U18: 3 | V18: 2 | W18: 14 | X18: 1 | Y18: 2 | Z18: 1 | AA18: 0 | AB18: 20 | AC18: 59 | AD18: 167 | AE18: 1 | AF18: 9 | AG18: 28 | AH18: 0 | AI18: 0 | AJ18: 4 | AK18: 1 | AL18: 24
A19: 2022-01-30 | B19: Legislativas | C19: Porto Salvo | D19: EB1/JI de Porto Salvo | E19: PSALVO_01 | F19: 730 | G19: 455 | H19: 443 | I19: 5 | J19: 7 | K19: 275 | L19: 5 | M19: 36 | N19: 15 | O19: 167 | P19: 1053 | Q19: 1 | R19: 1 | S19: 12 | T19: 2 | U19: 4 | V19: 0 | W19: 22 | X19: 1 | Y19: 0 | Z19: 0 | AA19: 2 | AB19: 29 | AC19: 89 | AD19: 219 | AE19: 1 | AF19: 8 | AG19: 24 | AH19: 0 | AI19: 0 | AJ19: 4 | AK19: 0 | AL19: 26
A20: 2022-01-30 | B20: Legislativas | C20: Porto Salvo | D20: EB1/JI de Porto Salvo | E20: PSALVO_02 | F20: 728 | G20: 416 | H20: 402 | I20: 8 | J20: 6 | K20: 312 | L20: 5 | M20: 36 | N20: 15 | O20: 167 | P20: 1054 | Q20: 1 | R20: 2 | S20: 12 | T20: 0 | U20: 2 | V20: 2 | W20: 14 | X20: 0 | Y20: 0 | Z20: 1 | AA20: 2 | AB20: 13 | AC20: 85 | AD20: 188 | AE20: 1 | AF20: 12 | AG20: 24 | AH20: 0 | AI20: 1 | AJ20: 10 | AK20: 0 | AL20: 35
A21: 2022-01-30 | B21: Legislativas | C21: Porto Salvo | D21: EB1/JI de Porto Salvo | E21: PSALVO_03 | F21: 728 | G21: 420 | H21: 414 | I21: 3 | J21: 3 | K21: 308 | L21: 5 | M21: 36 | N21: 15 | O21: 167 | P21: 1055 | Q21: 1 | R21: 3 | S21: 8 | T21: 0 | U21: 2 | V21: 1 | W21: 22 | X21: 0 | Y21: 0 | Z21: 1 | AA21: 0 | AB21: 25 | AC21: 87 | AD21: 208 | AE21: 0 | AF21: 6 | AG21: 21 | AH21: 0 | AI21: 0 | AJ21: 3 | AK21: 1 | AL21: 29
A22: 2022-01-30 | B22: Legislativas | C22: Porto Salvo | D22: EB1/JI de Porto Salvo | E22: PSALVO_04 | F22: 723 | G22: 449 | H22: 443 | I22: 3 | J22: 3 | K22: 274 | L22: 5 | M22: 36 | N22: 15 | O22: 167 | P22: 1056 | Q22: 1 | R22: 4 | S22: 6 | T22: 0 | U22: 1 | V22: 2 | W22: 18 | X22: 0 | Y22: 0 | Z22: 2 | AA22: 1 | AB22: 26 | AC22: 95 | AD22: 236 | AE22: 1 | AF22: 10 | AG22: 23 | AH22: 0 | AI22: 0 | AJ22: 5 | AK22: 0 | AL22: 17
A23: 2022-01-30 | B23: Legislativas | C23: Porto Salvo | D23: EB1/JI de Porto Salvo | E23: PSALVO_05 | F23: 728 | G23: 396 | H23: 383 | I23: 7 | J23: 6 | K23: 332 | L23: 5 | M23: 36 | N23: 15 | O23: 167 | P23: 1057 | Q23: 1 | R23: 5 | S23: 10 | T23: 2 | U23: 1 | V23: 1 | W23: 25 | X23: 1 | Y23: 1 | Z23: 0 | AA23: 0 | AB23: 19 | AC23: 82 | AD23: 160 | AE23: 0 | AF23: 10 | AG23: 34 | AH23: 0 | AI23: 1 | AJ23: 5 | AK23: 0 | AL23: 31
A24: 2022-01-30 | B24: Legislativas | C24: Porto Salvo | D24: Pavilhão Leões de Porto Salvo | E24: PSALVO_06 | F24: 712 | G24: 448 | H24: 434 | I24: 9 | J24: 5 | K24: 264 | L24: 5 | M24: 36 | N24: 15 | O24: 168 | P24: 1058 | Q24: 1 | R24: 6 | S24: 4 | T24: 0 | U24: 2 | V24: 4 | W24: 20 | X24: 0 | Y24: 0 | Z24: 1 | AA24: 2 | AB24: 10 | AC24: 81 | AD24: 240 | AE24: 1 | AF24: 10 | AG24: 26 | AH24: 0 | AI24: 0 | AJ24: 9 | AK24: 0 | AL24: 24
A25: 2022-01-30 | B25: Legislativas | C25: Porto Salvo | D25: Pavilhão Leões de Porto Salvo | E25: PSALVO_07 | F25: 718 | G25: 446 | H25: 435 | I25: 8 | J25: 3 | K25: 272 | L25: 5 | M25: 36 | N25: 15 | O25: 168 | P25: 1059 | Q25: 1 | R25: 7 | S25: 11 | T25: 1 | U25: 0 | V25: 0 | W25: 29 | X25: 1 | Y25: 1 | Z25: 0 | AA25: 0 | AB25: 14 | AC25: 82 | AD25: 222 | AE25: 0 | AF25: 13 | AG25: 28 | AH25: 0 | AI25: 0 | AJ25: 7 | AK25: 1 | AL25: 25
A26: 2022-01-30 | B26: Legislativas | C26: Porto Salvo | D26: Pavilhão Leões de Porto Salvo | E26: PSALVO_08 | F26: 718 | G26: 407 | H26: 394 | I26: 5 | J26: 8 | K26: 311 | L26: 5 | M26: 36 | N26: 15 | O26: 168 | P26: 1060 | Q26: 1 | R26: 8 | S26: 10 | T26: 0 | U26: 1 | V26: 0 | W26: 25 | X26: 0 | Y26: 0 | Z26: 1 | AA26: 0 | AB26: 15 | AC26: 73 | AD26: 183 | AE26: 1 | AF26: 12 | AG26: 36 | AH26: 0 | AI26: 0 | AJ26: 5 | AK26: 0 | AL26: 32
A27: 2022-01-30 | B27: Legislativas | C27: Porto Salvo | D27: Pavilhão Leões de Porto Salvo | E27: PSALVO_09 | F27: 715 | G27: 430 | H27: 421 | I27: 4 | J27: 5 | K27: 285 | L27: 5 | M27: 36 | N27: 15 | O27: 168 | P27: 1061 | Q27: 1 | R27: 9 | S27: 8 | T27: 1 | U27: 0 | V27: 0 | W27: 22 | X27: 0 | Y27: 0 | Z27: 0 | AA27: 0 | AB27: 24 | AC27: 84 | AD27: 204 | AE27: 0 | AF27: 1 | AG27: 28 | AH27: 0 | AI27: 0 | AJ27: 4 | AK27: 0 | AL27: 45
A28: 2022-01-30 | B28: Legislativas | C28: Porto Salvo | D28: Pavilhão Leões de Porto Salvo | E28: PSALVO_10 | F28: 708 | G28: 435 | H28: 425 | I28: 5 | J28: 5 | K28: 273 | L28: 5 | M28: 36 | N28: 15 | O28: 168 | P28: 1062 | Q28: 1 | R28: 10 | S28: 5 | T28: 0 | U28: 1 | V28: 1 | W28: 19 | X28: 0 | Y28: 0 | Z28: 0 | AA28: 1 | AB28: 16 | AC28: 91 | AD28: 249 | AE28: 1 | AF28: 3 | AG28: 18 | AH28: 0 | AI28: 1 | AJ28: 3 | AK28: 2 | AL28: 14
A29: 2022-01-30 | B29: Legislativas | C29: Porto Salvo | D29: Pavilhão Leões de Porto Salvo | E29: PSALVO_11 | F29: 709 | G29: 441 | H29: 429 | I29: 9 | J29: 3 | K29: 268 | L29: 5 | M29: 36 | N29: 15 | O29: 168 | P29: 1063 | Q29: 1 | R29: 11 | S29: 9 | T29: 1 | U29: 2 | V29: 3 | W29: 28 | X29: 0 | Y29: 3 | Z29: 0 | AA29: 1 | AB29: 10 | AC29: 97 | AD29: 180 | AE29: 0 | AF29: 19 | AG29: 38 | AH29: 0 | AI29: 0 | AJ29: 7 | AK29: 3 | AL29: 28
A30: 2022-01-30 | B30: Legislativas | C30: Porto Salvo | D30: Pavilhão Leões de Porto Salvo | E30: PSALVO_12 | F30: 719 | G30: 366 | H30: 357 | I30: 7 | J30: 2 | K30: 353 | L30: 5 | M30: 36 | N30: 15 | O30: 168 | P30: 1064 | Q30: 1 | R30: 12 | S30: 11 | T30: 0 | U30: 2 | V30: 1 | W30: 17 | X30: 0 | Y30: 0 | Z30: 1 | AA30: 1 | AB30: 12 | AC30: 63 | AD30: 164 | AE30: 0 | AF30: 14 | AG30: 35 | AH30: 0 | AI30: 0 | AJ30: 4 | AK30: 0 | AL30: 32
A31: 2022-01-30 | B31: Legislativas | C31: Porto Salvo | D31: EB 2,3/S Aquilino Ribeiro | E31: PSALVO_13 | F31: 646 | G31: 500 | H31: 489 | I31: 10 | J31: 1 | K31: 146 | L31: 5 | M31: 36 | N31: 15 | O31: 169 | P31: 1065 | Q31: 1 | R31: 13 | S31: 17 | T31: 2 | U31: 0 | V31: 4 | W31: 31 | X31: 0 | Y31: 0 | Z31: 0 | AA31: 1 | AB31: 16 | AC31: 143 | AD31: 154 | AE31: 1 | AF31: 14 | AG31: 59 | AH31: 0 | AI31: 0 | AJ31: 6 | AK31: 0 | AL31: 41
A32: 2022-01-30 | B32: Legislativas | C32: Porto Salvo | D32: EB 2,3/S Aquilino Ribeiro | E32: PSALVO_14 | F32: 637 | G32: 472 | H32: 464 | I32: 7 | J32: 1 | K32: 165 | L32: 5 | M32: 36 | N32: 15 | O32: 169 | P32: 1066 | Q32: 1 | R32: 14 | S32: 9 | T32: 0 | U32: 1 | V32: 1 | W32: 22 | X32: 0 | Y32: 0 | Z32: 0 | AA32: 3 | AB32: 14 | AC32: 127 | AD32: 165 | AE32: 0 | AF32: 15 | AG32: 57 | AH32: 0 | AI32: 2 | AJ32: 9 | AK32: 1 | AL32: 38
A33: 2022-01-30 | B33: Legislativas | C33: Porto Salvo | D33: EB 2,3/S Aquilino Ribeiro | E33: PSALVO_15 | F33: 640 | G33: 491 | H33: 480 | I33: 10 | J33: 1 | K33: 149 | L33: 5 | M33: 36 | N33: 15 | O33: 169 | P33: 1067 | Q33: 1 | R33: 15 | S33: 18 | T33: 1 | U33: 0 | V33: 2 | W33: 22 | X33: 1 | Y33: 0 | Z33: 0 | AA33: 4 | AB33: 11 | AC33: 132 | AD33: 152 | AE33: 1 | AF33: 15 | AG33: 81 | AH33: 1 | AI33: 1 | AJ33: 4 | AK33: 0 | AL33: 34
A34: 2022-01-30 | B34: Legislativas | C34: Porto Salvo | D34: Grupo Cultural de Vila Fria | E34: PSALVO_16 | F34: 547 | G34: 411 | H34: 400 | I34: 8 | J34: 3 | K34: 136 | L34: 5 | M34: 36 | N34: 15 | O34: 170 | P34: 1068 | Q34: 1 | R34: 16 | S34: 12 | T34: 2 | U34: 0 | V34: 2 | W34: 30 | X34: 1 | Y34: 0 | Z34: 0 | AA34: 3 | AB34: 21 | AC34: 91 | AD34: 151 | AE34: 0 | AF34: 12 | AG34: 37 | AH34: 0 | AI34: 1 | AJ34: 6 | AK34: 1 | AL34: 30
A35: 2022-01-30 | B35: Legislativas | C35: Porto Salvo | D35: Grupo Cultural de Vila Fria | E35: PSALVO_17 | F35: 553 | G35: 388 | H35: 376 | I35: 8 | J35: 4 | K35: 165 | L35: 5 | M35: 36 | N35: 15 | O35: 170 | P35: 1069 | Q35: 1 | R35: 17 | S35: 9 | T35: 0 | U35: 1 | V35: 0 | W35: 19 | X35: 0 | Y35: 0 | Z35: 1 | AA35: 4 | AB35: 20 | AC35: 92 | AD35: 161 | AE35: 0 | AF35: 10 | AG35: 30 | AH35: 1 | AI35: 0 | AJ35: 4 | AK35: 0 | AL35: 24
A36: 2022-01-30 | B36: Legislativas | C36: Porto Salvo | D36: Centro Cultural da Lage | E36: PSALVO_18 | F36: 468 | G36: 256 | H36: 249 | I36: 1 | J36: 6 | K36: 212 | L36: 5 | M36: 36 | N36: 15 | O36: 171 | P36: 1070 | Q36: 1 | R36: 18 | S36: 2 | T36: 0 | U36: 1 | V36: 0 | W36: 11 | X36: 0 | Y36: 0 | Z36: 2 | AA36: 0 | AB36: 8 | AC36: 22 | AD36: 164 | AE36: 0 | AF36: 6 | AG36: 7 | AH36: 0 | AI36: 0 | AJ36: 1 | AK36: 0 | AL36: 25
A37: 2022-01-30 | B37: Legislativas | C37: Porto Salvo | D37: Centro Cultural da Lage | E37: PSALVO_19 | F37: 464 | G37: 257 | H37: 252 | I37: 0 | J37: 5 | K37: 207 | L37: 5 | M37: 36 | N37: 15 | O37: 171 | P37: 1071 | Q37: 1 | R37: 19 | S37: 3 | T37: 0 | U37: 4 | V37: 1 | W37: 6 | X37: 0 | Y37: 0 | Z37: 1 | AA37: 3 | AB37: 12 | AC37: 28 | AD37: 166 | AE37: 1 | AF37: 2 | AG37: 13 | AH37: 1 | AI37: 0 | AJ37: 1 | AK37: 1 | AL37: 9
A38: 2022-01-30 | B38: Legislativas | C38: União das Freguesias de Algés, Linda-a-Velha e Cruz Quebrada-Dafundo | D38: Escola Secundária de Miraflores | E38: UFALCQD_01 | F38: 951 | G38: 654 | H38: 646 | I38: 7 | J38: 1 | K38: 297 | L38: 5 | M38: 36 | N38: 11 | O38: 172 | P38: 1072 | Q38: 1 | R38: 1 | S38: 18 | T38: 1 | U38: 0 | V38: 0 | W38: 37 | X38: 0 | Y38: 0 | Z38: 0 | AA38: 3 | AB38: 32 | AC38: 181 | AD38: 253 | AE38: 0 | AF38: 20 | AG38: 67 | AH38: 0 | AI38: 0 | AJ38: 15 | AK38: 0 | AL38: 19
A39: 2022-01-30 | B39: Legislativas | C39: União das Freguesias de Algés, Linda-a-Velha e Cruz Quebrada-Dafundo | D39: Escola Secundária de Miraflores | E39: UFALCQD_02 | F39: 956 | G39: 620 | H39: 615 | I39: 1 | J39: 4 | K39: 336 | L39: 5 | M39: 36 | N39: 11 | O39: 172 | P39: 1073 | Q39: 1 | R39: 2 | S39: 31 | T39: 2 | U39: 0 | V39: 0 | W39: 35 | X39: 0 | Y39: 0 | Z39: 1 | AA39: 0 | AB39: 36 | AC39: 171 | AD39: 213 | AE39: 0 | AF39: 17 | AG39: 59 | AH39: 0 | AI39: 0 | AJ39: 11 | AK39: 0 | AL39: 39
A40: 2022-01-30 | B40: Legislativas | C40: União das Freguesias de Algés, Linda-a-Velha e Cruz Quebrada-Dafundo | D40: Escola Secundária de Miraflores | E40: UFALCQD_03 | F40: 956 | G40: 608 | H40: 607 | I40: 1 | J40: 0 | K40: 348 | L40: 5 | M40: 36 | N40: 11 | O40: 172 | P40: 1074 | Q40: 1 | R40: 3 | S40: 26 | T40: 1 | U40: 3 | V40: 0 | W40: 30 | X40: 0 | Y40: 0 | Z40: 1 | AA40: 3 | AB40: 31 | AC40: 163 | AD40: 219 | AE40: 0 | AF40: 15 | AG40: 64 | AH40: 0 | AI40: 0 | AJ40: 11 | AK40: 1 | AL40: 39
A41: 2022-01-30 | B41: Legislativas | C41: União das Freguesias de Algés, Linda-a-Velha e Cruz Quebrada-Dafundo | D41: Escola Secundária de Miraflores | E41: UFALCQD_04 | F41: 960 | G41: 584 | H41: 572 | I41: 5 | J41: 7 | K41: 376 | L41: 5 | M41: 36 | N41: 11 | O41: 172 | P41: 1075 | Q41: 1 | R41: 4 | S41: 24 | T41: 2 | U41: 4 | V41: 0 | W41: 33 | X41: 0 | Y41: 0 | Z41: 1 | AA41: 2 | AB41: 27 | AC41: 154 | AD41: 203 | AE41: 0 | AF41: 6 | AG41: 76 | AH41: 1 | AI41: 0 | AJ41: 10 | AK41: 0 | AL41: 29
A42: 2022-01-30 | B42: Legislativas | C42: União das Freguesias de Algés, Linda-a-Velha e Cruz Quebrada-Dafundo | D42: Escola Secundária de Miraflores | E42: UFALCQD_05 | F42: 946 | G42: 613 | H42: 601 | I42: 8 | J42: 4 | K42: 333 | L42: 5 | M42: 36 | N42: 11 | O42: 172 | P42: 1076 | Q42: 1 | R42: 5 | S42: 33 | T42: 0 | U42: 2 | V42: 1 | W42: 39 | X42: 1 | Y42: 0 | Z42: 0 | AA42: 4 | AB42: 26 | AC42: 166 | AD42: 187 | AE42: 1 | AF42: 11 | AG42: 84 | AH42: 0 | AI42: 0 | AJ42: 14 | AK42: 3 | AL42: 29
A43: 2022-01-30 | B43: Legislativas | C43: União das Freguesias de Algés, Linda-a-Velha e Cruz Quebrada-Dafundo | D43: Escola Secundária de Miraflores | E43: UFALCQD_06 | F43: 956 | G43: 664 | H43: 654 | I43: 8 | J43: 2 | K43: 292 | L43: 5 | M43: 36 | N43: 11 | O43: 172 | P43: 1077 | Q43: 1 | R43: 6 | S43: 31 | T43: 0 | U43: 1 | V43: 1 | W43: 36 | X43: 2 | Y43: 0 | Z43: 0 | AA43: 1 | AB43: 33 | AC43: 214 | AD43: 185 | AE43: 0 | AF43: 6 | AG43: 94 | AH43: 0 | AI43: 1 | AJ43: 15 | AK43: 0 | AL43: 34
A44: 2022-01-30 | B44: Legislativas | C44: União das Freguesias de Algés, Linda-a-Velha e Cruz Quebrada-Dafundo | D44: Escola Secundária de Miraflores | E44: UFALCQD_13 | F44: 956 | G44: 609 | H44: 596 | I44: 11 | J44: 2 | K44: 347 | L44: 5 | M44: 36 | N44: 11 | O44: 172 | P44: 1084 | Q44: 1 | R44: 13 | S44: 37 | T44: 0 | U44: 1 | V44: 3 | W44: 32 | X44: 0 | Y44: 0 | Z44: 0 | AA44: 2 | AB44: 18 | AC44: 155 | AD44: 194 | AE44: 0 | AF44: 21 | AG44: 88 | AH44: 0 | AI44: 0 | AJ44: 10 | AK44: 0 | AL44: 35
A45: 2022-01-30 | B45: Legislativas | C45: União das Freguesias de Algés, Linda-a-Velha e Cruz Quebrada-Dafundo | D45: Escola Secundária de Miraflores | E45: UFALCQD_07 | F45: 958 | G45: 603 | H45: 595 | I45: 6 | J45: 2 | K45: 355 | L45: 5 | M45: 36 | N45: 11 | O45: 172 | P45: 1078 | Q45: 1 | R45: 7 | S45: 19 | T45: 1 | U45: 2 | V45: 0 | W45: 19 | X45: 1 | Y45: 0 | Z45: 0 | AA45: 3 | AB45: 30 | AC45: 171 | AD45: 200 | AE45: 1 | AF45: 12 | AG45: 78 | AH45: 0 | AI45: 0 | AJ45: 14 | AK45: 1 | AL45: 43
A46: 2022-01-30 | B46: Legislativas | C46: União das Freguesias de Algés, Linda-a-Velha e Cruz Quebrada-Dafundo | D46: Escola Secundária de Miraflores | E46: UFALCQD_08 | F46: 947 | G46: 637 | H46: 633 | I46: 3 | J46: 1 | K46: 310 | L46: 5 | M46: 36 | N46: 11 | O46: 172 | P46: 1079 | Q46: 1 | R46: 8 | S46: 14 | T46: 1 | U46: 2 | V46: 0 | W46: 19 | X46: 1 | Y46: 0 | Z46: 0 | AA46: 2 | AB46: 26 | AC46: 191 | AD46: 261 | AE46: 0 | AF46: 13 | AG46: 53 | AH46: 1 | AI46: 0 | AJ46: 14 | AK46: 0 | AL46: 35
A47: 2022-01-30 | B47: Legislativas | C47: União das Freguesias de Algés, Linda-a-Velha e Cruz Quebrada-Dafundo | D47: Escola Secundária de Miraflores | E47: UFALCQD_09 | F47: 941 | G47: 589 | H47: 580 | I47: 7 | J47: 2 | K47: 352 | L47: 5 | M47: 36 | N47: 11 | O47: 172 | P47: 1080 | Q47: 1 | R47: 9 | S47: 14 | T47: 0 | U47: 0 | V47: 0 | W47: 21 | X47: 3 | Y47: 0 | Z47: 0 | AA47: 0 | AB47: 23 | AC47: 178 | AD47: 277 | AE47: 0 | AF47: 8 | AG47: 22 | AH47: 0 | AI47: 0 | AJ47: 14 | AK47: 1 | AL47: 19
A48: 2022-01-30 | B48: Legislativas | C48: União das Freguesias de Algés, Linda-a-Velha e Cruz Quebrada-Dafundo | D48: Escola Secundária de Miraflores | E48: UFALCQD_10 | F48: 946 | G48: 615 | H48: 607 | I48: 2 | J48: 6 | K48: 331 | L48: 5 | M48: 36 | N48: 11 | O48: 172 | P48: 1081 | Q48: 1 | R48: 10 | S48: 20 | T48: 1 | U48: 2 | V48: 1 | W48: 19 | X48: 0 | Y48: 0 | Z48: 0 | AA48: 3 | AB48: 19 | AC48: 213 | AD48: 197 | AE48: 0 | AF48: 14 | AG48: 76 | AH48: 0 | AI48: 0 | AJ48: 20 | AK48: 1 | AL48: 21
A49: 2022-01-30 | B49: Legislativas | C49: União das Freguesias de Algés, Linda-a-Velha e Cruz Quebrada-Dafundo | D49: Escola Secundária de Miraflores | E49: UFALCQD_11 | F49: 957 | G49: 644 | H49: 635 | I49: 5 | J49: 4 | K49: 313 | L49: 5 | M49: 36 | N49: 11 | O49: 172 | P49: 1082 | Q49: 1 | R49: 11 | S49: 29 | T49: 0 | U49: 0 | V49: 3 | W49: 31 | X49: 0 | Y49: 1 | Z49: 1 | AA49: 3 | AB49: 23 | AC49: 160 | AD49: 221 | AE49: 0 | AF49: 19 | AG49: 95 | AH49: 0 | AI49: 1 | AJ49: 8 | AK49: 1 | AL49: 39
A50: 2022-01-30 | B50: Legislativas | C50: União das Freguesias de Algés, Linda-a-Velha e Cruz Quebrada-Dafundo | D50: Escola Secundária de Miraflores | E50: UFALCQD_12 | F50: 960 | G50: 643 | H50: 637 | I50: 4 | J50: 2 | K50: 317 | L50: 5 | M50: 36 | N50: 11 | O50: 172 | P50: 1083 | Q50: 1 | R50: 12 | S50: 38 | T50: 2 | U50: 1 | V50: 1 | W50: 40 | X50: 3 | Y50: 0 | Z50: 3 | AA50: 1 | AB50: 34 | AC50: 147 | AD50: 200 | AE50: 0 | AF50: 11 | AG50: 99 | AH50: 1 | AI50: 1 | AJ50: 14 | AK50: 2 | AL50: 39
A51: 2022-01-30 | B51: Legislativas | C51: União das Freguesias de Algés, Linda-a-Velha e Cruz Quebrada-Dafundo | D51: Pavilhão Celorico Moreira | E51: UFALCQD_14 | F51: 793 | G51: 626 | H51: 619 | I51: 4 | J51: 3 | K51: 167 | L51: 5 | M51: 36 | N51: 11 | O51: 173 | P51: 1085 | Q51: 1 | R51: 14 | S51: 23 | T51: 0 | U51: 0 | V51: 0 | W51: 23 | X51: 0 | Y51: 1 | Z51: 0 | AA51: 2 | AB51: 19 | AC51: 242 | AD51: 155 | AE51: 0 | AF51: 11 | AG51: 87 | AH51: 0 | AI51: 0 | AJ51: 25 | AK51: 2 | AL51: 29
A52: 2022-01-30 | B52: Legislativas | C52: União das Freguesias de Algés, Linda-a-Velha e Cruz Quebrada-Dafundo | D52: Pavilhão Celorico Moreira | E52: UFALCQD_15 | F52: 800 | G52: 612 | H52: 605 | I52: 6 | J52: 1 | K52: 188 | L52: 5 | M52: 36 | N52: 11 | O52: 173 | P52: 1086 | Q52: 1 | R52: 15 | S52: 9 | T52: 0 | U52: 1 | V52: 2 | W52: 24 | X52: 0 | Y52: 1 | Z52: 0 | AA52: 0 | AB52: 21 | AC52: 234 | AD52: 145 | AE52: 0 | AF52: 18 | AG52: 89 | AH52: 0 | AI52: 2 | AJ52: 22 | AK52: 0 | AL52: 37
A53: 2022-01-30 | B53: Legislativas | C53: União das Freguesias de Algés, Linda-a-Velha e Cruz Quebrada-Dafundo | D53: Pavilhão Celorico Moreira | E53: UFALCQD_16 | F53: 792 | G53: 616 | H53: 608 | I53: 3 | J53: 5 | K53: 176 | L53: 5 | M53: 36 | N53: 11 | O53: 173 | P53: 1087 | Q53: 1 | R53: 16 | S53: 24 | T53: 0 | U53: 1 | V53: 0 | W53: 22 | X53: 0 | Y53: 0 | Z53: 0 | AA53: 2 | AB53: 26 | AC53: 216 | AD53: 134 | AE53: 1 | AF53: 9 | AG53: 114 | AH53: 0 | AI53: 0 | AJ53: 31 | AK53: 0 | AL53: 28
A54: 2022-01-30 | B54: Legislativas | C54: União das Freguesias de Algés, Linda-a-Velha e Cruz Quebrada-Dafundo | D54: Pavilhão Celorico Moreira | E54: UFALCQD_17 | F54: 795 | G54: 625 | H54: 620 | I54: 3 | J54: 2 | K54: 170 | L54: 5 | M54: 36 | N54: 11 | O54: 173 | P54: 1088 | Q54: 1 | R54: 17 | S54: 23 | T54: 0 | U54: 0 | V54: 1 | W54: 16 | X54: 1 | Y54: 0 | Z54: 0 | AA54: 0 | AB54: 21 | AC54: 255 | AD54: 147 | AE54: 0 | AF54: 3 | AG54: 89 | AH54: 0 | AI54: 1 | AJ54: 18 | AK54: 0 | AL54: 45
A55: 2022-01-30 | B55: Legislativas | C55: União das Freguesias de Algés, Linda-a-Velha e Cruz Quebrada-Dafundo | D55: Pavilhão Celorico Moreira | E55: UFALCQD_18 | F55: 795 | G55: 616 | H55: 612 | I55: 3 | J55: 1 | K55: 179 | L55: 5 | M55: 36 | N55: 11 | O55: 173 | P55: 1089 | Q55: 1 | R55: 18 | S55: 19 | T55: 0 | U55: 1 | V55: 2 | W55: 27 | X55: 1 | Y55: 0 | Z55: 0 | AA55: 0 | AB55: 15 | AC55: 261 | AD55: 143 | AE55: 0 | AF55: 7 | AG55: 83 | AH55: 0 | AI55: 0 | AJ55: 29 | AK55: 1 | AL55: 23
A56: 2022-01-30 | B56: Legislativas | C56: União das Freguesias de Algés, Linda-a-Velha e Cruz Quebrada-Dafundo | D56: Pavilhão Celorico Moreira | E56: UFALCQD_19 | F56: 803 | G56: 634 | H56: 632 | I56: 1 | J56: 1 | K56: 169 | L56: 5 | M56: 36 | N56: 11 | O56: 173 | P56: 1090 | Q56: 1 | R56: 19 | S56: 14 | T56: 0 | U56: 0 | V56: 0 | W56: 10 | X56: 0 | Y56: 0 | Z56: 0 | AA56: 0 | AB56: 18 | AC56: 282 | AD56: 158 | AE56: 0 | AF56: 5 | AG56: 74 | AH56: 0 | AI56: 1 | AJ56: 38 | AK56: 1 | AL56: 31
A57: 2022-01-30 | B57: Legislativas | C57: União das Freguesias de Algés, Linda-a-Velha e Cruz Quebrada-Dafundo | D57: Pavilhão Celorico Moreira | E57: UFALCQD_20 | F57: 799 | G57: 632 | H57: 626 | I57: 3 | J57: 3 | K57: 167 | L57: 5 | M57: 36 | N57: 11 | O57: 173 | P57: 1091 | Q57: 1 | R57: 20 | S57: 27 | T57: 0 | U57: 0 | V57: 1 | W57: 17 | X57: 2 | Y57: 0 | Z57: 0 | AA57: 1 | AB57: 9 | AC57: 238 | AD57: 127 | AE57: 0 | AF57: 13 | AG57: 130 | AH57: 0 | AI57: 0 | AJ57: 27 | AK57: 0 | AL57: 34
A58: 2022-01-30 | B58: Legislativas | C58: União das Freguesias de Algés, Linda-a-Velha e Cruz Quebrada-Dafundo | D58: Pavilhão Celorico Moreira | E58: UFALCQD_21 | F58: 800 | G58: 648 | H58: 634 | I58: 13 | J58: 1 | K58: 152 | L58: 5 | M58: 36 | N58: 11 | O58: 173 | P58: 1092 | Q58: 1 | R58: 21 | S58: 20 | T58: 0 | U58: 1 | V58: 0 | W58: 17 | X58: 0 | Y58: 0 | Z58: 0 | AA58: 2 | AB58: 13 | AC58: 254 | AD58: 141 | AE58: 0 | AF58: 7 | AG58: 125 | AH58: 0 | AI58: 0 | AJ58: 32 | AK58: 0 | AL58: 22
A59: 2022-01-30 | B59: Legislativas | C59: União das Freguesias de Algés, Linda-a-Velha e Cruz Quebrada-Dafundo | D59: Escola Secundária Professor José Augusto Lucas | E59: UFALCQD_22 | F59: 817 | G59: 518 | H59: 513 | I59: 3 | J59: 2 | K59: 299 | L59: 5 | M59: 36 | N59: 11 | O59: 174 | P59: 1093 | Q59: 1 | R59: 22 | S59: 14 | T59: 0 | U59: 1 | V59: 0 | W59: 29 | X59: 0 | Y59: 1 | Z59: 1 | AA59: 4 | AB59: 20 | AC59: 141 | AD59: 204 | AE59: 0 | AF59: 11 | AG59: 45 | AH59: 0 | AI59: 0 | AJ59: 16 | AK59: 0 | AL59: 26
A60: 2022-01-30 | B60: Legislativas | C60: União das Freguesias de Algés, Linda-a-Velha e Cruz Quebrada-Dafundo | D60: Escola Secundária Professor José Augusto Lucas | E60: UFALCQD_23 | F60: 806 | G60: 588 | H60: 579 | I60: 8 | J60: 1 | K60: 218 | L60: 5 | M60: 36 | N60: 11 | O60: 174 | P60: 1094 | Q60: 1 | R60: 23 | S60: 24 | T60: 0 | U60: 3 | V60: 1 | W60: 32 | X60: 0 | Y60: 0 | Z60: 0 | AA60: 0 | AB60: 19 | AC60: 164 | AD60: 241 | AE60: 0 | AF60: 19 | AG60: 48 | AH60: 0 | AI60: 0 | AJ60: 5 | AK60: 0 | AL60: 23
A61: 2022-01-30 | B61: Legislativas | C61: União das Freguesias de Algés, Linda-a-Velha e Cruz Quebrada-Dafundo | D61: Escola Secundária Professor José Augusto Lucas | E61: UFALCQD_24 | F61: 810 | G61: 515 | H61: 507 | I61: 8 | J61: 0 | K61: 295 | L61: 5 | M61: 36 | N61: 11 | O61: 174 | P61: 1095 | Q61: 1 | R61: 24 | S61: 11 | T61: 0 | U61: 0 | V61: 2 | W61: 22 | X61: 1 | Y61: 0 | Z61: 0 | AA61: 0 | AB61: 33 | AC61: 150 | AD61: 215 | AE61: 0 | AF61: 2 | AG61: 33 | AH61: 0 | AI61: 0 | AJ61: 15 | AK61: 0 | AL61: 23
A62: 2022-01-30 | B62: Legislativas | C62: União das Freguesias de Algés, Linda-a-Velha e Cruz Quebrada-Dafundo | D62: Escola Secundária Professor José Augusto Lucas | E62: UFALCQD_25 | F62: 811 | G62: 539 | H62: 526 | I62: 9 | J62: 4 | K62: 272 | L62: 5 | M62: 36 | N62: 11 | O62: 174 | P62: 1096 | Q62: 1 | R62: 25 | S62: 20 | T62: 0 | U62: 1 | V62: 1 | W62: 29 | X62: 0 | Y62: 0 | Z62: 0 | AA62: 2 | AB62: 26 | AC62: 141 | AD62: 209 | AE62: 0 | AF62: 12 | AG62: 44 | AH62: 0 | AI62: 0 | AJ62: 8 | AK62: 0 | AL62: 33
A63: 2022-01-30 | B63: Legislativas | C63: União das Freguesias de Algés, Linda-a-Velha e Cruz Quebrada-Dafundo | D63: Escola Secundária Professor José Augusto Lucas | E63: UFALCQD_26 | F63: 811 | G63: 542 | H63: 533 | I63: 7 | J63: 2 | K63: 269 | L63: 5 | M63: 36 | N63: 11 | O63: 174 | P63: 1097 | Q63: 1 | R63: 26 | S63: 19 | T63: 0 | U63: 1 | V63: 1 | W63: 36 | X63: 0 | Y63: 0 | Z63: 0 | AA63: 2 | AB63: 18 | AC63: 133 | AD63: 220 | AE63: 0 | AF63: 14 | AG63: 55 | AH63: 0 | AI63: 2 | AJ63: 9 | AK63: 3 | AL63: 20
A64: 2022-01-30 | B64: Legislativas | C64: União das Freguesias de Algés, Linda-a-Velha e Cruz Quebrada-Dafundo | D64: Escola Secundária Professor José Augusto Lucas | E64: UFALCQD_27 | F64: 808 | G64: 486 | H64: 480 | I64: 3 | J64: 3 | K64: 322 | L64: 5 | M64: 36 | N64: 11 | O64: 174 | P64: 1098 | Q64: 1 | R64: 27 | S64: 16 | T64: 0 | U64: 3 | V64: 4 | W64: 17 | X64: 0 | Y64: 0 | Z64: 0 | AA64: 3 | AB64: 21 | AC64: 140 | AD64: 184 | AE64: 0 | AF64: 7 | AG64: 48 | AH64: 0 | AI64: 0 | AJ64: 8 | AK64: 0 | AL64: 29
A65: 2022-01-30 | B65: Legislativas | C65: União das Freguesias de Algés, Linda-a-Velha e Cruz Quebrada-Dafundo | D65: Escola Secundária Professor José Augusto Lucas | E65: UFALCQD_40 | F65: 810 | G65: 551 | H65: 539 | I65: 9 | J65: 3 | K65: 259 | L65: 5 | M65: 36 | N65: 11 | O65: 174 | P65: 1111 | Q65: 1 | R65: 40 | S65: 22 | T65: 2 | U65: 2 | V65: 1 | W65: 23 | X65: 0 | Y65: 1 | Z65: 0 | AA65: 2 | AB65: 20 | AC65: 140 | AD65: 176 | AE65: 1 | AF65: 17 | AG65: 91 | AH65: 0 | AI65: 0 | AJ65: 8 | AK65: 2 | AL65: 31
A66: 2022-01-30 | B66: Legislativas | C66: União das Freguesias de Algés, Linda-a-Velha e Cruz Quebrada-Dafundo | D66: Escola Secundária Professor José Augusto Lucas | E66: UFALCQD_41 | F66: 824 | G66: 554 | H66: 538 | I66: 9 | J66: 7 | K66: 270 | L66: 5 | M66: 36 | N66: 11 | O66: 174 | P66: 1112 | Q66: 1 | R66: 41 | S66: 20 | T66: 0 | U66: 1 | V66: 1 | W66: 33 | X66: 2 | Y66: 0 | Z66: 0 | AA66: 1 | AB66: 25 | AC66: 150 | AD66: 175 | AE66: 0 | AF66: 21 | AG66: 69 | AH66: 1 | AI66: 0 | AJ66: 8 | AK66: 0 | AL66: 31
A67: 2022-01-30 | B67: Legislativas | C67: União das Freguesias de Algés, Linda-a-Velha e Cruz Quebrada-Dafundo | D67: Escola Secundária Professor José Augusto Lucas | E67: UFALCQD_42 | F67: 828 | G67: 512 | H67: 503 | I67: 5 | J67: 4 | K67: 316 | L67: 5 | M67: 36 | N67: 11 | O67: 174 | P67: 1113 | Q67: 1 | R67: 42 | S67: 16 | T67: 0 | U67: 1 | V67: 1 | W67: 23 | X67: 0 | Y67: 1 | Z67: 0 | AA67: 0 | AB67: 32 | AC67: 129 | AD67: 179 | AE67: 0 | AF67: 10 | AG67: 60 | AH67: 2 | AI67: 0 | AJ67: 8 | AK67: 0 | AL67: 41
A68: 2022-01-30 | B68: Legislativas | C68: União das Freguesias de Algés, Linda-a-Velha e Cruz Quebrada-Dafundo | D68: Escola Secundária Professor José Augusto Lucas | E68: UFALCQD_34 | F68: 805 | G68: 521 | H68: 518 | I68: 2 | J68: 1 | K68: 284 | L68: 5 | M68: 36 | N68: 11 | O68: 174 | P68: 1105 | Q68: 1 | R68: 34 | S68: 10 | T68: 0 | U68: 1 | V68: 3 | W68: 17 | X68: 0 | Y68: 1 | Z68: 0 | AA68: 1 | AB68: 23 | AC68: 152 | AD68: 254 | AE68: 1 | AF68: 1 | AG68: 25 | AH68: 0 | AI68: 0 | AJ68: 17 | AK68: 0 | AL68: 12
A69: 2022-01-30 | B69: Legislativas | C69: União das Freguesias de Algés, Linda-a-Velha e Cruz Quebrada-Dafundo | D69: Escola Secundária Professor José Augusto Lucas | E69: UFALCQD_35 | F69: 805 | G69: 509 | H69: 505 | I69: 3 | J69: 1 | K69: 296 | L69: 5 | M69: 36 | N69: 11 | O69: 174 | P69: 1106 | Q69: 1 | R69: 35 | S69: 5 | T69: 1 | U69: 2 | V69: 0 | W69: 22 | X69: 0 | Y69: 0 | Z69: 0 | AA69: 2 | AB69: 18 | AC69: 135 | AD69: 264 | AE69: 0 | AF69: 7 | AG69: 20 | AH69: 0 | AI69: 0 | AJ69: 7 | AK69: 0 | AL69: 22
A70: 2022-01-30 | B70: Legislativas | C70: União das Freguesias de Algés, Linda-a-Velha e Cruz Quebrada-Dafundo | D70: Escola Secundária Professor José Augusto Lucas | E70: UFALCQD_36 | F70: 817 | G70: 545 | H70: 539 | I70: 3 | J70: 3 | K70: 272 | L70: 5 | M70: 36 | N70: 11 | O70: 174 | P70: 1107 | Q70: 1 | R70: 36 | S70: 12 | T70: 0 | U70: 3 | V70: 0 | W70: 25 | X70: 0 | Y70: 0 | Z70: 0 | AA70: 0 | AB70: 30 | AC70: 172 | AD70: 242 | AE70: 0 | AF70: 8 | AG70: 27 | AH70: 0 | AI70: 1 | AJ70: 8 | AK70: 0 | AL70: 11
A71: 2022-01-30 | B71: Legislativas | C71: União das Freguesias de Algés, Linda-a-Velha e Cruz Quebrada-Dafundo | D71: Escola Secundária Professor José Augusto Lucas | E71: UFALCQD_37 | F71: 812 | G71: 552 | H71: 547 | I71: 3 | J71: 2 | K71: 260 | L71: 5 | M71: 36 | N71: 11 | O71: 174 | P71: 1108 | Q71: 1 | R71: 37 | S71: 11 | T71: 0 | U71: 0 | V71: 0 | W71: 25 | X71: 0 | Y71: 0 | Z71: 1 | AA71: 2 | AB71: 20 | AC71: 160 | AD71: 245 | AE71: 0 | AF71: 11 | AG71: 46 | AH71: 0 | AI71: 1 | AJ71: 8 | AK71: 0 | AL71: 17
A72: 2022-01-30 | B72: Legislativas | C72: União das Freguesias de Algés, Linda-a-Velha e Cruz Quebrada-Dafundo | D72: Escola Secundária Professor José Augusto Lucas | E72: UFALCQD_38 | F72: 812 | G72: 547 | H72: 533 | I72: 9 | J72: 5 | K72: 265 | L72: 5 | M72: 36 | N72: 11 | O72: 174 | P72: 1109 | Q72: 1 | R72: 38 | S72: 15 | T72: 0 | U72: 0 | V72: 0 | W72: 24 | X72: 0 | Y72: 1 | Z72: 0 | AA72: 2 | AB72: 26 | AC72: 152 | AD72: 164 | AE72: 0 | AF72: 17 | AG72: 86 | AH72: 0 | AI72: 0 | AJ72: 9 | AK72: 0 | AL72: 37
A73: 2022-01-30 | B73: Legislativas | C73: União das Freguesias de Algés, Linda-a-Velha e Cruz Quebrada-Dafundo | D73: Escola Secundária Professor José Augusto Lucas | E73: UFALCQD_39 | F73: 808 | G73: 557 | H73: 545 | I73: 5 | J73: 7 | K73: 251 | L73: 5 | M73: 36 | N73: 11 | O73: 174 | P73: 1110 | Q73: 1 | R73: 39 | S73: 21 | T73: 2 | U73: 0 | V73: 2 | W73: 27 | X73: 0 | Y73: 0 | Z73: 1 | AA73: 1 | AB73: 34 | AC73: 181 | AD73: 172 | AE73: 0 | AF73: 9 | AG73: 54 | AH73: 0 | AI73: 1 | AJ73: 4 | AK73: 1 | AL73: 35
A74: 2022-01-30 | B74: Legislativas | C74: União das Freguesias de Algés, Linda-a-Velha e Cruz Quebrada-Dafundo | D74: Escola Secundária Professor José Augusto Lucas | E74: UFALCQD_28 | F74: 802 | G74: 556 | H74: 549 | I74: 4 | J74: 3 | K74: 246 | L74: 5 | M74: 36 | N74: 11 | O74: 174 | P74: 1099 | Q74: 1 | R74: 28 | S74: 16 | T74: 0 | U74: 1 | V74: 1 | W74: 25 | X74: 0 | Y74: 0 | Z74: 0 | AA74: 2 | AB74: 22 | AC74: 178 | AD74: 182 | AE74: 0 | AF74: 7 | AG74: 72 | AH74: 0 | AI74: 1 | AJ74: 10 | AK74: 1 | AL74: 31
A75: 2022-01-30 | B75: Legislativas | C75: União das Freguesias de Algés, Linda-a-Velha e Cruz Quebrada-Dafundo | D75: Escola Secundária Professor José Augusto Lucas | E75: UFALCQD_29 | F75: 818 | G75: 537 | H75: 532 | I75: 3 | J75: 2 | K75: 281 | L75: 5 | M75: 36 | N75: 11 | O75: 174 | P75: 1100 | Q75: 1 | R75: 29 | S75: 22 | T75: 0 | U75: 0 | V75: 0 | W75: 35 | X75: 1 | Y75: 0 | Z75: 0 | AA75: 3 | AB75: 29 | AC75: 140 | AD75: 196 | AE75: 0 | AF75: 14 | AG75: 54 | AH75: 0 | AI75: 0 | AJ75: 7 | AK75: 0 | AL75: 31
A76: 2022-01-30 | B76: Legislativas | C76: União das Freguesias de Algés, Linda-a-Velha e Cruz Quebrada-Dafundo | D76: Escola Secundária Professor José Augusto Lucas | E76: UFALCQD_30 | F76: 813 | G76: 590 | H76: 583 | I76: 6 | J76: 1 | K76: 223 | L76: 5 | M76: 36 | N76: 11 | O76: 174 | P76: 1101 | Q76: 1 | R76: 30 | S76: 22 | T76: 1 | U76: 1 | V76: 1 | W76: 34 | X76: 0 | Y76: 0 | Z76: 1 | AA76: 1 | AB76: 28 | AC76: 161 | AD76: 191 | AE76: 0 | AF76: 12 | AG76: 78 | AH76: 0 | AI76: 1 | AJ76: 9 | AK76: 1 | AL76: 41
A77: 2022-01-30 | B77: Legislativas | C77: União das Freguesias de Algés, Linda-a-Velha e Cruz Quebrada-Dafundo | D77: Escola Secundária Professor José Augusto Lucas | E77: UFALCQD_31 | F77: 810 | G77: 563 | H77: 554 | I77: 3 | J77: 6 | K77: 247 | L77: 5 | M77: 36 | N77: 11 | O77: 174 | P77: 1102 | Q77: 1 | R77: 31 | S77: 14 | T77: 0 | U77: 0 | V77: 1 | W77: 28 | X77: 0 | Y77: 0 | Z77: 0 | AA77: 3 | AB77: 27 | AC77: 183 | AD77: 210 | AE77: 1 | AF77: 9 | AG77: 33 | AH77: 0 | AI77: 0 | AJ77: 10 | AK77: 0 | AL77: 35
A78: 2022-01-30 | B78: Legislativas | C78: União das Freguesias de Algés, Linda-a-Velha e Cruz Quebrada-Dafundo | D78: Escola Secundária Professor José Augusto Lucas | E78: UFALCQD_32 | F78: 808 | G78: 487 | H78: 480 | I78: 6 | J78: 1 | K78: 321 | L78: 5 | M78: 36 | N78: 11 | O78: 174 | P78: 1103 | Q78: 1 | R78: 32 | S78: 10 | T78: 2 | U78: 1 | V78: 0 | W78: 22 | X78: 0 | Y78: 0 | Z78: 0 | AA78: 0 | AB78: 24 | AC78: 147 | AD78: 186 | AE78: 1 | AF78: 10 | AG78: 35 | AH78: 0 | AI78: 1 | AJ78: 4 | AK78: 1 | AL78: 36
A79: 2022-01-30 | B79: Legislativas | C79: União das Freguesias de Algés, Linda-a-Velha e Cruz Quebrada-Dafundo | D79: Escola Secundária Professor José Augusto Lucas | E79: UFALCQD_33 | F79: 808 | G79: 531 | H79: 519 | I79: 7 | J79: 5 | K79: 277 | L79: 5 | M79: 36 | N79: 11 | O79: 174 | P79: 1104 | Q79: 1 | R79: 33 | S79: 13 | T79: 0 | U79: 1 | V79: 1 | W79: 24 | X79: 0 | Y79: 0 | Z79: 0 | AA79: 0 | AB79: 39 | AC79: 152 | AD79: 181 | AE79: 0 | AF79: 12 | AG79: 50 | AH79: 0 | AI79: 0 | AJ79: 7 | AK79: 2 | AL79: 37
A80: 2022-01-30 | B80: Legislativas | C80: União das Freguesias de Algés, Linda-a-Velha e Cruz Quebrada-Dafundo | D80: Instituto Espanhol | E80: UFALCQD_43 | F80: 751 | G80: 465 | H80: 456 | I80: 6 | J80: 3 | K80: 286 | L80: 5 | M80: 36 | N80: 11 | O80: 175 | P80: 1114 | Q80: 1 | R80: 43 | S80: 21 | T80: 0 | U80: 2 | V80: 1 | W80: 23 | X80: 1 | Y80: 0 | Z80: 1 | AA80: 1 | AB80: 25 | AC80: 105 | AD80: 192 | AE80: 0 | AF80: 15 | AG80: 31 | AH80: 0 | AI80: 1 | AJ80: 7 | AK80: 1 | AL80: 29
A81: 2022-01-30 | B81: Legislativas | C81: União das Freguesias de Algés, Linda-a-Velha e Cruz Quebrada-Dafundo | D81: Instituto Espanhol | E81: UFALCQD_44 | F81: 749 | G81: 494 | H81: 490 | I81: 3 | J81: 1 | K81: 255 | L81: 5 | M81: 36 | N81: 11 | O81: 175 | P81: 1115 | Q81: 1 | R81: 44 | S81: 13 | T81: 1 | U81: 1 | V81: 2 | W81: 30 | X81: 0 | Y81: 0 | Z81: 0 | AA81: 1 | AB81: 30 | AC81: 129 | AD81: 179 | AE81: 0 | AF81: 4 | AG81: 57 | AH81: 0 | AI81: 2 | AJ81: 13 | AK81: 0 | AL81: 28
A82: 2022-01-30 | B82: Legislativas | C82: União das Freguesias de Algés, Linda-a-Velha e Cruz Quebrada-Dafundo | D82: Instituto Espanhol | E82: UFALCQD_45 | F82: 756 | G82: 491 | H82: 484 | I82: 3 | J82: 4 | K82: 265 | L82: 5 | M82: 36 | N82: 11 | O82: 175 | P82: 1116 | Q82: 1 | R82: 45 | S82: 13 | T82: 1 | U82: 2 | V82: 1 | W82: 22 | X82: 0 | Y82: 0 | Z82: 1 | AA82: 2 | AB82: 19 | AC82: 120 | AD82: 236 | AE82: 0 | AF82: 4 | AG82: 32 | AH82: 0 | AI82: 0 | AJ82: 9 | AK82: 0 | AL82: 22
A83: 2022-01-30 | B83: Legislativas | C83: União das Freguesias de Algés, Linda-a-Velha e Cruz Quebrada-Dafundo | D83: Instituto Espanhol | E83: UFALCQD_46 | F83: 763 | G83: 493 | H83: 489 | I83: 3 | J83: 1 | K83: 270 | L83: 5 | M83: 36 | N83: 11 | O83: 175 | P83: 1117 | Q83: 1 | R83: 46 | S83: 22 | T83: 1 | U83: 1 | V83: 2 | W83: 28 | X83: 1 | Y83: 1 | Z83: 0 | AA83: 5 | AB83: 23 | AC83: 118 | AD83: 162 | AE83: 0 | AF83: 15 | AG83: 73 | AH83: 1 | AI83: 1 | AJ83: 8 | AK83: 0 | AL83: 27
A84: 2022-01-30 | B84: Legislativas | C84: União das Freguesias de Algés, Linda-a-Velha e Cruz Quebrada-Dafundo | D84: JI Roberto Ivens | E84: UFALCQD_47 | F84: 671 | G84: 467 | H84: 460 | I84: 4 | J84: 3 | K84: 204 | L84: 5 | M84: 36 | N84: 11 | O84: 176 | P84: 1118 | Q84: 1 | R84: 47 | S84: 19 | T84: 0 | U84: 1 | V84: 2 | W84: 23 | X84: 0 | Y84: 0 | Z84: 0 | AA84: 4 | AB84: 25 | AC84: 119 | AD84: 165 | AE84: 1 | AF84: 15 | AG84: 59 | AH84: 0 | AI84: 0 | AJ84: 6 | AK84: 0 | AL84: 21
A85: 2022-01-30 | B85: Legislativas | C85: União das Freguesias de Algés, Linda-a-Velha e Cruz Quebrada-Dafundo | D85: JI Roberto Ivens | E85: UFALCQD_48 | F85: 665 | G85: 427 | H85: 424 | I85: 1 | J85: 2 | K85: 238 | L85: 5 | M85: 36 | N85: 11 | O85: 176 | P85: 1119 | Q85: 1 | R85: 48 | S85: 15 | T85: 2 | U85: 1 | V85: 0 | W85: 12 | X85: 0 | Y85: 0 | Z85: 0 | AA85: 0 | AB85: 22 | AC85: 118 | AD85: 171 | AE85: 0 | AF85: 5 | AG85: 54 | AH85: 0 | AI85: 1 | AJ85: 7 | AK85: 0 | AL85: 16
A86: 2022-01-30 | B86: Legislativas | C86: União das Freguesias de Algés, Linda-a-Velha e Cruz Quebrada-Dafundo | D86: JI Roberto Ivens | E86: UFALCQD_49 | F86: 670 | G86: 457 | H86: 455 | I86: 1 | J86: 1 | K86: 213 | L86: 5 | M86: 36 | N86: 11 | O86: 176 | P86: 1120 | Q86: 1 | R86: 49 | S86: 18 | T86: 0 | U86: 0 | V86: 1 | W86: 16 | X86: 0 | Y86: 0 | Z86: 0 | AA86: 0 | AB86: 19 | AC86: 131 | AD86: 159 | AE86: 0 | AF86: 10 | AG86: 64 | AH86: 0 | AI86: 1 | AJ86: 10 | AK86: 2 | AL86: 24
A87: 2022-01-30 | B87: Legislativas | C87: União das Freguesias de Carnaxide e Queijas | D87: EB 2/3 Vieira da Silva | E87: UFCQ_01 | F87: 872 | G87: 623 | H87: 609 | I87: 11 | J87: 3 | K87: 249 | L87: 5 | M87: 36 | N87: 12 | O87: 178 | P87: 1121 | Q87: 1 | R87: 1 | S87: 15 | T87: 0 | U87: 1 | V87: 1 | W87: 21 | X87: 0 | Y87: 0 | Z87: 1 | AA87: 4 | AB87: 29 | AC87: 183 | AD87: 244 | AE87: 0 | AF87: 20 | AG87: 59 | AH87: 0 | AI87: 0 | AJ87: 5 | AK87: 0 | AL87: 26
A88: 2022-01-30 | B88: Legislativas | C88: União das Freguesias de Carnaxide e Queijas | D88: EB 2/3 Vieira da Silva | E88: UFCQ_02 | F88: 882 | G88: 648 | H88: 636 | I88: 11 | J88: 1 | K88: 234 | L88: 5 | M88: 36 | N88: 12 | O88: 178 | P88: 1122 | Q88: 1 | R88: 2 | S88: 20 | T88: 1 | U88: 2 | V88: 0 | W88: 35 | X88: 0 | Y88: 1 | Z88: 0 | AA88: 2 | AB88: 30 | AC88: 186 | AD88: 239 | AE88: 0 | AF88: 17 | AG88: 65 | AH88: 0 | AI88: 1 | AJ88: 10 | AK88: 1 | AL88: 26
A89: 2022-01-30 | B89: Legislativas | C89: União das Freguesias de Carnaxide e Queijas | D89: EB 2/3 Vieira da Silva | E89: UFCQ_03 | F89: 876 | G89: 605 | H89: 589 | I89: 13 | J89: 3 | K89: 271 | L89: 5 | M89: 36 | N89: 12 | O89: 178 | P89: 1123 | Q89: 1 | R89: 3 | S89: 21 | T89: 0 | U89: 0 | V89: 1 | W89: 24 | X89: 0 | Y89: 0 | Z89: 0 | AA89: 2 | AB89: 24 | AC89: 170 | AD89: 218 | AE89: 0 | AF89: 15 | AG89: 70 | AH89: 0 | AI89: 2 | AJ89: 8 | AK89: 1 | AL89: 33
A90: 2022-01-30 | B90: Legislativas | C90: União das Freguesias de Carnaxide e Queijas | D90: EB 2/3 Vieira da Silva | E90: UFCQ_04 | F90: 883 | G90: 581 | H90: 567 | I90: 7 | J90: 7 | K90: 302 | L90: 5 | M90: 36 | N90: 12 | O90: 178 | P90: 1124 | Q90: 1 | R90: 4 | S90: 32 | T90: 0 | U90: 2 | V90: 0 | W90: 29 | X90: 1 | Y90: 0 | Z90: 1 | AA90: 1 | AB90: 13 | AC90: 169 | AD90: 187 | AE90: 1 | AF90: 21 | AG90: 61 | AH90: 0 | AI90: 1 | AJ90: 12 | AK90: 1 | AL90: 35
A91: 2022-01-30 | B91: Legislativas | C91: União das Freguesias de Carnaxide e Queijas | D91: EB 2/3 Vieira da Silva | E91: UFCQ_05 | F91: 878 | G91: 596 | H91: 592 | I91: 2 | J91: 2 | K91: 282 | L91: 5 | M91: 36 | N91: 12 | O91: 178 | P91: 1125 | Q91: 1 | R91: 5 | S91: 21 | T91: 0 | U91: 2 | V91: 1 | W91: 20 | X91: 0 | Y91: 0 | Z91: 0 | AA91: 0 | AB91: 39 | AC91: 180 | AD91: 220 | AE91: 0 | AF91: 4 | AG91: 67 | AH91: 0 | AI91: 1 | AJ91: 10 | AK91: 0 | AL91: 27
A92: 2022-01-30 | B92: Legislativas | C92: União das Freguesias de Carnaxide e Queijas | D92: EB 2/3 Vieira da Silva | E92: UFCQ_06 | F92: 879 | G92: 594 | H92: 586 | I92: 5 | J92: 3 | K92: 285 | L92: 5 | M92: 36 | N92: 12 | O92: 178 | P92: 1126 | Q92: 1 | R92: 6 | S92: 24 | T92: 2 | U92: 1 | V92: 2 | W92: 35 | X92: 0 | Y92: 1 | Z92: 0 | AA92: 0 | AB92: 25 | AC92: 164 | AD92: 212 | AE92: 0 | AF92: 15 | AG92: 68 | AH92: 0 | AI92: 0 | AJ92: 12 | AK92: 1 | AL92: 24
A93: 2022-01-30 | B93: Legislativas | C93: União das Freguesias de Carnaxide e Queijas | D93: EB 2/3 Vieira da Silva | E93: UFCQ_13 | F93: 867 | G93: 615 | H93: 603 | I93: 9 | J93: 3 | K93: 252 | L93: 5 | M93: 36 | N93: 12 | O93: 178 | P93: 1133 | Q93: 1 | R93: 13 | S93: 11 | T93: 1 | U93: 2 | V93: 1 | W93: 28 | X93: 1 | Y93: 1 | Z93: 0 | AA93: 3 | AB93: 34 | AC93: 167 | AD93: 187 | AE93: 0 | AF93: 15 | AG93: 95 | AH93: 0 | AI93: 2 | AJ93: 11 | AK93: 1 | AL93: 43
A94: 2022-01-30 | B94: Legislativas | C94: União das Freguesias de Carnaxide e Queijas | D94: EB 2/3 Vieira da Silva | E94: UFCQ_14 | F94: 881 | G94: 633 | H94: 620 | I94: 9 | J94: 4 | K94: 248 | L94: 5 | M94: 36 | N94: 12 | O94: 178 | P94: 1134 | Q94: 1 | R94: 14 | S94: 24 | T94: 1 | U94: 0 | V94: 0 | W94: 33 | X94: 1 | Y94: 0 | Z94: 0 | AA94: 4 | AB94: 23 | AC94: 177 | AD94: 183 | AE94: 1 | AF94: 21 | AG94: 85 | AH94: 1 | AI94: 1 | AJ94: 12 | AK94: 1 | AL94: 52
A95: 2022-01-30 | B95: Legislativas | C95: União das Freguesias de Carnaxide e Queijas | D95: EB 2/3 Vieira da Silva | E95: UFCQ_15 | F95: 873 | G95: 621 | H95: 614 | I95: 3 | J95: 4 | K95: 252 | L95: 5 | M95: 36 | N95: 12 | O95: 178 | P95: 1135 | Q95: 1 | R95: 15 | S95: 19 | T95: 1 | U95: 3 | V95: 4 | W95: 28 | X95: 0 | Y95: 0 | Z95: 0 | AA95: 6 | AB95: 32 | AC95: 162 | AD95: 232 | AE95: 0 | AF95: 13 | AG95: 75 | AH95: 0 | AI95: 1 | AJ95: 7 | AK95: 3 | AL95: 28
A96: 2022-01-30 | B96: Legislativas | C96: União das Freguesias de Carnaxide e Queijas | D96: EB 2/3 Vieira da Silva | E96: UFCQ_07 | F96: 882 | G96: 658 | H96: 641 | I96: 13 | J96: 4 | K96: 224 | L96: 5 | M96: 36 | N96: 12 | O96: 178 | P96: 1127 | Q96: 1 | R96: 7 | S96: 27 | T96: 0 | U96: 1 | V96: 1 | W96: 29 | X96: 1 | Y96: 1 | Z96: 1 | AA96: 2 | AB96: 31 | AC96: 186 | AD96: 214 | AE96: 0 | AF96: 12 | AG96: 79 | AH96: 0 | AI96: 1 | AJ96: 14 | AK96: 1 | AL96: 40
A97: 2022-01-30 | B97: Legislativas | C97: União das Freguesias de Carnaxide e Queijas | D97: EB 2/3 Vieira da Silva | E97: UFCQ_08 | F97: 879 | G97: 625 | H97: 614 | I97: 7 | J97: 4 | K97: 254 | L97: 5 | M97: 36 | N97: 12 | O97: 178 | P97: 1128 | Q97: 1 | R97: 8 | S97: 15 | T97: 0 | U97: 1 | V97: 2 | W97: 17 | X97: 0 | Y97: 0 | Z97: 0 | AA97: 0 | AB97: 36 | AC97: 176 | AD97: 244 | AE97: 0 | AF97: 12 | AG97: 57 | AH97: 0 | AI97: 1 | AJ97: 15 | AK97: 0 | AL97: 38
A98: 2022-01-30 | B98: Legislativas | C98: União das Freguesias de Carnaxide e Queijas | D98: EB 2/3 Vieira da Silva | E98: UFCQ_09 | F98: 886 | G98: 631 | H98: 616 | I98: 10 | J98: 5 | K98: 255 | L98: 5 | M98: 36 | N98: 12 | O98: 178 | P98: 1129 | Q98: 1 | R98: 9 | S98: 13 | T98: 0 | U98: 1 | V98: 1 | W98: 22 | X98: 0 | Y98: 0 | Z98: 0 | AA98: 3 | AB98: 28 | AC98: 181 | AD98: 241 | AE98: 0 | AF98: 15 | AG98: 70 | AH98: 0 | AI98: 2 | AJ98: 9 | AK98: 0 | AL98: 30
A99: 2022-01-30 | B99: Legislativas | C99: União das Freguesias de Carnaxide e Queijas | D99: EB 2/3 Vieira da Silva | E99: UFCQ_10 | F99: 870 | G99: 619 | H99: 612 | I99: 4 | J99: 3 | K99: 251 | L99: 5 | M99: 36 | N99: 12 | O99: 178 | P99: 1130 | Q99: 1 | R99: 10 | S99: 9 | T99: 0 | U99: 2 | V99: 0 | W99: 18 | X99: 0 | Y99: 0 | Z99: 1 | AA99: 1 | AB99: 29 | AC99: 226 | AD99: 267 | AE99: 0 | AF99: 2 | AG99: 23 | AH99: 0 | AI99: 0 | AJ99: 14 | AK99: 0 | AL99: 20
A100: 2022-01-30 | B100: Legislativas | C100: União das Freguesias de Carnaxide e Queijas | D100: EB 2/3 Vieira da Silva | E100: UFCQ_11 | F100: 883 | G100: 630 | H100: 620 | I100: 4 | J100: 6 | K100: 253 | L100: 5 | M100: 36 | N100: 12 | O100: 178 | P100: 1131 | Q100: 1 | R100: 11 | S100: 12 | T100: 0 | U100: 2 | V100: 1 | W100: 21 | X100: 0 | Y100: 0 | Z100: 0 | AA100: 3 | AB100: 32 | AC100: 193 | AD100: 284 | AE100: 0 | AF100: 8 | AG100: 28 | AH100: 0 | AI100: 0 | AJ100: 15 | AK100: 1 | AL100: 20
A101: 2022-01-30 | B101: Legislativas | C101: União das Freguesias de Carnaxide e Queijas | D101: EB 2/3 Vieira da Silva | E101: UFCQ_12 | F101: 877 | G101: 607 | H101: 603 | I101: 3 | J101: 1 | K101: 270 | L101: 5 | M101: 36 | N101: 12 | O101: 178 | P101: 1132 | Q101: 1 | R101: 12 | S101: 17 | T101: 1 | U101: 1 | V101: 0 | W101: 21 | X101: 0 | Y101: 2 | Z101: 0 | AA101: 4 | AB101: 29 | AC101: 170 | AD101: 217 | AE101: 0 | AF101: 9 | AG101: 88 | AH101: 0 | AI101: 1 | AJ101: 13 | AK101: 0 | AL101: 30
A102: 2022-01-30 | B102: Legislativas | C102: União das Freguesias de Carnaxide e Queijas | D102: EB 2,3 Sophia de Mello Breyner | E102: UFCQ_16 | F102: 857 | G102: 538 | H102: 519 | I102: 8 | J102: 11 | K102: 319 | L102: 5 | M102: 36 | N102: 12 | O102: 179 | P102: 1136 | Q102: 1 | R102: 16 | S102: 18 | T102: 2 | U102: 0 | V102: 5 | W102: 18 | X102: 0 | Y102: 0 | Z102: 1 | AA102: 1 | AB102: 12 | AC102: 134 | AD102: 239 | AE102: 0 | AF102: 14 | AG102: 45 | AH102: 1 | AI102: 1 | AJ102: 6 | AK102: 1 | AL102: 21
A103: 2022-01-30 | B103: Legislativas | C103: União das Freguesias de Carnaxide e Queijas | D103: EB 2,3 Sophia de Mello Breyner | E103: UFCQ_17 | F103: 860 | G103: 490 | H103: 475 | I103: 8 | J103: 7 | K103: 370 | L103: 5 | M103: 36 | N103: 12 | O103: 179 | P103: 1137 | Q103: 1 | R103: 17 | S103: 9 | T103: 0 | U103: 3 | V103: 2 | W103: 22 | X103: 1 | Y103: 1 | Z103: 1 | AA103: 2 | AB103: 19 | AC103: 98 | AD103: 232 | AE103: 1 | AF103: 10 | AG103: 41 | AH103: 0 | AI103: 0 | AJ103: 3 | AK103: 1 | AL103: 29
A104: 2022-01-30 | B104: Legislativas | C104: União das Freguesias de Carnaxide e Queijas | D104: EB 2,3 Sophia de Mello Breyner | E104: UFCQ_18 | F104: 853 | G104: 433 | H104: 420 | I104: 5 | J104: 8 | K104: 420 | L104: 5 | M104: 36 | N104: 12 | O104: 179 | P104: 1138 | Q104: 1 | R104: 18 | S104: 8 | T104: 3 | U104: 2 | V104: 0 | W104: 15 | X104: 0 | Y104: 0 | Z104: 1 | AA104: 3 | AB104: 14 | AC104: 93 | AD104: 200 | AE104: 1 | AF104: 11 | AG104: 41 | AH104: 0 | AI104: 0 | AJ104: 6 | AK104: 0 | AL104: 22
A105: 2022-01-30 | B105: Legislativas | C105: União das Freguesias de Carnaxide e Queijas | D105: EB 2,3 Sophia de Mello Breyner | E105: UFCQ_19 | F105: 857 | G105: 450 | H105: 437 | I105: 1 | J105: 12 | K105: 407 | L105: 5 | M105: 36 | N105: 12 | O105: 179 | P105: 1139 | Q105: 1 | R105: 19 | S105: 8 | T105: 3 | U105: 1 | V105: 1 | W105: 17 | X105: 0 | Y105: 0 | Z105: 1 | AA105: 0 | AB105: 20 | AC105: 74 | AD105: 234 | AE105: 3 | AF105: 12 | AG105: 37 | AH105: 0 | AI105: 1 | AJ105: 3 | AK105: 0 | AL105: 22
A106: 2022-01-30 | B106: Legislativas | C106: União das Freguesias de Carnaxide e Queijas | D106: EB 2,3 Sophia de Mello Breyner | E106: UFCQ_20 | F106: 857 | G106: 510 | H106: 502 | I106: 7 | J106: 1 | K106: 347 | L106: 5 | M106: 36 | N106: 12 | O106: 179 | P106: 1140 | Q106: 1 | R106: 20 | S106: 14 | T106: 1 | U106: 1 | V106: 1 | W106: 20 | X106: 1 | Y106: 0 | Z106: 1 | AA106: 1 | AB106: 24 | AC106: 119 | AD106: 222 | AE106: 1 | AF106: 11 | AG106: 46 | AH106: 0 | AI106: 0 | AJ106: 4 | AK106: 1 | AL106: 34
A107: 2022-01-30 | B107: Legislativas | C107: União das Freguesias de Carnaxide e Queijas | D107: EB 2,3 Sophia de Mello Breyner | E107: UFCQ_21 | F107: 867 | G107: 477 | H107: 466 | I107: 8 | J107: 3 | K107: 390 | L107: 5 | M107: 36 | N107: 12 | O107: 179 | P107: 1141 | Q107: 1 | R107: 21 | S107: 19 | T107: 0 | U107: 2 | V107: 3 | W107: 15 | X107: 3 | Y107: 0 | Z107: 0 | AA107: 0 | AB107: 18 | AC107: 91 | AD107: 223 | AE107: 0 | AF107: 12 | AG107: 31 | AH107: 0 | AI107: 0 | AJ107: 5 | AK107: 0 | AL107: 44
A108: 2022-01-30 | B108: Legislativas | C108: União das Freguesias de Carnaxide e Queijas | D108: EB 2,3 Sophia de Mello Breyner | E108: UFCQ_22 | F108: 853 | G108: 499 | H108: 492 | I108: 5 | J108: 2 | K108: 354 | L108: 5 | M108: 36 | N108: 12 | O108: 179 | P108: 1142 | Q108: 1 | R108: 22 | S108: 9 | T108: 1 | U108: 4 | V108: 0 | W108: 12 | X108: 0 | Y108: 0 | Z108: 0 | AA108: 0 | AB108: 14 | AC108: 103 | AD108: 290 | AE108: 0 | AF108: 6 | AG108: 23 | AH108: 1 | AI108: 0 | AJ108: 5 | AK108: 0 | AL108: 24
A109: 2022-01-30 | B109: Legislativas | C109: União das Freguesias de Carnaxide e Queijas | D109: EB 2,3 Sophia de Mello Breyner | E109: UFCQ_23 | F109: 854 | G109: 458 | H109: 445 | I109: 9 | J109: 4 | K109: 396 | L109: 5 | M109: 36 | N109: 12 | O109: 179 | P109: 1143 | Q109: 1 | R109: 23 | S109: 13 | T109: 0 | U109: 0 | V109: 3 | W109: 21 | X109: 0 | Y109: 0 | Z109: 1 | AA109: 1 | AB109: 24 | AC109: 96 | AD109: 195 | AE109: 0 | AF109: 8 | AG109: 43 | AH109: 0 | AI109: 1 | AJ109: 6 | AK109: 1 | AL109: 32
A110: 2022-01-30 | B110: Legislativas | C110: União das Freguesias de Carnaxide e Queijas | D110: EB 2,3 Sophia de Mello Breyner | E110: UFCQ_24 | F110: 860 | G110: 516 | H110: 505 | I110: 5 | J110: 6 | K110: 344 | L110: 5 | M110: 36 | N110: 12 | O110: 179 | P110: 1144 | Q110: 1 | R110: 24 | S110: 12 | T110: 0 | U110: 1 | V110: 2 | W110: 27 | X110: 0 | Y110: 1 | Z110: 1 | AA110: 0 | AB110: 16 | AC110: 136 | AD110: 186 | AE110: 2 | AF110: 11 | AG110: 63 | AH110: 0 | AI110: 0 | AJ110: 7 | AK110: 0 | AL110: 40
A111: 2022-01-30 | B111: Legislativas | C111: União das Freguesias de Carnaxide e Queijas | D111: EB 2,3 Sophia de Mello Breyner | E111: UFCQ_25 | F111: 848 | G111: 467 | H111: 455 | I111: 7 | J111: 5 | K111: 381 | L111: 5 | M111: 36 | N111: 12 | O111: 179 | P111: 1145 | Q111: 1 | R111: 25 | S111: 11 | T111: 0 | U111: 1 | V111: 1 | W111: 29 | X111: 0 | Y111: 0 | Z111: 0 | AA111: 1 | AB111: 16 | AC111: 101 | AD111: 200 | AE111: 1 | AF111: 9 | AG111: 45 | AH111: 0 | AI111: 1 | AJ111: 6 | AK111: 0 | AL111: 33
A112: 2022-01-30 | B112: Legislativas | C112: União das Freguesias de Carnaxide e Queijas | D112: EB 2/3 Professor Noronha Feio | E112: UFCQ_26 | F112: 761 | G112: 585 | H112: 574 | I112: 9 | J112: 2 | K112: 176 | L112: 5 | M112: 36 | N112: 12 | O112: 180 | P112: 1146 | Q112: 1 | R112: 26 | S112: 17 | T112: 1 | U112: 3 | V112: 1 | W112: 31 | X112: 0 | Y112: 0 | Z112: 3 | AA112: 30 | AB112: 145 | AC112: 232 | AD112: 0 | AE112: 16 | AF112: 55 | AG112: 1 | AH112: 0 | AI112: 11 | AJ112: 0 | AK112: 28 | AL112: 0
A113: 2022-01-30 | B113: Legislativas | C113: União das Freguesias de Carnaxide e Queijas | D113: EB 2/3 Professor Noronha Feio | E113: UFCQ_27 | F113: 760 | G113: 556 | H113: 548 | I113: 2 | J113: 6 | K113: 204 | L113: 5 | M113: 36 | N113: 12 | O113: 180 | P113: 1147 | Q113: 1 | R113: 27 | S113: 11 | T113: 0 | U113: 1 | V113: 0 | W113: 31 | X113: 0 | Y113: 0 | Z113: 1 | AA113: 2 | AB113: 35 | AC113: 172 | AD113: 199 | AE113: 0 | AF113: 9 | AG113: 34 | AH113: 1 | AI113: 1 | AJ113: 6 | AK113: 1 | AL113: 44
A114: 2022-01-30 | B114: Legislativas | C114: União das Freguesias de Carnaxide e Queijas | D114: EB 2/3 Professor Noronha Feio | E114: UFCQ_28 | F114: 753 | G114: 480 | H114: 475 | I114: 4 | J114: 1 | K114: 273 | L114: 5 | M114: 36 | N114: 12 | O114: 180 | P114: 1148 | Q114: 1 | R114: 28 | S114: 13 | T114: 0 | U114: 3 | V114: 0 | W114: 24 | X114: 0 | Y114: 0 | Z114: 0 | AA114: 2 | AB114: 16 | AC114: 113 | AD114: 200 | AE114: 0 | AF114: 18 | AG114: 53 | AH114: 0 | AI114: 4 | AJ114: 5 | AK114: 0 | AL114: 24
A115: 2022-01-30 | B115: Legislativas | C115: União das Freguesias de Carnaxide e Queijas | D115: EB 2/3 Professor Noronha Feio | E115: UFCQ_29 | F115: 764 | G115: 560 | H115: 546 | I115: 11 | J115: 3 | K115: 204 | L115: 5 | M115: 36 | N115: 12 | O115: 180 | P115: 1149 | Q115: 1 | R115: 29 | S115: 10 | T115: 0 | U115: 1 | V115: 1 | W115: 15 | X115: 0 | Y115: 0 | Z115: 0 | AA115: 2 | AB115: 35 | AC115: 142 | AD115: 228 | AE115: 1 | AF115: 12 | AG115: 71 | AH115: 0 | AI115: 0 | AJ115: 8 | AK115: 0 | AL115: 20
A116: 2022-01-30 | B116: Legislativas | C116: União das Freguesias de Carnaxide e Queijas | D116: EB 2/3 Professor Noronha Feio | E116: UFCQ_30 | F116: 758 | G116: 527 | H116: 519 | I116: 6 | J116: 2 | K116: 231 | L116: 5 | M116: 36 | N116: 12 | O116: 180 | P116: 1150 | Q116: 1 | R116: 30 | S116: 12 | T116: 0 | U116: 2 | V116: 2 | W116: 27 | X116: 0 | Y116: 0 | Z116: 0 | AA116: 3 | AB116: 23 | AC116: 134 | AD116: 198 | AE116: 0 | AF116: 10 | AG116: 63 | AH116: 1 | AI116: 1 | AJ116: 4 | AK116: 0 | AL116: 39
A117: 2022-01-30 | B117: Legislativas | C117: União das Freguesias de Carnaxide e Queijas | D117: EB 2/3 Professor Noronha Feio | E117: UFCQ_31 | F117: 764 | G117: 557 | H117: 551 | I117: 5 | J117: 1 | K117: 207 | L117: 5 | M117: 36 | N117: 12 | O117: 180 | P117: 1151 | Q117: 1 | R117: 31 | S117: 19 | T117: 1 | U117: 1 | V117: 0 | W117: 21 | X117: 2 | Y117: 0 | Z117: 1 | AA117: 1 | AB117: 36 | AC117: 148 | AD117: 234 | AE117: 1 | AF117: 11 | AG117: 30 | AH117: 1 | AI117: 1 | AJ117: 5 | AK117: 0 | AL117: 38
A118: 2022-01-30 | B118: Legislativas | C118: União das Freguesias de Carnaxide e Queijas | D118: EB 2/3 Professor Noronha Feio | E118: UFCQ_32 | F118: 755 | G118: 551 | H118: 549 | I118: 2 | J118: 0 | K118: 204 | L118: 5 | M118: 36 | N118: 12 | O118: 180 | P118: 1152 | Q118: 1 | R118: 32 | S118: 4 | T118: 0 | U118: 1 | V118: 0 | W118: 21 | X118: 0 | Y118: 1 | Z118: 0 | AA118: 1 | AB118: 20 | AC118: 171 | AD118: 283 | AE118: 1 | AF118: 8 | AG118: 18 | AH118: 0 | AI118: 0 | AJ118: 5 | AK118: 0 | AL118: 15
A119: 2022-01-30 | B119: Legislativas | C119: União das Freguesias de Carnaxide e Queijas | D119: EB 2/3 Professor Noronha Feio | E119: UFCQ_33 | F119: 759 | G119: 533 | H119: 524 | I119: 3 | J119: 6 | K119: 226 | L119: 5 | M119: 36 | N119: 12 | O119: 180 | P119: 1153 | Q119: 1 | R119: 33 | S119: 18 | T119: 0 | U119: 1 | V119: 1 | W119: 28 | X119: 1 | Y119: 0 | Z119: 0 | AA119: 3 | AB119: 22 | AC119: 145 | AD119: 215 | AE119: 1 | AF119: 12 | AG119: 45 | AH119: 0 | AI119: 0 | AJ119: 6 | AK119: 0 | AL119: 26
A120: 2022-01-30 | B120: Legislativas | C120: União das Freguesias de Carnaxide e Queijas | D120: EB 2/3 Professor Noronha Feio | E120: UFCQ_34 | F120: 755 | G120: 539 | H120: 528 | I120: 9 | J120: 2 | K120: 216 | L120: 5 | M120: 36 | N120: 12 | O120: 180 | P120: 1154 | Q120: 1 | R120: 34 | S120: 16 | T120: 2 | U120: 3 | V120: 2 | W120: 17 | X120: 0 | Y120: 0 | Z120: 0 | AA120: 2 | AB120: 14 | AC120: 170 | AD120: 181 | AE120: 1 | AF120: 10 | AG120: 58 | AH120: 0 | AI120: 2 | AJ120: 9 | AK120: 1 | AL120: 40
A121: 2022-01-30 | B121: Legislativas | C121: União das Freguesias de Carnaxide e Queijas | D121: EB 2/3 Professor Noronha Feio | E121: UFCQ_35 | F121: 763 | G121: 551 | H121: 540 | I121: 10 | J121: 1 | K121: 212 | L121: 5 | M121: 36 | N121: 12 | O121: 180 | P121: 1155 | Q121: 1 | R121: 35 | S121: 15 | T121: 1 | U121: 1 | V121: 0 | W121: 29 | X121: 0 | Y121: 0 | Z121: 1 | AA121: 3 | AB121: 21 | AC121: 158 | AD121: 182 | AE121: 0 | AF121: 15 | AG121: 74 | AH121: 0 | AI121: 1 | AJ121: 4 | AK121: 1 | AL121: 34
A122: 2022-01-30 | B122: Legislativas | C122: União das Freguesias de Carnaxide e Queijas | D122: EB1 Cesário Verde | E122: UFCQ_36 | F122: 513 | G122: 374 | H122: 366 | I122: 5 | J122: 3 | K122: 139 | L122: 5 | M122: 36 | N122: 12 | O122: 181 | P122: 1156 | Q122: 1 | R122: 36 | S122: 13 | T122: 0 | U122: 0 | V122: 0 | W122: 17 | X122: 1 | Y122: 0 | Z122: 0 | AA122: 1 | AB122: 19 | AC122: 125 | AD122: 108 | AE122: 1 | AF122: 6 | AG122: 49 | AH122: 0 | AI122: 1 | AJ122: 7 | AK122: 0 | AL122: 18
A123: 2022-01-30 | B123: Legislativas | C123: União das Freguesias de Carnaxide e Queijas | D123: EB1 Cesário Verde | E123: UFCQ_37 | F123: 513 | G123: 406 | H123: 401 | I123: 3 | J123: 2 | K123: 107 | L123: 5 | M123: 36 | N123: 12 | O123: 181 | P123: 1157 | Q123: 1 | R123: 37 | S123: 13 | T123: 2 | U123: 1 | V123: 1 | W123: 21 | X123: 0 | Y123: 0 | Z123: 0 | AA123: 2 | AB123: 15 | AC123: 131 | AD123: 131 | AE123: 0 | AF123: 5 | AG123: 51 | AH123: 0 | AI123: 0 | AJ123: 7 | AK123: 0 | AL123: 21
A124: 2022-01-30 | B124: Legislativas | C124: União das Freguesias de Oeiras e São Julião da Barra, Paço de Arcos e Caxias | D124: EB1 Conde Ferreira | E124: UFOPAC_01 | F124: 918 | G124: 607 | H124: 597 | I124: 7 | J124: 3 | K124: 311 | L124: 5 | M124: 36 | N124: 13 | O124: 182 | P124: 1158 | Q124: 1 | R124: 1 | S124: 15 | T124: 0 | U124: 1 | V124: 1 | W124: 30 | X124: 0 | Y124: 0 | Z124: 0 | AA124: 1 | AB124: 26 | AC124: 196 | AD124: 214 | AE124: 0 | AF124: 18 | AG124: 59 | AH124: 0 | AI124: 1 | AJ124: 9 | AK124: 0 | AL124: 26
A125: 2022-01-30 | B125: Legislativas | C125: União das Freguesias de Oeiras e São Julião da Barra, Paço de Arcos e Caxias | D125: EB1 Conde Ferreira | E125: UFOPAC_02 | F125: 914 | G125: 578 | H125: 569 | I125: 6 | J125: 3 | K125: 336 | L125: 5 | M125: 36 | N125: 13 | O125: 182 | P125: 1159 | Q125: 1 | R125: 2 | S125: 28 | T125: 2 | U125: 1 | V125: 1 | W125: 20 | X125: 1 | Y125: 0 | Z125: 0 | AA125: 1 | AB125: 23 | AC125: 170 | AD125: 176 | AE125: 0 | AF125: 11 | AG125: 78 | AH125: 1 | AI125: 0 | AJ125: 21 | AK125: 0 | AL125: 35
A126: 2022-01-30 | B126: Legislativas | C126: União das Freguesias de Oeiras e São Julião da Barra, Paço de Arcos e Caxias | D126: EB1 Conde Ferreira | E126: UFOPAC_03 | F126: 917 | G126: 616 | H126: 608 | I126: 5 | J126: 3 | K126: 301 | L126: 5 | M126: 36 | N126: 13 | O126: 182 | P126: 1160 | Q126: 1 | R126: 3 | S126: 27 | T126: 1 | U126: 1 | V126: 2 | W126: 26 | X126: 0 | Y126: 0 | Z126: 1 | AA126: 2 | AB126: 17 | AC126: 199 | AD126: 194 | AE126: 0 | AF126: 11 | AG126: 66 | AH126: 0 | AI126: 2 | AJ126: 12 | AK126: 0 | AL126: 47
A127: 2022-01-30 | B127: Legislativas | C127: União das Freguesias de Oeiras e São Julião da Barra, Paço de Arcos e Caxias | D127: EB1 Conde Ferreira | E127: UFOPAC_04 | F127: 923 | G127: 590 | H127: 585 | I127: 2 | J127: 3 | K127: 333 | L127: 5 | M127: 36 | N127: 13 | O127: 182 | P127: 1161 | Q127: 1 | R127: 4 | S127: 11 | T127: 0 | U127: 1 | V127: 0 | W127: 21 | X127: 1 | Y127: 0 | Z127: 1 | AA127: 1 | AB127: 18 | AC127: 188 | AD127: 232 | AE127: 0 | AF127: 7 | AG127: 55 | AH127: 0 | AI127: 0 | AJ127: 16 | AK127: 1 | AL127: 32
A128: 2022-01-30 | B128: Legislativas | C128: União das Freguesias de Oeiras e São Julião da Barra, Paço de Arcos e Caxias | D128: EB1 Conde Ferreira | E128: UFOPAC_05 | F128: 917 | G128: 603 | H128: 592 | I128: 6 | J128: 5 | K128: 314 | L128: 5 | M128: 36 | N128: 13 | O128: 182 | P128: 1162 | Q128: 1 | R128: 5 | S128: 17 | T128: 1 | U128: 2 | V128: 0 | W128: 26 | X128: 0 | Y128: 1 | Z128: 0 | AA128: 1 | AB128: 15 | AC128: 173 | AD128: 227 | AE128: 0 | AF128: 12 | AG128: 54 | AH128: 0 | AI128: 0 | AJ128: 25 | AK128: 0 | AL128: 38
A129: 2022-01-30 | B129: Legislativas | C129: União das Freguesias de Oeiras e São Julião da Barra, Paço de Arcos e Caxias | D129: EB1 Conde Ferreira | E129: UFOPAC_06 | F129: 922 | G129: 626 | H129: 615 | I129: 7 | J129: 4 | K129: 296 | L129: 5 | M129: 36 | N129: 13 | O129: 182 | P129: 1163 | Q129: 1 | R129: 6 | S129: 18 | T129: 0 | U129: 2 | V129: 0 | W129: 25 | X129: 0 | Y129: 1 | Z129: 0 | AA129: 3 | AB129: 24 | AC129: 182 | AD129: 179 | AE129: 0 | AF129: 15 | AG129: 103 | AH129: 1 | AI129: 0 | AJ129: 21 | AK129: 0 | AL129: 41
A130: 2022-01-30 | B130: Legislativas | C130: União das Freguesias de Oeiras e São Julião da Barra, Paço de Arcos e Caxias | D130: EB 2,3 Conde de Oeiras | E130: UFOPAC_07 | F130: 742 | G130: 516 | H130: 506 | I130: 4 | J130: 6 | K130: 226 | L130: 5 | M130: 36 | N130: 13 | O130: 183 | P130: 1164 | Q130: 1 | R130: 7 | S130: 22 | T130: 1 | U130: 1 | V130: 0 | W130: 22 | X130: 0 | Y130: 0 | Z130: 1 | AA130: 1 | AB130: 18 | AC130: 155 | AD130: 190 | AE130: 0 | AF130: 14 | AG130: 49 | AH130: 0 | AI130: 0 | AJ130: 15 | AK130: 0 | AL130: 17
A131: 2022-01-30 | B131: Legislativas | C131: União das Freguesias de Oeiras e São Julião da Barra, Paço de Arcos e Caxias | D131: EB 2,3 Conde de Oeiras | E131: UFOPAC_08 | F131: 737 | G131: 500 | H131: 495 | I131: 3 | J131: 2 | K131: 237 | L131: 5 | M131: 36 | N131: 13 | O131: 183 | P131: 1165 | Q131: 1 | R131: 8 | S131: 15 | T131: 0 | U131: 0 | V131: 0 | W131: 23 | X131: 0 | Y131: 0 | Z131: 0 | AA131: 0 | AB131: 18 | AC131: 165 | AD131: 168 | AE131: 1 | AF131: 10 | AG131: 42 | AH131: 0 | AI131: 2 | AJ131: 11 | AK131: 0 | AL131: 40
A132: 2022-01-30 | B132: Legislativas | C132: União das Freguesias de Oeiras e São Julião da Barra, Paço de Arcos e Caxias | D132: EB 2,3 Conde de Oeiras | E132: UFOPAC_09 | F132: 744 | G132: 489 | H132: 481 | I132: 7 | J132: 1 | K132: 255 | L132: 5 | M132: 36 | N132: 13 | O132: 183 | P132: 1166 | Q132: 1 | R132: 9 | S132: 25 | T132: 0 | U132: 1 | V132: 2 | W132: 20 | X132: 0 | Y132: 1 | Z132: 0 | AA132: 2 | AB132: 14 | AC132: 149 | AD132: 169 | AE132: 0 | AF132: 7 | AG132: 44 | AH132: 0 | AI132: 1 | AJ132: 19 | AK132: 1 | AL132: 26
A133: 2022-01-30 | B133: Legislativas | C133: União das Freguesias de Oeiras e São Julião da Barra, Paço de Arcos e Caxias | D133: EB 2,3 Conde de Oeiras | E133: UFOPAC_10 | F133: 742 | G133: 494 | H133: 485 | I133: 3 | J133: 6 | K133: 248 | L133: 5 | M133: 36 | N133: 13 | O133: 183 | P133: 1167 | Q133: 1 | R133: 10 | S133: 33 | T133: 0 | U133: 2 | V133: 1 | W133: 25 | X133: 0 | Y133: 1 | Z133: 0 | AA133: 0 | AB133: 16 | AC133: 145 | AD133: 147 | AE133: 0 | AF133: 15 | AG133: 58 | AH133: 0 | AI133: 0 | AJ133: 12 | AK133: 0 | AL133: 30
A134: 2022-01-30 | B134: Legislativas | C134: União das Freguesias de Oeiras e São Julião da Barra, Paço de Arcos e Caxias | D134: EB 2,3 Conde de Oeiras | E134: UFOPAC_11 | F134: 744 | G134: 510 | H134: 503 | I134: 6 | J134: 1 | K134: 234 | L134: 5 | M134: 36 | N134: 13 | O134: 183 | P134: 1168 | Q134: 1 | R134: 11 | S134: 23 | T134: 0 | U134: 1 | V134: 1 | W134: 18 | X134: 0 | Y134: 0 | Z134: 0 | AA134: 4 | AB134: 27 | AC134: 159 | AD134: 154 | AE134: 0 | AF134: 6 | AG134: 57 | AH134: 0 | AI134: 1 | AJ134: 5 | AK134: 0 | AL134: 47
A135: 2022-01-30 | B135: Legislativas | C135: União das Freguesias de Oeiras e São Julião da Barra, Paço de Arcos e Caxias | D135: EB 2,3 Conde de Oeiras | E135: UFOPAC_12 | F135: 736 | G135: 507 | H135: 503 | I135: 1 | J135: 3 | K135: 229 | L135: 5 | M135: 36 | N135: 13 | O135: 183 | P135: 1169 | Q135: 1 | R135: 12 | S135: 11 | T135: 0 | U135: 0 | V135: 1 | W135: 33 | X135: 2 | Y135: 0 | Z135: 0 | AA135: 1 | AB135: 16 | AC135: 172 | AD135: 171 | AE135: 0 | AF135: 7 | AG135: 44 | AH135: 0 | AI135: 1 | AJ135: 21 | AK135: 0 | AL135: 23
A136: 2022-01-30 | B136: Legislativas | C136: União das Freguesias de Oeiras e São Julião da Barra, Paço de Arcos e Caxias | D136: EB 2,3 Conde de Oeiras | E136: UFOPAC_13 | F136: 739 | G136: 516 | H136: 509 | I136: 4 | J136: 3 | K136: 223 | L136: 5 | M136: 36 | N136: 13 | O136: 183 | P136: 1170 | Q136: 1 | R136: 13 | S136: 12 | T136: 1 | U136: 1 | V136: 1 | W136: 20 | X136: 0 | Y136: 1 | Z136: 0 | AA136: 0 | AB136: 21 | AC136: 173 | AD136: 196 | AE136: 0 | AF136: 11 | AG136: 36 | AH136: 0 | AI136: 0 | AJ136: 17 | AK136: 0 | AL136: 19
A137: 2022-01-30 | B137: Legislativas | C137: União das Freguesias de Oeiras e São Julião da Barra, Paço de Arcos e Caxias | D137: EB 2,3 Conde de Oeiras | E137: UFOPAC_14 | F137: 748 | G137: 543 | H137: 539 | I137: 3 | J137: 1 | K137: 205 | L137: 5 | M137: 36 | N137: 13 | O137: 183 | P137: 1171 | Q137: 1 | R137: 14 | S137: 23 | T137: 0 | U137: 1 | V137: 2 | W137: 30 | X137: 0 | Y137: 0 | Z137: 1 | AA137: 0 | AB137: 22 | AC137: 159 | AD137: 194 | AE137: 1 | AF137: 11 | AG137: 50 | AH137: 0 | AI137: 0 | AJ137: 14 | AK137: 0 | AL137: 31
A138: 2022-01-30 | B138: Legislativas | C138: União das Freguesias de Oeiras e São Julião da Barra, Paço de Arcos e Caxias | D138: EB 2,3 Conde de Oeiras | E138: UFOPAC_15 | F138: 748 | G138: 506 | H138: 494 | I138: 6 | J138: 6 | K138: 242 | L138: 5 | M138: 36 | N138: 13 | O138: 183 | P138: 1172 | Q138: 1 | R138: 15 | S138: 24 | T138: 1 | U138: 0 | V138: 1 | W138: 21 | X138: 0 | Y138: 0 | Z138: 0 | AA138: 2 | AB138: 22 | AC138: 140 | AD138: 153 | AE138: 0 | AF138: 10 | AG138: 72 | AH138: 0 | AI138: 0 | AJ138: 10 | AK138: 1 | AL138: 37
A139: 2022-01-30 | B139: Legislativas | C139: União das Freguesias de Oeiras e São Julião da Barra, Paço de Arcos e Caxias | D139: EB 2,3 Conde de Oeiras | E139: UFOPAC_16 | F139: 758 | G139: 523 | H139: 515 | I139: 7 | J139: 1 | K139: 235 | L139: 5 | M139: 36 | N139: 13 | O139: 183 | P139: 1173 | Q139: 1 | R139: 16 | S139: 21 | T139: 1 | U139: 1 | V139: 1 | W139: 22 | X139: 2 | Y139: 0 | Z139: 0 | AA139: 4 | AB139: 20 | AC139: 132 | AD139: 193 | AE139: 2 | AF139: 19 | AG139: 51 | AH139: 0 | AI139: 0 | AJ139: 11 | AK139: 1 | AL139: 34
A140: 2022-01-30 | B140: Legislativas | C140: União das Freguesias de Oeiras e São Julião da Barra, Paço de Arcos e Caxias | D140: EB1 Gomes Freire de Andrade | E140: UFOPAC_17 | F140: 787 | G140: 552 | H140: 545 | I140: 6 | J140: 1 | K140: 235 | L140: 5 | M140: 36 | N140: 13 | O140: 184 | P140: 1174 | Q140: 1 | R140: 17 | S140: 10 | T140: 1 | U140: 1 | V140: 0 | W140: 24 | X140: 0 | Y140: 0 | Z140: 0 | AA140: 2 | AB140: 33 | AC140: 152 | AD140: 219 | AE140: 0 | AF140: 10 | AG140: 54 | AH140: 0 | AI140: 0 | AJ140: 14 | AK140: 0 | AL140: 25
A141: 2022-01-30 | B141: Legislativas | C141: União das Freguesias de Oeiras e São Julião da Barra, Paço de Arcos e Caxias | D141: EB1 Gomes Freire de Andrade | E141: UFOPAC_18 | F141: 793 | G141: 568 | H141: 559 | I141: 7 | J141: 2 | K141: 225 | L141: 5 | M141: 36 | N141: 13 | O141: 184 | P141: 1175 | Q141: 1 | R141: 18 | S141: 19 | T141: 1 | U141: 2 | V141: 0 | W141: 36 | X141: 0 | Y141: 0 | Z141: 0 | AA141: 2 | AB141: 16 | AC141: 127 | AD141: 251 | AE141: 2 | AF141: 16 | AG141: 51 | AH141: 0 | AI141: 0 | AJ141: 8 | AK141: 0 | AL141: 28
A142: 2022-01-30 | B142: Legislativas | C142: União das Freguesias de Oeiras e São Julião da Barra, Paço de Arcos e Caxias | D142: EB1 Gomes Freire de Andrade | E142: UFOPAC_19 | F142: 787 | G142: 515 | H142: 506 | I142: 6 | J142: 3 | K142: 272 | L142: 5 | M142: 36 | N142: 13 | O142: 184 | P142: 1176 | Q142: 1 | R142: 19 | S142: 21 | T142: 0 | U142: 1 | V142: 0 | W142: 25 | X142: 2 | Y142: 0 | Z142: 1 | AA142: 1 | AB142: 16 | AC142: 147 | AD142: 184 | AE142: 0 | AF142: 16 | AG142: 47 | AH142: 0 | AI142: 1 | AJ142: 5 | AK142: 1 | AL142: 38
A143: 2022-01-30 | B143: Legislativas | C143: União das Freguesias de Oeiras e São Julião da Barra, Paço de Arcos e Caxias | D143: EB1 Gomes Freire de Andrade | E143: UFOPAC_20 | F143: 792 | G143: 510 | H143: 505 | I143: 5 | J143: 0 | K143: 282 | L143: 5 | M143: 36 | N143: 13 | O143: 184 | P143: 1177 | Q143: 1 | R143: 20 | S143: 13 | T143: 1 | U143: 1 | V143: 1 | W143: 39 | X143: 0 | Y143: 0 | Z143: 0 | AA143: 0 | AB143: 18 | AC143: 132 | AD143: 180 | AE143: 0 | AF143: 10 | AG143: 64 | AH143: 0 | AI143: 1 | AJ143: 11 | AK143: 1 | AL143: 33
A144: 2022-01-30 | B144: Legislativas | C144: União das Freguesias de Oeiras e São Julião da Barra, Paço de Arcos e Caxias | D144: EB1 Gomes Freire de Andrade | E144: UFOPAC_21 | F144: 793 | G144: 458 | H144: 450 | I144: 3 | J144: 5 | K144: 335 | L144: 5 | M144: 36 | N144: 13 | O144: 184 | P144: 1178 | Q144: 1 | R144: 21 | S144: 13 | T144: 0 | U144: 1 | V144: 0 | W144: 27 | X144: 0 | Y144: 0 | Z144: 0 | AA144: 1 | AB144: 21 | AC144: 150 | AD144: 167 | AE144: 1 | AF144: 4 | AG144: 39 | AH144: 0 | AI144: 0 | AJ144: 3 | AK144: 1 | AL144: 22
A145: 2022-01-30 | B145: Legislativas | C145: União das Freguesias de Oeiras e São Julião da Barra, Paço de Arcos e Caxias | D145: EB1 Gomes Freire de Andrade | E145: UFOPAC_22 | F145: 790 | G145: 513 | H145: 506 | I145: 5 | J145: 2 | K145: 277 | L145: 5 | M145: 36 | N145: 13 | O145: 184 | P145: 1179 | Q145: 1 | R145: 22 | S145: 21 | T145: 0 | U145: 0 | V145: 1 | W145: 28 | X145: 0 | Y145: 0 | Z145: 1 | AA145: 3 | AB145: 15 | AC145: 139 | AD145: 169 | AE145: 0 | AF145: 12 | AG145: 66 | AH145: 0 | AI145: 2 | AJ145: 11 | AK145: 1 | AL145: 37
A146: 2022-01-30 | B146: Legislativas | C146: União das Freguesias de Oeiras e São Julião da Barra, Paço de Arcos e Caxias | D146: EB1 Gomes Freire de Andrade | E146: UFOPAC_29 | F146: 792 | G146: 535 | H146: 532 | I146: 2 | J146: 1 | K146: 257 | L146: 5 | M146: 36 | N146: 13 | O146: 184 | P146: 1186 | Q146: 1 | R146: 29 | S146: 16 | T146: 0 | U146: 2 | V146: 1 | W146: 27 | X146: 1 | Y146: 0 | Z146: 0 | AA146: 1 | AB146: 19 | AC146: 180 | AD146: 190 | AE146: 0 | AF146: 12 | AG146: 39 | AH146: 0 | AI146: 0 | AJ146: 13 | AK146: 1 | AL146: 30
A147: 2022-01-30 | B147: Legislativas | C147: União das Freguesias de Oeiras e São Julião da Barra, Paço de Arcos e Caxias | D147: EB1 Gomes Freire de Andrade | E147: UFOPAC_30 | F147: 789 | G147: 503 | H147: 494 | I147: 5 | J147: 4 | K147: 286 | L147: 5 | M147: 36 | N147: 13 | O147: 184 | P147: 1187 | Q147: 1 | R147: 30 | S147: 15 | T147: 2 | U147: 2 | V147: 2 | W147: 32 | X147: 1 | Y147: 0 | Z147: 1 | AA147: 2 | AB147: 19 | AC147: 126 | AD147: 178 | AE147: 0 | AF147: 10 | AG147: 67 | AH147: 0 | AI147: 1 | AJ147: 9 | AK147: 1 | AL147: 26
A148: 2022-01-30 | B148: Legislativas | C148: União das Freguesias de Oeiras e São Julião da Barra, Paço de Arcos e Caxias | D148: EB1 Gomes Freire de Andrade | E148: UFOPAC_31 | F148: 788 | G148: 527 | H148: 517 | I148: 6 | J148: 4 | K148: 261 | L148: 5 | M148: 36 | N148: 13 | O148: 184 | P148: 1188 | Q148: 1 | R148: 31 | S148: 22 | T148: 1 | U148: 1 | V148: 1 | W148: 24 | X148: 0 | Y148: 1 | Z148: 0 | AA148: 2 | AB148: 21 | AC148: 148 | AD148: 143 | AE148: 0 | AF148: 17 | AG148: 80 | AH148: 0 | AI148: 0 | AJ148: 6 | AK148: 2 | AL148: 48
A149: 2022-01-30 | B149: Legislativas | C149: União das Freguesias de Oeiras e São Julião da Barra, Paço de Arcos e Caxias | D149: EB1 Gomes Freire de Andrade | E149: UFOPAC_32 | F149: 793 | G149: 490 | H149: 481 | I149: 6 | J149: 3 | K149: 303 | L149: 5 | M149: 36 | N149: 13 | O149: 184 | P149: 1189 | Q149: 1 | R149: 32 | S149: 23 | T149: 0 | U149: 3 | V149: 2 | W149: 35 | X149: 0 | Y149: 0 | Z149: 1 | AA149: 1 | AB149: 20 | AC149: 129 | AD149: 163 | AE149: 0 | AF149: 16 | AG149: 54 | AH149: 0 | AI149: 1 | AJ149: 9 | AK149: 3 | AL149: 21
A150: 2022-01-30 | B150: Legislativas | C150: União das Freguesias de Oeiras e São Julião da Barra, Paço de Arcos e Caxias | D150: EB1 Gomes Freire de Andrade | E150: UFOPAC_33 | F150: 797 | G150: 484 | H150: 477 | I150: 4 | J150: 3 | K150: 313 | L150: 5 | M150: 36 | N150: 13 | O150: 184 | P150: 1190 | Q150: 1 | R150: 33 | S150: 13 | T150: 0 | U150: 2 | V150: 0 | W150: 25 | X150: 0 | Y150: 0 | Z150: 0 | AA150: 5 | AB150: 16 | AC150: 130 | AD150: 176 | AE150: 0 | AF150: 18 | AG150: 53 | AH150: 0 | AI150: 0 | AJ150: 15 | AK150: 0 | AL150: 24
A151: 2022-01-30 | B151: Legislativas | C151: União das Freguesias de Oeiras e São Julião da Barra, Paço de Arcos e Caxias | D151: EB1 Gomes Freire de Andrade | E151: UFOPAC_23 | F151: 798 | G151: 548 | H151: 537 | I151: 8 | J151: 3 | K151: 250 | L151: 5 | M151: 36 | N151: 13 | O151: 184 | P151: 1180 | Q151: 1 | R151: 23 | S151: 22 | T151: 1 | U151: 0 | V151: 2 | W151: 30 | X151: 1 | Y151: 1 | Z151: 1 | AA151: 2 | AB151: 20 | AC151: 166 | AD151: 180 | AE151: 2 | AF151: 19 | AG151: 56 | AH151: 0 | AI151: 0 | AJ151: 8 | AK151: 0 | AL151: 26
A152: 2022-01-30 | B152: Legislativas | C152: União das Freguesias de Oeiras e São Julião da Barra, Paço de Arcos e Caxias | D152: EB1 Gomes Freire de Andrade | E152: UFOPAC_24 | F152: 792 | G152: 531 | H152: 520 | I152: 8 | J152: 3 | K152: 261 | L152: 5 | M152: 36 | N152: 13 | O152: 184 | P152: 1181 | Q152: 1 | R152: 24 | S152: 16 | T152: 0 | U152: 2 | V152: 0 | W152: 23 | X152: 0 | Y152: 0 | Z152: 0 | AA152: 1 | AB152: 18 | AC152: 172 | AD152: 180 | AE152: 1 | AF152: 4 | AG152: 54 | AH152: 0 | AI152: 0 | AJ152: 9 | AK152: 0 | AL152: 40
A153: 2022-01-30 | B153: Legislativas | C153: União das Freguesias de Oeiras e São Julião da Barra, Paço de Arcos e Caxias | D153: EB1 Gomes Freire de Andrade | E153: UFOPAC_25 | F153: 790 | G153: 512 | H153: 505 | I153: 2 | J153: 5 | K153: 278 | L153: 5 | M153: 36 | N153: 13 | O153: 184 | P153: 1182 | Q153: 1 | R153: 25 | S153: 16 | T153: 0 | U153: 1 | V153: 1 | W153: 23 | X153: 0 | Y153: 1 | Z153: 0 | AA153: 2 | AB153: 20 | AC153: 145 | AD153: 203 | AE153: 0 | AF153: 14 | AG153: 42 | AH153: 0 | AI153: 0 | AJ153: 10 | AK153: 0 | AL153: 27
A154: 2022-01-30 | B154: Legislativas | C154: União das Freguesias de Oeiras e São Julião da Barra, Paço de Arcos e Caxias | D154: EB1 Gomes Freire de Andrade | E154: UFOPAC_26 | F154: 794 | G154: 532 | H154: 527 | I154: 1 | J154: 4 | K154: 262 | L154: 5 | M154: 36 | N154: 13 | O154: 184 | P154: 1183 | Q154: 1 | R154: 26 | S154: 22 | T154: 1 | U154: 0 | V154: 0 | W154: 30 | X154: 2 | Y154: 0 | Z154: 0 | AA154: 2 | AB154: 16 | AC154: 136 | AD154: 220 | AE154: 0 | AF154: 17 | AG154: 50 | AH154: 0 | AI154: 1 | AJ154: 10 | AK154: 1 | AL154: 19
A155: 2022-01-30 | B155: Legislativas | C155: União das Freguesias de Oeiras e São Julião da Barra, Paço de Arcos e Caxias | D155: EB1 Gomes Freire de Andrade | E155: UFOPAC_27 | F155: 792 | G155: 518 | H155: 518 | I155: 0 | J155: 0 | K155: 274 | L155: 5 | M155: 36 | N155: 13 | O155: 184 | P155: 1184 | Q155: 1 | R155: 27 | S155: 7 | T155: 1 | U155: 2 | V155: 0 | W155: 20 | X155: 0 | Y155: 0 | Z155: 0 | AA155: 2 | AB155: 13 | AC155: 154 | AD155: 267 | AE155: 0 | AF155: 10 | AG155: 16 | AH155: 0 | AI155: 0 | AJ155: 10 | AK155: 0 | AL155: 16
A156: 2022-01-30 | B156: Legislativas | C156: União das Freguesias de Oeiras e São Julião da Barra, Paço de Arcos e Caxias | D156: EB1 Gomes Freire de Andrade | E156: UFOPAC_28 | F156: 786 | G156: 534 | H156: 527 | I156: 2 | J156: 5 | K156: 252 | L156: 5 | M156: 36 | N156: 13 | O156: 184 | P156: 1185 | Q156: 1 | R156: 28 | S156: 6 | T156: 0 | U156: 5 | V156: 0 | W156: 18 | X156: 0 | Y156: 0 | Z156: 0 | AA156: 3 | AB156: 22 | AC156: 175 | AD156: 235 | AE156: 0 | AF156: 4 | AG156: 21 | AH156: 0 | AI156: 0 | AJ156: 14 | AK156: 0 | AL156: 24
A157: 2022-01-30 | B157: Legislativas | C157: União das Freguesias de Oeiras e São Julião da Barra, Paço de Arcos e Caxias | D157: EB 2,3 S. Julião da Barra | E157: UFOPAC_34 | F157: 680 | G157: 470 | H157: 459 | I157: 7 | J157: 4 | K157: 210 | L157: 5 | M157: 36 | N157: 13 | O157: 185 | P157: 1191 | Q157: 1 | R157: 34 | S157: 16 | T157: 0 | U157: 1 | V157: 3 | W157: 16 | X157: 0 | Y157: 0 | Z157: 0 | AA157: 7 | AB157: 25 | AC157: 146 | AD157: 126 | AE157: 0 | AF157: 9 | AG157: 62 | AH157: 2 | AI157: 1 | AJ157: 15 | AK157: 2 | AL157: 28
A158: 2022-01-30 | B158: Legislativas | C158: União das Freguesias de Oeiras e São Julião da Barra, Paço de Arcos e Caxias | D158: EB 2,3 S. Julião da Barra | E158: UFOPAC_35 | F158: 682 | G158: 471 | H158: 467 | I158: 2 | J158: 2 | K158: 211 | L158: 5 | M158: 36 | N158: 13 | O158: 185 | P158: 1192 | Q158: 1 | R158: 35 | S158: 18 | T158: 0 | U158: 0 | V158: 1 | W158: 13 | X158: 1 | Y158: 0 | Z158: 0 | AA158: 2 | AB158: 22 | AC158: 146 | AD158: 147 | AE158: 0 | AF158: 12 | AG158: 59 | AH158: 0 | AI158: 1 | AJ158: 16 | AK158: 1 | AL158: 28
A159: 2022-01-30 | B159: Legislativas | C159: União das Freguesias de Oeiras e São Julião da Barra, Paço de Arcos e Caxias | D159: EB 2,3 S. Julião da Barra | E159: UFOPAC_36 | F159: 675 | G159: 460 | H159: 449 | I159: 6 | J159: 5 | K159: 215 | L159: 5 | M159: 36 | N159: 13 | O159: 185 | P159: 1193 | Q159: 1 | R159: 36 | S159: 10 | T159: 0 | U159: 0 | V159: 0 | W159: 20 | X159: 2 | Y159: 0 | Z159: 0 | AA159: 1 | AB159: 29 | AC159: 150 | AD159: 138 | AE159: 0 | AF159: 8 | AG159: 54 | AH159: 0 | AI159: 0 | AJ159: 11 | AK159: 1 | AL159: 25
A160: 2022-01-30 | B160: Legislativas | C160: União das Freguesias de Oeiras e São Julião da Barra, Paço de Arcos e Caxias | D160: EB 2,3 S. Julião da Barra | E160: UFOPAC_37 | F160: 680 | G160: 464 | H160: 457 | I160: 3 | J160: 4 | K160: 216 | L160: 5 | M160: 36 | N160: 13 | O160: 185 | P160: 1194 | Q160: 1 | R160: 37 | S160: 15 | T160: 1 | U160: 2 | V160: 1 | W160: 19 | X160: 0 | Y160: 0 | Z160: 1 | AA160: 1 | AB160: 22 | AC160: 143 | AD160: 161 | AE160: 0 | AF160: 8 | AG160: 46 | AH160: 0 | AI160: 1 | AJ160: 16 | AK160: 0 | AL160: 20
A161: 2022-01-30 | B161: Legislativas | C161: União das Freguesias de Oeiras e São Julião da Barra, Paço de Arcos e Caxias | D161: EB 2,3 S. Julião da Barra | E161: UFOPAC_38 | F161: 687 | G161: 480 | H161: 467 | I161: 9 | J161: 4 | K161: 207 | L161: 5 | M161: 36 | N161: 13 | O161: 185 | P161: 1195 | Q161: 1 | R161: 38 | S161: 21 | T161: 1 | U161: 2 | V161: 0 | W161: 26 | X161: 0 | Y161: 0 | Z161: 0 | AA161: 3 | AB161: 15 | AC161: 127 | AD161: 157 | AE161: 0 | AF161: 14 | AG161: 65 | AH161: 0 | AI161: 1 | AJ161: 11 | AK161: 0 | AL161: 24
A162: 2022-01-30 | B162: Legislativas | C162: União das Freguesias de Oeiras e São Julião da Barra, Paço de Arcos e Caxias | D162: Escola Náutica Infante D. Henrique | E162: UFOPAC_39 | F162: 787 | G162: 520 | H162: 513 | I162: 6 | J162: 1 | K162: 267 | L162: 5 | M162: 36 | N162: 13 | O162: 186 | P162: 1196 | Q162: 1 | R162: 39 | S162: 26 | T162: 0 | U162: 4 | V162: 1 | W162: 25 | X162: 0 | Y162: 0 | Z162: 1 | AA162: 3 | AB162: 22 | AC162: 141 | AD162: 176 | AE162: 0 | AF162: 13 | AG162: 70 | AH162: 1 | AI162: 1 | AJ162: 11 | AK162: 1 | AL162: 17
A163: 2022-01-30 | B163: Legislativas | C163: União das Freguesias de Oeiras e São Julião da Barra, Paço de Arcos e Caxias | D163: Escola Náutica Infante D. Henrique | E163: UFOPAC_40 | F163: 787 | G163: 538 | H163: 528 | I163: 5 | J163: 5 | K163: 249 | L163: 5 | M163: 36 | N163: 13 | O163: 186 | P163: 1197 | Q163: 1 | R163: 40 | S163: 21 | T163: 0 | U163: 1 | V163: 2 | W163: 22 | X163: 0 | Y163: 1 | Z163: 0 | AA163: 3 | AB163: 30 | AC163: 160 | AD163: 201 | AE163: 0 | AF163: 6 | AG163: 41 | AH163: 0 | AI163: 2 | AJ163: 7 | AK163: 0 | AL163: 31
A164: 2022-01-30 | B164: Legislativas | C164: União das Freguesias de Oeiras e São Julião da Barra, Paço de Arcos e Caxias | D164: Escola Náutica Infante D. Henrique | E164: UFOPAC_41 | F164: 783 | G164: 514 | H164: 504 | I164: 7 | J164: 3 | K164: 269 | L164: 5 | M164: 36 | N164: 13 | O164: 186 | P164: 1198 | Q164: 1 | R164: 41 | S164: 17 | T164: 0 | U164: 1 | V164: 1 | W164: 22 | X164: 0 | Y164: 0 | Z164: 0 | AA164: 4 | AB164: 18 | AC164: 151 | AD164: 176 | AE164: 0 | AF164: 11 | AG164: 55 | AH164: 0 | AI164: 0 | AJ164: 12 | AK164: 0 | AL164: 36
A165: 2022-01-30 | B165: Legislativas | C165: União das Freguesias de Oeiras e São Julião da Barra, Paço de Arcos e Caxias | D165: Escola Náutica Infante D. Henrique | E165: UFOPAC_42 | F165: 817 | G165: 472 | H165: 462 | I165: 5 | J165: 5 | K165: 345 | L165: 5 | M165: 36 | N165: 13 | O165: 186 | P165: 1199 | Q165: 1 | R165: 42 | S165: 7 | T165: 1 | U165: 2 | V165: 1 | W165: 30 | X165: 0 | Y165: 1 | Z165: 0 | AA165: 1 | AB165: 24 | AC165: 104 | AD165: 208 | AE165: 0 | AF165: 14 | AG165: 28 | AH165: 0 | AI165: 1 | AJ165: 5 | AK165: 1 | AL165: 34
A166: 2022-01-30 | B166: Legislativas | C166: União das Freguesias de Oeiras e São Julião da Barra, Paço de Arcos e Caxias | D166: Escola Náutica Infante D. Henrique | E166: UFOPAC_43 | F166: 813 | G166: 498 | H166: 490 | I166: 3 | J166: 5 | K166: 315 | L166: 5 | M166: 36 | N166: 13 | O166: 186 | P166: 1200 | Q166: 1 | R166: 43 | S166: 12 | T166: 0 | U166: 1 | V166: 0 | W166: 30 | X166: 1 | Y166: 0 | Z166: 0 | AA166: 2 | AB166: 27 | AC166: 121 | AD166: 218 | AE166: 0 | AF166: 7 | AG166: 21 | AH166: 0 | AI166: 0 | AJ166: 15 | AK166: 0 | AL166: 35
A167: 2022-01-30 | B167: Legislativas | C167: União das Freguesias de Oeiras e São Julião da Barra, Paço de Arcos e Caxias | D167: Escola Náutica Infante D. Henrique | E167: UFOPAC_44 | F167: 819 | G167: 473 | H167: 466 | I167: 5 | J167: 2 | K167: 346 | L167: 5 | M167: 36 | N167: 13 | O167: 186 | P167: 1201 | Q167: 1 | R167: 44 | S167: 9 | T167: 1 | U167: 1 | V167: 0 | W167: 35 | X167: 1 | Y167: 0 | Z167: 3 | AA167: 0 | AB167: 23 | AC167: 108 | AD167: 195 | AE167: 1 | AF167: 16 | AG167: 32 | AH167: 0 | AI167: 1 | AJ167: 7 | AK167: 0 | AL167: 33
A168: 2022-01-30 | B168: Legislativas | C168: União das Freguesias de Oeiras e São Julião da Barra, Paço de Arcos e Caxias | D168: EB 2,3 Dr. Joaquim de Barros | E168: UFOPAC_45 | F168: 836 | G168: 581 | H168: 565 | I168: 11 | J168: 5 | K168: 255 | L168: 5 | M168: 36 | N168: 13 | O168: 187 | P168: 1202 | Q168: 1 | R168: 45 | S168: 21 | T168: 0 | U168: 1 | V168: 2 | W168: 31 | X168: 0 | Y168: 0 | Z168: 0 | AA168: 3 | AB168: 29 | AC168: 198 | AD168: 161 | AE168: 0 | AF168: 11 | AG168: 64 | AH168: 0 | AI168: 2 | AJ168: 12 | AK168: 0 | AL168: 30
A169: 2022-01-30 | B169: Legislativas | C169: União das Freguesias de Oeiras e São Julião da Barra, Paço de Arcos e Caxias | D169: EB 2,3 Dr. Joaquim de Barros | E169: UFOPAC_46 | F169: 839 | G169: 570 | H169: 561 | I169: 5 | J169: 4 | K169: 269 | L169: 5 | M169: 36 | N169: 13 | O169: 187 | P169: 1203 | Q169: 1 | R169: 46 | S169: 23 | T169: 0 | U169: 0 | V169: 0 | W169: 30 | X169: 1 | Y169: 0 | Z169: 1 | AA169: 1 | AB169: 36 | AC169: 169 | AD169: 195 | AE169: 0 | AF169: 7 | AG169: 58 | AH169: 0 | AI169: 0 | AJ169: 15 | AK169: 0 | AL169: 25
A170: 2022-01-30 | B170: Legislativas | C170: União das Freguesias de Oeiras e São Julião da Barra, Paço de Arcos e Caxias | D170: EB 2,3 Dr. Joaquim de Barros | E170: UFOPAC_47 | F170: 830 | G170: 555 | H170: 547 | I170: 7 | J170: 1 | K170: 275 | L170: 5 | M170: 36 | N170: 13 | O170: 187 | P170: 1204 | Q170: 1 | R170: 47 | S170: 29 | T170: 0 | U170: 0 | V170: 1 | W170: 21 | X170: 0 | Y170: 0 | Z170: 0 | AA170: 1 | AB170: 20 | AC170: 162 | AD170: 188 | AE170: 0 | AF170: 13 | AG170: 65 | AH170: 0 | AI170: 0 | AJ170: 19 | AK170: 0 | AL170: 28
A171: 2022-01-30 | B171: Legislativas | C171: União das Freguesias de Oeiras e São Julião da Barra, Paço de Arcos e Caxias | D171: EB JI/1 Maria Luciana Seruca | E171: UFOPAC_48 | F171: 728 | G171: 506 | H171: 496 | I171: 7 | J171: 3 | K171: 222 | L171: 5 | M171: 36 | N171: 13 | O171: 188 | P171: 1205 | Q171: 1 | R171: 48 | S171: 19 | T171: 1 | U171: 0 | V171: 1 | W171: 28 | X171: 1 | Y171: 0 | Z171: 0 | AA171: 1 | AB171: 15 | AC171: 145 | AD171: 178 | AE171: 0 | AF171: 16 | AG171: 49 | AH171: 0 | AI171: 1 | AJ171: 10 | AK171: 0 | AL171: 31
A172: 2022-01-30 | B172: Legislativas | C172: União das Freguesias de Oeiras e São Julião da Barra, Paço de Arcos e Caxias | D172: EB JI/1 Maria Luciana Seruca | E172: UFOPAC_49 | F172: 724 | G172: 473 | H172: 462 | I172: 10 | J172: 1 | K172: 251 | L172: 5 | M172: 36 | N172: 13 | O172: 188 | P172: 1206 | Q172: 1 | R172: 49 | S172: 16 | T172: 1 | U172: 2 | V172: 3 | W172: 30 | X172: 0 | Y172: 0 | Z172: 1 | AA172: 1 | AB172: 15 | AC172: 123 | AD172: 146 | AE172: 0 | AF172: 14 | AG172: 65 | AH172: 0 | AI172: 1 | AJ172: 10 | AK172: 1 | AL172: 33
A173: 2022-01-30 | B173: Legislativas | C173: União das Freguesias de Oeiras e São Julião da Barra, Paço de Arcos e Caxias | D173: EB JI/1 Maria Luciana Seruca | E173: UFOPAC_50 | F173: 722 | G173: 449 | H173: 435 | I173: 6 | J173: 8 | K173: 273 | L173: 5 | M173: 36 | N173: 13 | O173: 188 | P173: 1207 | Q173: 1 | R173: 50 | S173: 18 | T173: 1 | U173: 1 | V173: 1 | W173: 18 | X173: 0 | Y173: 0 | Z173: 1 | AA173: 1 | AB173: 19 | AC173: 117 | AD173: 146 | AE173: 0 | AF173: 5 | AG173: 60 | AH173: 0 | AI173: 1 | AJ173: 12 | AK173: 0 | AL173: 34
A174: 2022-01-30 | B174: Legislativas | C174: União das Freguesias de Oeiras e São Julião da Barra, Paço de Arcos e Caxias | D174: EB JI/1 Maria Luciana Seruca | E174: UFOPAC_51 | F174: 726 | G174: 505 | H174: 495 | I174: 5 | J174: 5 | K174: 221 | L174: 5 | M174: 36 | N174: 13 | O174: 188 | P174: 1208 | Q174: 1 | R174: 51 | S174: 13 | T174: 0 | U174: 0 | V174: 1 | W174: 33 | X174: 0 | Y174: 0 | Z174: 0 | AA174: 1 | AB174: 19 | AC174: 135 | AD174: 164 | AE174: 0 | AF174: 14 | AG174: 68 | AH174: 0 | AI174: 0 | AJ174: 15 | AK174: 0 | AL174: 32
A175: 2022-01-30 | B175: Legislativas | C175: União das Freguesias de Oeiras e São Julião da Barra, Paço de Arcos e Caxias | D175: EB JI/1 Maria Luciana Seruca | E175: UFOPAC_52 | F175: 726 | G175: 509 | H175: 499 | I175: 8 | J175: 2 | K175: 217 | L175: 5 | M175: 36 | N175: 13 | O175: 188 | P175: 1209 | Q175: 1 | R175: 52 | S175: 12 | T175: 1 | U175: 2 | V175: 1 | W175: 35 | X175: 0 | Y175: 0 | Z175: 0 | AA175: 0 | AB175: 15 | AC175: 157 | AD175: 177 | AE175: 0 | AF175: 7 | AG175: 41 | AH175: 1 | AI175: 0 | AJ175: 7 | AK175: 1 | AL175: 42
A176: 2022-01-30 | B176: Legislativas | C176: União das Freguesias de Oeiras e São Julião da Barra, Paço de Arcos e Caxias | D176: EB JI/1 Maria Luciana Seruca | E176: UFOPAC_53 | F176: 722 | G176: 501 | H176: 493 | I176: 6 | J176: 2 | K176: 221 | L176: 5 | M176: 36 | N176: 13 | O176: 188 | P176: 1210 | Q176: 1 | R176: 53 | S176: 13 | T176: 2 | U176: 1 | V176: 4 | W176: 21 | X176: 0 | Y176: 0 | Z176: 0 | AA176: 2 | AB176: 16 | AC176: 147 | AD176: 192 | AE176: 0 | AF176: 14 | AG176: 39 | AH176: 0 | AI176: 0 | AJ176: 14 | AK176: 1 | AL176: 27
A177: 2022-01-30 | B177: Legislativas | C177: União das Freguesias de Oeiras e São Julião da Barra, Paço de Arcos e Caxias | D177: EB JI/1 Maria Luciana Seruca | E177: UFOPAC_54 | F177: 725 | G177: 470 | H177: 457 | I177: 7 | J177: 6 | K177: 255 | L177: 5 | M177: 36 | N177: 13 | O177: 188 | P177: 1211 | Q177: 1 | R177: 54 | S177: 14 | T177: 1 | U177: 3 | V177: 0 | W177: 22 | X177: 1 | Y177: 0 | Z177: 0 | AA177: 1 | AB177: 13 | AC177: 130 | AD177: 151 | AE177: 0 | AF177: 14 | AG177: 69 | AH177: 0 | AI177: 0 | AJ177: 7 | AK177: 0 | AL177: 31
A178: 2022-01-30 | B178: Legislativas | C178: União das Freguesias de Oeiras e São Julião da Barra, Paço de Arcos e Caxias | D178: EB JI/1 Maria Luciana Seruca | E178: UFOPAC_55 | F178: 726 | G178: 495 | H178: 487 | I178: 5 | J178: 3 | K178: 231 | L178: 5 | M178: 36 | N178: 13 | O178: 188 | P178: 1212 | Q178: 1 | R178: 55 | S178: 15 | T178: 0 | U178: 2 | V178: 3 | W178: 26 | X178: 0 | Y178: 0 | Z178: 0 | AA178: 2 | AB178: 20 | AC178: 148 | AD178: 149 | AE178: 0 | AF178: 14 | AG178: 67 | AH178: 0 | AI178: 0 | AJ178: 10 | AK178: 1 | AL178: 30
A179: 2022-01-30 | B179: Legislativas | C179: União das Freguesias de Oeiras e São Julião da Barra, Paço de Arcos e Caxias | D179: EB1 São Bruno | E179: UFOPAC_56 | F179: 728 | G179: 494 | H179: 489 | I179: 4 | J179: 1 | K179: 234 | L179: 5 | M179: 36 | N179: 13 | O179: 189 | P179: 1213 | Q179: 1 | R179: 56 | S179: 11 | T179: 1 | U179: 1 | V179: 1 | W179: 28 | X179: 1 | Y179: 0 | Z179: 1 | AA179: 2 | AB179: 12 | AC179: 133 | AD179: 207 | AE179: 0 | AF179: 13 | AG179: 51 | AH179: 0 | AI179: 0 | AJ179: 9 | AK179: 0 | AL179: 18
A180: 2022-01-30 | B180: Legislativas | C180: União das Freguesias de Oeiras e São Julião da Barra, Paço de Arcos e Caxias | D180: EB1 São Bruno | E180: UFOPAC_57 | F180: 727 | G180: 480 | H180: 477 | I180: 3 | J180: 0 | K180: 247 | L180: 5 | M180: 36 | N180: 13 | O180: 189 | P180: 1214 | Q180: 1 | R180: 57 | S180: 15 | T180: 0 | U180: 5 | V180: 1 | W180: 19 | X180: 0 | Y180: 0 | Z180: 0 | AA180: 0 | AB180: 25 | AC180: 122 | AD180: 186 | AE180: 0 | AF180: 10 | AG180: 53 | AH180: 1 | AI180: 0 | AJ180: 9 | AK180: 0 | AL180: 31
A181: 2022-01-30 | B181: Legislativas | C181: União das Freguesias de Oeiras e São Julião da Barra, Paço de Arcos e Caxias | D181: EB1 São Bruno | E181: UFOPAC_58 | F181: 731 | G181: 453 | H181: 443 | I181: 5 | J181: 5 | K181: 278 | L181: 5 | M181: 36 | N181: 13 | O181: 189 | P181: 1215 | Q181: 1 | R181: 58 | S181: 13 | T181: 2 | U181: 0 | V181: 1 | W181: 18 | X181: 0 | Y181: 1 | Z181: 0 | AA181: 1 | AB181: 8 | AC181: 113 | AD181: 191 | AE181: 0 | AF181: 18 | AG181: 46 | AH181: 0 | AI181: 1 | AJ181: 7 | AK181: 0 | AL181: 23
A182: 2022-01-30 | B182: Legislativas | C182: União das Freguesias de Oeiras e São Julião da Barra, Paço de Arcos e Caxias | D182: EB1 São Bruno | E182: UFOPAC_59 | F182: 723 | G182: 490 | H182: 482 | I182: 6 | J182: 2 | K182: 233 | L182: 5 | M182: 36 | N182: 13 | O182: 189 | P182: 1216 | Q182: 1 | R182: 59 | S182: 15 | T182: 1 | U182: 1 | V182: 3 | W182: 15 | X182: 0 | Y182: 0 | Z182: 1 | AA182: 0 | AB182: 18 | AC182: 139 | AD182: 159 | AE182: 0 | AF182: 15 | AG182: 54 | AH182: 0 | AI182: 1 | AJ182: 18 | AK182: 1 | AL182: 41
A183: 2022-01-30 | B183: Legislativas | C183: União das Freguesias de Oeiras e São Julião da Barra, Paço de Arcos e Caxias | D183: EB1 São Bruno | E183: UFOPAC_60 | F183: 729 | G183: 502 | H183: 488 | I183: 11 | J183: 3 | K183: 227 | L183: 5 | M183: 36 | N183: 13 | O183: 189 | P183: 1217 | Q183: 1 | R183: 60 | S183: 10 | T183: 0 | U183: 1 | V183: 0 | W183: 24 | X183: 1 | Y183: 1 | Z183: 0 | AA183: 1 | AB183: 24 | AC183: 133 | AD183: 166 | AE183: 1 | AF183: 9 | AG183: 72 | AH183: 0 | AI183: 2 | AJ183: 7 | AK183: 1 | AL183: 35
A184: 2022-01-30 | B184: Legislativas | C184: União das Freguesias de Oeiras e São Julião da Barra, Paço de Arcos e Caxias | D184: EB1 São Bruno | E184: UFOPAC_61 | F184: 726 | G184: 482 | H184: 475 | I184: 5 | J184: 2 | K184: 244 | L184: 5 | M184: 36 | N184: 13 | O184: 189 | P184: 1218 | Q184: 1 | R184: 61 | S184: 10 | T184: 0 | U184: 3 | V184: 1 | W184: 23 | X184: 0 | Y184: 0 | Z184: 2 | AA184: 4 | AB184: 20 | AC184: 128 | AD184: 174 | AE184: 0 | AF184: 13 | AG184: 55 | AH184: 0 | AI184: 1 | AJ184: 15 | AK184: 2 | AL184: 24
A185: 2022-01-30 | B185: Legislativas | C185: União das Freguesias de Oeiras e São Julião da Barra, Paço de Arcos e Caxias | D185: EB1 São Bruno | E185: UFOPAC_62 | F185: 730 | G185: 490 | H185: 483 | I185: 4 | J185: 3 | K185: 240 | L185: 5 | M185: 36 | N185: 13 | O185: 189 | P185: 1219 | Q185: 1 | R185: 62 | S185: 8 | T185: 0 | U185: 2 | V185: 0 | W185: 19 | X185: 0 | Y185: 0 | Z185: 2 | AA185: 0 | AB185: 14 | AC185: 143 | AD185: 218 | AE185: 0 | AF185: 11 | AG185: 24 | AH185: 0 | AI185: 2 | AJ185: 19 | AK185: 0 | AL185: 21
A186: 2022-01-30 | B186: Legislativas | C186: União das Freguesias de Oeiras e São Julião da Barra, Paço de Arcos e Caxias | D186: EB1 São Bruno | E186: UFOPAC_63 | F186: 736 | G186: 514 | H186: 501 | I186: 9 | J186: 4 | K186: 222 | L186: 5 | M186: 36 | N186: 13 | O186: 189 | P186: 1220 | Q186: 1 | R186: 63 | S186: 20 | T186: 1 | U186: 4 | V186: 1 | W186: 27 | X186: 0 | Y186: 0 | Z186: 1 | AA186: 1 | AB186: 23 | AC186: 148 | AD186: 166 | AE186: 0 | AF186: 8 | AG186: 53 | AH186: 0 | AI186: 0 | AJ186: 24 | AK186: 1 | AL186: 23
A187: 2022-01-30 | B187: Legislativas | C187: União das Freguesias de Oeiras e São Julião da Barra, Paço de Arcos e Caxias | D187: EB1 São Bruno | E187: UFOPAC_64 | F187: 731 | G187: 481 | H187: 473 | I187: 3 | J187: 5 | K187: 250 | L187: 5 | M187: 36 | N187: 13 | O187: 189 | P187: 1221 | Q187: 1 | R187: 64 | S187: 14 | T187: 0 | U187: 0 | V187: 1 | W187: 30 | X187: 0 | Y187: 1 | Z187: 0 | AA187: 5 | AB187: 11 | AC187: 149 | AD187: 144 | AE187: 1 | AF187: 13 | AG187: 65 | AH187: 1 | AI187: 1 | AJ187: 8 | AK187: 1 | AL187: 28
A188: 2022-01-30 | B188: Legislativas | C188: União das Freguesias de Oeiras e São Julião da Barra, Paço de Arcos e Caxias | D188: EB1 São Bruno | E188: UFOPAC_65 | F188: 732 | G188: 467 | H188: 450 | I188: 11 | J188: 6 | K188: 265 | L188: 5 | M188: 36 | N188: 13 | O188: 189 | P188: 1222 | Q188: 1 | R188: 65 | S188: 17 | T188: 0 | U188: 1 | V188: 0 | W188: 21 | X188: 1 | Y188: 0 | Z188: 0 | AA188: 1 | AB188: 14 | AC188: 111 | AD188: 163 | AE188: 0 | AF188: 14 | AG188: 65 | AH188: 0 | AI188: 1 | AJ188: 8 | AK188: 1 | AL188: 32

Sheet Apuram
A1: Apuramento Provisório no Concelho de Oeiras
A2: Eleições Legislativas - 30 de Janeiro de 2022
B4: FREGUESIAS | L4: TOTAIS
A5: c | B5: ALGÉS, LAV, CQD | D5: CARNAXIDE, QUEIJAS | F5: OEIRAS, P.A., CAXIAS | H5: BARCARENA | J5: PORTO SALVO
A6: INSCRITOS | B6: 40835 | C6: 0.2795577463 | D6: 30352 | E6: 0.2077907852 | F6: 50209 | G6: 0.343732457 | H6: 12083 | I6: 0.0827206134 | J6: 12591 | K6: 0.08619839803 | L6: 146070 | M6: -
A7: VOTANTES | B7: 27686 | C7: 0.6779968165 | D7: 20343 | E7: 0.6702358988 | F7: 33381 | G7: 0.6648409648 | H7: 8349 | I7: 0.6909707854 | J7: 7884 | K7: 0.626161544 | L7: 97643 | M7: 0.6684671733
A8: EXPRESSOS | B8: 27314 | C8: 0.9865636062 | D8: 19959 | E8: 0.9811237281 | F8: 32822 | G8: 0.9832539469 | H8: 8191 | I8: 0.9810755779 | J8: 7690 | K8: 0.9753932014 | L8: 95976 | M8: 0.9829276036
A9: BRANCOS | B9: 240 | C9: 0.00866864119 | D9: 243 | E9: 0.01194514083 | F9: 349 | G9: 0.01045504928 | H9: 104 | I9: 0.01245658163 | J9: 117 | K9: 0.01484018265 | L9: 1053 | M9: 0.0107841832
A10: NULOS | B10: 132 | C10: 0.004767752655 | D10: 141 | E10: 0.006931131102 | F10: 210 | G10: 0.006291003864 | H10: 54 | I10: 0.00646784046 | J10: 77 | K10: 0.009766615931 | L10: 614 | M10: 0.006288213185
A11: ABSTENÇÃO | B11: 13149 | C11: 0.3220031835 | D11: 10009 | E11: 0.3297641012 | F11: 16828 | G11: 0.3351590352 | H11: 3734 | I11: 0.3090292146 | J11: 4707 | K11: 0.373838456 | L11: 48427 | M11: 0.3315328267
A12: L | B12: 947 | C12: 0.03420501336 | D12: 562 | E12: 0.02762621049 | F12: 1098 | G12: 0.03289296306 | H12: 184 | I12: 0.02203856749 | J12: 176 | K12: 0.02232369356 | L12: 2967 | M12: 0.0303862028
A13: MPT | B13: 24 | C13: 0.000866864119 | D13: 24 | E13: 0.001179766996 | F13: 33 | G13: 0.0009885863216 | H13: 13 | I13: 0.001557072703 | J13: 12 | K13: 0.001522070015 | L13: 106 | M13: 0.001085587292
A14: PCTP/MRPP | B14: 53 | C14: 0.00191432493 | D14: 54 | E14: 0.002654475741 | F14: 87 | G14: 0.00260627303 | H14: 36 | I14: 0.00431189364 | J14: 25 | K14: 0.003170979198 | L14: 255 | M14: 0.002611554336
A15: R.I.R. | B15: 46 | C15: 0.001661489562 | D15: 41 | E15: 0.002015435285 | F15: 61 | G15: 0.001827386837 | H15: 23 | I15: 0.002754820937 | J15: 25 | K15: 0.003170979198 | L15: 196 | M15: 0.002007312352
A16: B.E. | B16: 1253 | C16: 0.04525753088 | D16: 859 | E16: 0.04222582707 | F16: 1625 | G16: 0.04868038705 | H16: 415 | I16: 0.04970655168 | J16: 402 | K16: 0.05098934551 | L16: 4554 | M16: 0.04663928802
A17: NC | B17: 21 | C17: 0.0007585061042 | D17: 13 | E17: 0.0006390404562 | F17: 24 | G17: 0.0007189718702 | H17: 9 | I17: 0.00107797341 | J17: 5 | K17: 0.0006341958397 | L17: 72 | M17: 0.0007373800477
A18: E | B18: 9 | C18: 0.0003250740446 | D18: 9 | E18: 0.0004424126235 | F18: 13 | G18: 0.0003894430964 | H18: 6 | I18: 0.00071864894 | J18: 5 | K18: 0.0006341958397 | L18: 42 | M18: 0.0004301383612
A19: A | B19: 13 | C19: 0.0004695513978 | D19: 17 | E19: 0.0008356682888 | F19: 24 | G19: 0.0007189718702 | H19: 7 | I19: 0.0008384237633 | J19: 11 | K19: 0.001395230847 | L19: 72 | M19: 0.0007373800477
A20: ADN | B20: 78 | C20: 0.002817308387 | D20: 96 | E20: 0.004719067984 | F20: 111 | G20: 0.0033252449 | H20: 17 | I20: 0.002036171997 | J20: 28 | K20: 0.003551496702 | L20: 330 | M20: 0.003379658552
A21: PCP-PEV | B21: 1197 | C21: 0.04323484794 | D21: 1012 | E21: 0.04974684167 | F21: 1283 | G21: 0.0384350379 | H21: 415 | I21: 0.04970655168 | J21: 315 | K21: 0.0399543379 | L21: 4222 | M21: 0.04323914669
A22: PPD/PSD | B22: 8287 | C22: 0.2993209564 | D22: 5576 | E22: 0.2740991987 | F22: 9612 | G22: 0.287948234 | H22: 2022 | I22: 0.2421846928 | J22: 1644 | K22: 0.2085235921 | L22: 27141 | M22: 0.2779615538
A23: PS | B23: 9514 | C23: 0.3436393845 | D23: 7769 | E23: 0.381900408 | F23: 11786 | G23: 0.3530751026 | H23: 3316 | I23: 0.3971733142 | J23: 3566 | K23: 0.4523084729 | L23: 35951 | M23: 0.3681881958
A24: JPP | B24: 8 | C24: 0.0002889547063 | D24: 33 | E24: 0.00162217962 | F24: 13 | G24: 0.0003894430964 | H24: 4 | I24: 0.0004790992933 | J24: 9 | K24: 0.001141552511 | L24: 67 | M24: 0.0006861731
A25: PAN | B25: 544 | C25: 0.01964892003 | D25: 474 | E25: 0.02330039817 | F25: 764 | G25: 0.0228872712 | H25: 224 | I25: 0.02682956043 | J25: 192 | K25: 0.02435312024 | L25: 2198 | M25: 0.02251057423
A26: IL | B26: 3189 | C26: 0.1151845698 | D26: 1952 | E26: 0.09595438234 | F26: 3487 | G26: 0.1044606213 | H26: 761 | I26: 0.09114864056 | J26: 619 | K26: 0.07851344495 | L26: 10008 | M26: 0.1024958266
A27: PTP | B27: 7 | C27: 0.0002528353681 | D27: 6 | E27: 0.000294941749 | F27: 8 | G27: 0.0002396572901 | H27: 1 | I27: 0.0001197748233 | J27: 3 | K27: 0.0003805175038 | L27: 25 | M27: 0.0002560347388
A28: VP | B28: 21 | C28: 0.0007585061042 | D28: 40 | E28: 0.001966278327 | F28: 38 | G28: 0.001138372128 | H28: 7 | I28: 0.0008384237633 | J28: 7 | K28: 0.0008878741755 | L28: 113 | M28: 0.001157277019
A29: CDS-PP | B29: 637 | C29: 0.02300801849 | D29: 284 | E29: 0.01396057612 | F29: 785 | G29: 0.02351637159 | H29: 112 | I29: 0.01341478021 | J29: 97 | K29: 0.01230339929 | L29: 1915 | M29: 0.01961226099
A30: MAS | B30: 28 | C30: 0.001011341472 | D30: 46 | E30: 0.002261220076 | F30: 33 | G30: 0.0009885863216 | H30: 12 | I30: 0.00143729788 | J30: 10 | K30: 0.001268391679 | L30: 129 | M30: 0.001321139252
A31: CH | B31: 1438 | C31: 0.05193960847 | D31: 1092 | E31: 0.05367939832 | F31: 1937 | G31: 0.05802702136 | H31: 607 | I31: 0.07270331776 | J31: 539 | K31: 0.06836631152 | L31: 5613 | M31: 0.05748491955
A32: SEC. DE VOTO | B32: 49 | D32: 37 | F32: 65 | H32: 17 | J32: 19 | L32: 187

Sheet HONDT (hidden)
B2: Aplicação do método de Hondt - Divisões sucessivas para obtenção dos Mandatos
B3: O cálculo dos mandatos é efectuado pela Macro "Seleccionar_Ordenar_Crescente"
B4: Câmara Municipal - 11 elementos | H4: Assembleia Municipal - 33 elementos | N4: Assembleia de Freguesia - Algés, LAV, CQD | T4: Assembleia de Freguesia - Barcarena | Z4: Assembleia de Freguesia - Carnaxide, QUEIJAS | AF4: Assembleia de Freguesia - OEIRAS, PA, CAXIAS | AL4: Assembleia de Freguesia - PORTO SALVO
B6: Partidos | C6: Votação | E6: Partidos | F6: Ordenação | H6: Partidos | I6: Votação | K6: Partidos | L6: Ordenação | N6: Partidos | O6: Votação | Q6: Partidos | R6: Ordenação | T6: Partidos | U6: Votação | W6: Partidos | X6: Ordenação | Z6: Partidos | AA6: Votação | AC6: Partidos | AD6: Ordenação | AF6: Partidos | AG6: Votação | AI6: Partidos | AJ6: Ordenação | AL6: Partidos | AM6: Votação | AO6: Partidos | AP6: Ordenação
B7: PS | C7: =Apuram!L12 -> 2967 | E7: BE | F7: 12 | H7: CDU | I7: =#REF! ->  | K7: CDU | L7: 0 | N7: IOMAF | O7: 854 | Q7: CDS/PP | R7: 3018 | T7: IOMAF | U7: 1954 | W7: IOMAF | X7: 1954 | Z7: IOMAF | AA7: 3800 | AC7: IOMAF | AD7: 3800 | AF7: IOMAF | AG7: 916 | AI7: PPD/PSD | AJ7: 1534 | AL7: IOMAF | AM7: 346 | AO7: PPD/PSD | AP7: 1016
B8: PPD/PSD | C8: =Apuram!L13 -> 106 | E8: PCTP/MRPP | F8: 10 | H8: BE | I8: =#REF! ->  | K8: BE | L8: 0 | N8: CDS/PP | O8: 3018 | Q8: PPD/PSD | R8: 2611 | T8: CDS/PP | U8: 746 | W8: CDU | X8: 1730 | Z8: CDS/PP | AA8: 2889 | AC8: CDS/PP | AD8: 2889 | AF8: CDS/PP | AG8: 164 | AI8: IOMAF | AJ8: 916 | AL8: CDS/PP | AM8: 356 | AO8: PS | AP8: 1000
B9: PTP | C9: =Apuram!L14 -> 255 | E9: IOMAF | F9: 8 | H9: PAN | I9: =#REF! ->  | K9: PAN | L9: 0 | N9: PS | O9: 455 | Q9: CDU | R9: 2422 | T9: PS | U9: 795 | W9: BE | X9: 977 | Z9: PS | AA9: 477 | AC9: BE | AD9: 1900 | AF9: PS | AG9: 275 | AI9: CDU | AJ9: 837 | AL9: PS | AM9: 1000 | AO9: IOMAF | AP9: 508
B10: IOMAF | C10: =Apuram!L15 -> 196 | E10: PTP | F10: 6 | H10: PPD/PSD | I10: =#REF! ->  | K10: PPD/PSD | L10: 0 | N10: PPD/PSD | O10: 2611 | Q10: IOMAF | R10: 1509 | T10: PPD/PSD | U10: 320 | W10: PPD/PSD | X10: 865 | Z10: PPD/PSD | AA10: 1657 | AC10: PPD/PSD | AD10: 1657 | AF10: PPD/PSD | AG10: 1534 | AI10: PTP | AJ10: 767 | AL10: PPD/PSD | AM10: 1016 | AO10: PAN | AP10: 500
B11: PCTP/MRPP | C11: =Apuram!L16 -> 4554 | E11: PTP | F11: 6 | H11: IOMAF | I11: =#REF! ->  | K11: IOMAF | L11: 0 | N11: CDU | O11: 2422 | Q11: PS | R11: 1305.5 | T11: CDU | U11: 1730 | W11: PS | X11: 795 | Z11: CDU | AA11: 935 | AC11: IOMAF | AD11: 1444.5 | AF11: CDU | AG11: 837 | AI11: CDU | AJ11: 511.3333333 | AL11: CDU | AM11: 123 | AO11: CDS/PP | AP11: 356
B12: BE | C12: =Apuram!L17 -> 72 | E12: PPD/PSD | F12: 5 | H12: CDS/PP | I12: =#REF! ->  | K12: CDS/PP | L12: 0 | N12: BE | O12: 0 | Q12: PPD/PSD | R12: 1211 | T12: BE | U12: 0 | W12: CDS/PP | X12: 746 | Z12: BE | AA12: 0 | AC12: CDU | AD12: 1266.666667 | AF12: BE | AG12: 0 | AI12: BE | AJ12: 458 | AL12: BE | AM12: 0 | AO12: IOMAF | AP12: 346
B13: CDS/PP | C13: =Apuram!L18 -> 42 | E13: PPD/PSD | F13: 4 | H13: PS | I13: =#REF! ->  | K13: PS | L13: 0 | Q13: BE | R13: 1006 | W13: CDU | X13: 651.3333333 | AC13: BE | AD13: 963 | AF13: MMS | AI13: IOMAF | AJ13: 418.5 | AL13: MMS | AO13: BE | AP13: 338.6666667
B14: PAN | C14: =Apuram!L19 -> 72 | E14: PS | F14: 4 | K14: CDU | L14: 0 | Q14: CDS/PP | R14: 870.3333333 | W14: PS | X14: 576.6666667 | AC14: PPD/PSD | AD14: 950 | AF14: PAN | AI14: IOMAF | AJ14: 383.5 | AL14: PAN | AO14: CDU | AP14: 333.3333333
B15: CDU | C15: =Apuram!L20 -> 330 | E15: CDU | F15: 4 | K15: BE | L15: 0 | Q15: IOMAF | R15: 854 | W15: PPD/PSD | X15: 488.5 | AC15: CDU | AD15: 935 | AF15: PTP | AI15: BE | AJ15: 306.8 | AO15: PS | AP15: 254
E16: PAN | F16: 3.333333333 | K16: PAN | L16: 0 | Q16: PS | R16: 807.3333333 | W16: CDS/PP | X16: 432.5 | AC16: PS | AD16: 828.5 | AI16: CDS/PP | AJ16: 305.3333333 | AO16: CDS/PP | AP16: 250
E17: CDU | F17: 3 | K17: PPD/PSD | L17: 0 | Q17: CDU | R17: 754.5 | W17: CDS/PP | X17: 397.5 | AC17: PS | AD17: 760 | AI17: BE | AJ17: 279 | AO17: PAN | AP17: 203.2
B18: Partidos | C18: Divisões por 1, 2, 3, 4, etc | E18: BE | F18: 3 | H18: Partidos | I18: Divisões por 1, 2, 3, 4, etc | K18: IOMAF | L18: 0 | N18: Partidos | O18: Divisões por 1, 2, 3, 4, etc | Q18: IOMAF | R18: 652.75 | T18: Partidos | U18: Divisões por 1, 2, 3, 4, etc | W18: PS | X18: 390.8 | Z18: Partidos | AA18: Divisões por 1, 2, 3, 4, etc | AC18: CDU | AD18: 722.25 | AF18: Partidos | AG18: Divisões por 1, 2, 3, 4, etc | AI18: PS | AJ18: 275 | AL18: Partidos | AM18: Divisões por 1, 2, 3, 4, etc | AO18: MMS | AP18: 200
B19: PS | C19: =C7/1 -> 2967 | E19: CDS/PP | F19: 2.666666667 | H19: CDU | I19: =I7/1 ->  | K19: CDS/PP | L19: 0 | N19: IOMAF | O19: =O7/1 -> 854 | Q19: CDS/PP | R19: 605.5 | T19: IOMAF | U19: =U7/1 -> 1954 | W19: IOMAF | X19: 373 | Z19: IOMAF | AA19: =AA7/1 -> 3800 | AC19: CDS/PP | AD19: 633.3333333 | AF19: IOMAF | AG19: =AG7/1 -> 916 | AI19: CDS/PP | AJ19: 255.6666667 | AL19: IOMAF | AM19: =AM7/1 -> 346 | AO19: MMS | AP19: 178
B20: PPD/PSD | C20: =C8/1 -> 106 | E20: PCTP/MRPP | F20: 2.5 | H20: BE | I20: =I8/1 ->  | K20: PS | L20: 0 | N20: CDS/PP | O20: =O8/1 -> 3018 | Q20: PPD/PSD | R20: 603.6 | T20: CDS/PP | U20: =U8/1 -> 746 | W20: IOMAF | X20: 346 | Z20: CDS/PP | AA20: =AA8/1 -> 2889 | AC20: PPD/PSD | AD20: 577.8 | AF20: CDS/PP | AG20: =AG8/1 -> 164 | AI20: MMS | AJ20: 229 | AL20: CDS/PP | AM20: =AM8/1 -> 356 | AO20: BE | AP20: 173
B21: PTP | C21: =C9/1 -> 255 | E21: PTP | F21: 2.4 | H21: PAN | I21: =I9/1 ->  | K21: CDU | L21: 0 | N21: PS | O21: =O9/1 -> 455 | Q21: BE | R21: 522.2 | T21: PS | U21: =U9/1 -> 795 | W21: CDS/PP | X21: 325.6666667 | Z21: PS | AA21: =AA9/1 -> 477 | AC21: CDS/PP | AD21: 552.3333333 | AF21: PS | AG21: =AG9/1 -> 275 | AI21: MMS | AJ21: 219.1428571 | AL21: PS | AM21: =AM9/1 -> 1000 | AO21: CDU | AP21: 169.3333333
B22: IOMAF | C22: =C10/1 -> 196 | E22: PS | F22: 2 | H22: PPD/PSD | I22: =I10/1 ->  | K22: BE | L22: 0 | N22: PPD/PSD | O22: =O10/1 -> 2611 | Q22: PS | R22: 503 | T22: PPD/PSD | U22: =U10/1 -> 320 | W22: PPD/PSD | X22: 320 | Z22: PPD/PSD | AA22: =AA10/1 -> 1657 | AC22: IOMAF | AD22: 542.8571429 | AF22: PPD/PSD | AG22: =AG10/1 -> 1534 | AI22: CDS/PP | AJ22: 209.25 | AL22: PPD/PSD | AM22: =AM10/1 -> 1016 | AO22: PPD/PSD | AP22: 166.6666667
B23: PCTP/MRPP | C23: 4554 | E23: PAN | F23: 2 | H23: IOMAF | I23: =I11/1 ->  | K23: PAN | L23: 0 | N23: CDU | O23: =O11/1 -> 2422 | Q23: IOMAF | R23: 484.4 | T23: CDU | U23: =U11/1 -> 1730 | W23: BE | X23: 288.3333333 | Z23: CDU | AA23: =AA11/1 -> 935 | AC23: PS | AD23: 481.5 | AF23: CDU | AG23: =AG11/1 -> 837 | AI23: PS | AJ23: 191.75 | AL23: CDU | AM23: =AM11/1 -> 123 | AO23: CDS/PP | AP23: 145.1428571
B24: BE | C24: =C12/1 -> 72 | E24: BE | F24: 2 | H24: CDS/PP | I24: =I7/2 ->  | K24: PPD/PSD | L24: 0 | N24: BE | O24: =O7/2 -> 427 | Q24: PS | R24: 455 | T24: BE | U24: =U7/2 -> 977 | W24: IOMAF | X24: 279.1428571 | Z24: BE | AA24: =AA7/2 -> 1900 | AC24: PS | AD24: 477 | AF24: BE | AG24: =AG7/2 -> 458 | AI24: PS | AJ24: 183.2 | AL24: BE | AM24: =AM7/2 -> 173 | AO24: IOMAF | AP24: 142.8571429
B25: CDS/PP | C25: =C7/2 -> 1483.5 | E25: IOMAF | F25: 2 | H25: PS | I25: =I8/2 ->  | K25: IOMAF | L25: 0 | N25: IOMAF | O25: =O8/2 -> 1509 | Q25: CDU | R25: 435.1666667 | T25: IOMAF | U25: =U8/2 -> 373 | W25: IOMAF | X25: 265 | Z25: IOMAF | AA25: =AA8/2 -> 1444.5 | AC25: CDS/PP | AD25: 475 | AF25: MMS | AG25: =AG8/2 -> 82 | AI25: PAN | AJ25: 170.4444444 | AL25: MMS | AM25: =AM8/2 -> 178 | AO25: MMS | AP25: 127
B26: PAN | C26: =C8/2 -> 53 | E26: PPD/PSD | F26: 2 | H26: CDU | I26: =I9/2 ->  | K26: CDS/PP | L26: 0 | N26: CDS/PP | O26: =O9/2 -> 227.5 | Q26: CDS/PP | R26: 431.1428571 | T26: CDS/PP | U26: =U9/2 -> 397.5 | W26: BE | X26: 248.6666667 | Z26: CDS/PP | AA26: =AA9/2 -> 238.5 | AC26: PPD/PSD | AD26: 467.5 | AF26: PAN | AG26: =AG9/2 -> 137.5 | AI26: MMS | AJ26: 167.4 | AL26: PAN | AM26: =AM9/2 -> 500 | AO26: BE | AP26: 125
B27: CDU | C27: 127.5 | E27: CDU | F27: 2 | H27: BE | I27: =I10/2 ->  | K27: PS | L27: 0 | N27: PS | O27: =O10/2 -> 1305.5 | Q27: BE | R27: 427 | T27: PS | U27: =U10/2 -> 160 | W27: CDU | X27: 247.1428571 | Z27: PS | AA27: =AA10/2 -> 828.5 | AC27: IOMAF | AD27: 422.2222222 | AF27: PTP | AG27: =AG10/2 -> 767 | AI27: CDS/PP | AJ27: 164 | AL27: IOMAF | AM27: =AM10/2 -> 508 | AO27: CDU | AP27: 123
B28: PS | C28: =C10/2 -> 98 | E28: PS | F28: 1.714285714 | H28: PAN | I28: =I11/2 ->  | K28: CDU | L28: 0 | N28: PPD/PSD | O28: =O11/2 -> 1211 | Q28: BE | R28: 403.6666667 | T28: PPD/PSD | U28: =U11/2 -> 865 | W28: BE | X28: 244.25 | Z28: PPD/PSD | AA28: =AA11/2 -> 467.5 | AC28: IOMAF | AD28: 414.25 | AF28: IOMAF | AG28: =AG11/2 -> 418.5 | AI28: PPD/PSD | AJ28: 153.4 | AL28: CDS/PP | AM28: =AM11/2 -> 61.5 | AO28: PPD/PSD | AP28: 118.6666667
B29: PPD/PSD | C29: 2277 | E29: PAN | F29: 1.666666667 | H29: PPD/PSD | I29: =I7/3 ->  | K29: BE | L29: 0 | N29: CDU | O29: =O7/3 -> 284.6666667 | Q29: IOMAF | R29: 377.25 | T29: CDU | U29: =U7/3 -> 651.3333333 | W29: CDU | X29: 217.1111111 | Z29: CDU | AA29: =AA7/3 -> 1266.666667 | AC29: CDS/PP | AD29: 412.7142857 | AF29: CDS/PP | AG29: =AG7/3 -> 305.3333333 | AI29: PAN | AJ29: 152.6666667 | AL29: PS | AM29: =AM7/3 -> 115.3333333 | AO29: PS | AP29: 115.3333333
B30: PTP | C30: 36 | E30: PS | F30: 1.6 | H30: IOMAF | I30: =I8/3 ->  | K30: PAN | L30: 0 | N30: BE | O30: =O8/3 -> 1006 | Q30: PPD/PSD | R30: 373 | T30: BE | U30: =U8/3 -> 248.6666667 | W30: PPD/PSD | X30: 216.25 | Z30: BE | AA30: =AA8/3 -> 963 | AC30: BE | AD30: 380 | AF30: PS | AG30: =AG8/3 -> 54.66666667 | AI30: PS | AJ30: 139.5 | AL30: PPD/PSD | AM30: =AM8/3 -> 118.6666667 | AO30: PPD/PSD | AP30: 112.8888889
B31: IOMAF | C31: =C7/3 -> 989 | E31: PTP | F31: 1.5 | H31: CDS/PP | I31: =I9/3 ->  | K31: PPD/PSD | L31: 0 | N31: IOMAF | O31: =O9/3 -> 151.6666667 | Q31: CDU | R31: 346 | T31: IOMAF | U31: =U9/3 -> 265 | W31: BE | X31: 198.75 | Z31: IOMAF | AA31: =AA9/3 -> 159 | AC31: PS | AD31: 361.125 | AF31: PPD/PSD | AG31: =AG9/3 -> 91.66666667 | AI31: PTP | AJ31: 139.4545455 | AL31: CDU | AM31: =AM9/3 -> 333.3333333 | AO31: PS | AP31: 111.1111111
B32: PCTP/MRPP | C32: 35.33333333 | E32: CDS/PP | F32: 1.5 | H32: PS | I32: =I10/3 ->  | K32: IOMAF | L32: 0 | N32: CDS/PP | O32: =O10/3 -> 870.3333333 | Q32: BE | R32: 335.3333333 | T32: CDS/PP | U32: =U10/3 -> 106.6666667 | W32: PPD/PSD | X32: 195.4 | Z32: CDS/PP | AA32: =AA10/3 -> 552.3333333 | AC32: CDU | AD32: 345.4545455 | AF32: CDU | AG32: =AG10/3 -> 511.3333333 | AI32: PAN | AJ32: 137.5 | AL32: BE | AM32: =AM10/3 -> 338.6666667 | AO32: IOMAF | AP32: 101.6
B33: BE | C33: 85 | E33: PCTP/MRPP | F33: 1.428571429 | H33: CDU | I33: =I11/3 ->  | K33: CDS/PP | L33: 0 | N33: PS | O33: =O11/3 -> 807.3333333 | Q33: PS | R33: 326.375 | T33: PS | U33: =U11/3 -> 576.6666667 | W33: PS | X33: 192.2222222 | Z33: PS | AA33: =AA11/3 -> 311.6666667 | AC33: BE | AD33: 331.4 | AF33: BE | AG33: =AG11/3 -> 279 | AI33: PPD/PSD | AJ33: 130.8571429 | AL33: MMS | AM33: =AM11/3 -> 41 | AO33: PAN | AP33: 100
B34: CDS/PP | C34: 65.33333333 | E34: PCTP/MRPP | F34: 1.333333333 | H34: BE | I34: =I7/4 ->  | K34: PS | L34: 0 | N34: PPD/PSD | O34: =O7/4 -> 213.5 | Q34: PPD/PSD | R34: 302.75 | T34: PPD/PSD | U34: =U7/4 -> 488.5 | W34: CDU | X34: 186.5 | Z34: PPD/PSD | AA34: =AA7/4 -> 950 | AC34: CDS/PP | AD34: 321 | AF34: MMS | AG34: =AG7/4 -> 229 | AI34: CDU | AJ34: 127.8333333 | AL34: PAN | AM34: =AM7/4 -> 86.5 | AO34: BE | AP34: 92.36363636
B35: PAN | C35: 1518 | E35: CDS/PP | F35: 1.333333333 | H35: PAN | I35: =I8/4 ->  | K35: CDU | L35: 0 | N35: CDU | O35: =O8/4 -> 754.5 | Q35: CDU | R35: 301.8 | T35: CDU | U35: =U8/4 -> 186.5 | W35: PS | X35: 177.6363636 | Z35: CDU | AA35: =AA8/4 -> 722.25 | AC35: PPD/PSD | AD35: 316.6666667 | AF35: PAN | AG35: =AG8/4 -> 41 | AI35: PAN | AJ35: 119.5714286 | AL35: IOMAF | AM35: =AM8/4 -> 89 | AO35: CDU | AP35: 90.90909091
B36: CDU | C36: 24 | E36: IOMAF | F36: 1.333333333 | H36: PPD/PSD | I36: =I9/4 ->  | K36: CDU | L36: 0 | N36: BE | O36: =O9/4 -> 113.75 | Q36: CDS/PP | R36: 290.1111111 | T36: BE | U36: =U9/4 -> 198.75 | W36: CDS/PP | X36: 173 | Z36: BE | AA36: =AA9/4 -> 119.25 | AC36: PS | AD36: 311.6666667 | AF36: PTP | AG36: =AG9/4 -> 68.75 | AI36: IOMAF | AJ36: 118 | AL36: CDS/PP | AM36: =AM9/4 -> 250 | AO36: IOMAF | AP36: 89
B37: PS | C37: =C7/4 -> 741.75 | E37: BE | F37: 1.25 | H37: IOMAF | I37: =I10/4 ->  | K37: BE | L37: 0 | N37: IOMAF | O37: =O10/4 -> 652.75 | Q37: CDU | R37: 284.6666667 | T37: IOMAF | U37: =U10/4 -> 80 | W37: CDS/PP | X37: 162.8333333 | Z37: IOMAF | AA37: =AA10/4 -> 414.25 | AC37: PS | AD37: 292.3076923 | AF37: IOMAF | AG37: =AG10/4 -> 383.5 | AI37: PTP | AJ37: 114.5 | AL37: PS | AM37: =AM10/4 -> 254 | AO37: PAN | AP37: 86.5
B38: PPD/PSD | C38: 26.5 | E38: CDU | F38: 1.2 | H38: CDS/PP | I38: =I11/4 ->  | K38: PAN | L38: 0 | N38: CDS/PP | O38: =O11/4 -> 605.5 | Q38: PPD/PSD | R38: 274.3636364 | T38: CDS/PP | U38: =U11/4 -> 432.5 | W38: PS | X38: 160 | Z38: CDS/PP | AA38: =AA11/4 -> 233.75 | AC38: IOMAF | AD38: 288.9 | AF38: CDS/PP | AG38: =AG11/4 -> 209.25 | AI38: BE | AJ38: 109.5714286 | AL38: PPD/PSD | AM38: =AM11/4 -> 30.75 | AO38: PS | AP38: 84.66666667
B39: PTP | C39: 63.75 | E39: PS | F39: 1.2 | H39: PS | I39: =I7/5 ->  | K39: PPD/PSD | L39: 0 | N39: PS | O39: =O7/5 -> 170.8 | Q39: PS | R39: 269.1111111 | T39: PS | U39: =U7/5 -> 390.8 | W39: CDU | X39: 159 | Z39: PS | AA39: =AA7/5 -> 760 | AC39: CDU | AD39: 276.1666667 | AF39: PS | AG39: =AG7/5 -> 183.2 | AI39: PPD/PSD | AJ39: 104.625 | AL39: CDU | AM39: =AM7/5 -> 69.2 | AO39: CDS/PP | AP39: 83.33333333
B40: IOMAF | C40: 49 | E40: IOMAF | F40: 1.142857143 | H40: CDU | I40: =I8/5 ->  | K40: IOMAF | L40: 0 | N40: PPD/PSD | O40: =O8/5 -> 603.6 | Q40: IOMAF | R40: 261.1 | T40: PPD/PSD | U40: =U8/5 -> 149.2 | W40: IOMAF | X40: 157.2727273 | Z40: PPD/PSD | AA40: =AA8/5 -> 577.8 | AC40: CDS/PP | AD40: 271.4285714 | AF40: PPD/PSD | AG40: =AG8/5 -> 32.8 | AI40: CDS/PP | AJ40: 102.2666667 | AL40: BE | AM40: =AM8/5 -> 71.2 | AO40: IOMAF | AP40: 78.15384615
B41: PCTP/MRPP | C41: 1138.5 | E41: PTP | F41: 1.111111111 | H41: BE | I41: =I9/5 ->  | K41: CDS/PP | L41: 0 | N41: CDU | O41: =O9/5 -> 91 | Q41: CDS/PP | R41: 251.5 | T41: CDU | U41: =U9/5 -> 159 | W41: IOMAF | X41: 150.3076923 | Z41: CDU | AA41: =AA9/5 -> 95.4 | AC41: BE | AD41: 262.6363636 | AF41: CDU | AG41: =AG9/5 -> 55 | AI41: CDU | AJ41: 101.7777778 | AL41: MMS | AM41: =AM9/5 -> 200 | AO41: MMS | AP41: 76.92307692
B42: BE | C42: 18 | E42: CDS/PP | F42: 1.090909091 | H42: PAN | I42: =I10/5 ->  | K42: PS | L42: 0 | N42: BE | O42: =O10/5 -> 522.2 | Q42: CDS/PP | R42: 242.2 | T42: BE | U42: =U10/5 -> 64 | W42: PPD/PSD | X42: 149.2 | Z42: BE | AA42: =AA10/5 -> 331.4 | AC42: PS | AD42: 253.3333333 | AF42: BE | AG42: =AG10/5 -> 306.8 | AI42: MMS | AJ42: 95.875 | AL42: PAN | AM42: =AM10/5 -> 203.2 | AO42: BE | AP42: 72.57142857
B43: CDS/PP | C43: =C7/5 -> 593.4 | E43: CDS/PP | F43: 1 | H43: PPD/PSD | I43: =I11/5 ->  | K43: CDU | L43: 0 | N43: IOMAF | O43: =O11/5 -> 484.4 | Q43: BE | R43: 237.3636364 | T43: IOMAF | U43: =U11/5 -> 346 | W43: BE | X43: 144.1666667 | Z43: IOMAF | AA43: =AA11/5 -> 187 | AC43: CDU | AD43: 240.75 | AF43: MMS | AG43: =AG11/5 -> 167.4 | AI43: PTP | AJ43: 93 | AL43: IOMAF | AM43: =AM11/5 -> 24.6 | AO43: CDU | AP43: 71.42857143
B44: PAN | C44: 21.2 | E44: PPD/PSD | F44: 1 | H44: IOMAF | I44: =I7/6 ->  | K44: BE | L44: 0 | N44: CDS/PP | O44: =O7/6 -> 142.3333333 | Q44: IOMAF | R44: 232.1538462 | T44: CDS/PP | U44: =U7/6 -> 325.6666667 | W44: BE | X44: 139.5714286 | Z44: CDS/PP | AA44: =AA7/6 -> 633.3333333 | AC44: CDS/PP | AD44: 238.5 | AF44: PAN | AG44: =AG7/6 -> 152.6666667 | AI44: PPD/PSD | AJ44: 91.66666667 | AL44: CDS/PP | AM44: =AM7/6 -> 57.66666667 | AO44: BE | AP44: 71.2
B45: CDU | C45: 51 | E45: BE | F45: 1 | H45: CDS/PP | I45: =I8/6 ->  | K45: PAN | L45: 0 | N45: PS | O45: =O8/6 -> 503 | Q45: CDS/PP | R45: 227.5 | T45: PS | U45: =U8/6 -> 124.3333333 | W45: CDU | X45: 133.0769231 | Z45: PS | AA45: =AA8/6 -> 481.5 | AC45: CDS/PP | AD45: 237.5 | AF45: PTP | AG45: =AG8/6 -> 27.33333333 | AI45: IOMAF | AJ45: 91.6 | AL45: PS | AM45: =AM8/6 -> 59.33333333 | AO45: CDU | AP45: 69.2
B46: PS | C46: 39.2 | E46: PCTP/MRPP | F46: 1 | H46: PS | I46: =I9/6 ->  | K46: PPD/PSD | L46: 0 | N46: PPD/PSD | O46: =O9/6 -> 75.83333333 | Q46: IOMAF | R46: 220.1818182 | T46: PPD/PSD | U46: =U9/6 -> 132.5 | W46: PPD/PSD | X46: 132.5 | Z46: PPD/PSD | AA46: =AA9/6 -> 79.5 | AC46: PPD/PSD | AD46: 236.7142857 | AF46: IOMAF | AG46: =AG9/6 -> 45.83333333 | AI46: PS | AJ46: 90.23529412 | AL46: PPD/PSD | AM46: =AM9/6 -> 166.6666667 | AO46: PS | AP46: 67.73333333
B47: PPD/PSD | C47: 910.8 | E47: CDU | F47: 1 | H47: CDU | I47: =I10/6 ->  | K47: IOMAF | L47: 0 | N47: CDU | O47: =O10/6 -> 435.1666667 | Q47: PPD/PSD | R47: 217.5833333 | T47: CDU | U47: =U10/6 -> 53.33333333 | W47: CDU | X47: 130.2666667 | Z47: CDU | AA47: =AA10/6 -> 276.1666667 | AC47: CDS/PP | AD47: 233.75 | AF47: CDS/PP | AG47: =AG10/6 -> 255.6666667 | AI47: PAN | AJ47: 85.22222222 | AL47: CDU | AM47: =AM10/6 -> 169.3333333 | AO47: CDS/PP | AP47: 66.66666667
B48: PTP | C48: 14.4 | E48: IOMAF | F48: 1 | H48: CDU | I48: =I11/6 ->  | K48: CDS/PP | L48: 0 | N48: BE | O48: =O11/6 -> 403.6666667 | Q48: BE | R48: 215.5714286 | T48: BE | U48: =U11/6 -> 288.3333333 | W48: PS | X48: 124.3333333 | Z48: BE | AA48: =AA11/6 -> 155.8333333 | AC48: IOMAF | AD48: 223.5294118 | AF48: PS | AG48: =AG11/6 -> 139.5 | AI48: CDU | AJ48: 83.7 | AL48: BE | AM48: =AM11/6 -> 20.5 | AO48: PAN | AP48: 63.5
B49: IOMAF | C49: =C7/6 -> 494.5 | E49: PPD/PSD | F49: 0.9230769231 | H49: BE | I49: =I7/7 ->  | K49: PS | L49: 0 | N49: IOMAF | O49: =O7/7 -> 122 | Q49: PPD/PSD | R49: 213.5 | T49: IOMAF | U49: =U7/7 -> 279.1428571 | W49: PPD/PSD | X49: 123.5714286 | Z49: IOMAF | AA49: =AA7/7 -> 542.8571429 | AC49: PPD/PSD | AD49: 222.2307692 | AF49: PPD/PSD | AG49: =AG7/7 -> 130.8571429 | AI49: BE | AJ49: 83.27272727 | AL49: MMS | AM49: =AM7/7 -> 49.42857143 | AO49: MMS | AP49: 62.5
B50: PCTP/MRPP | C50: 17.66666667 | E50: BE | F50: 0.9090909091 | H50: PAN | I50: =I8/7 ->  | K50: CDU | L50: 0 | N50: CDS/PP | O50: =O8/7 -> 431.1428571 | Q50: CDU | R50: 201.8333333 | T50: CDS/PP | U50: =U8/7 -> 106.5714286 | W50: PPD/PSD | X50: 122.125 | Z50: CDS/PP | AA50: =AA8/7 -> 412.7142857 | AC50: BE | AD50: 211.1111111 | AF50: CDU | AG50: =AG8/7 -> 23.42857143 | AI50: MMS | AJ50: 82 | AL50: PAN | AM50: =AM8/7 -> 50.85714286 | AO50: CDS/PP | AP50: 61.5
B51: BE | C51: 42.5 | E51: PPD/PSD | F51: 0.8888888889 | H51: PPD/PSD | I51: =I9/7 ->  | K51: BE | L51: 0 | N51: PS | O51: =O9/7 -> 65 | Q51: CDU | R51: 201.2 | T51: PS | U51: =U9/7 -> 113.5714286 | W51: PS | X51: 115.3333333 | Z51: PS | AA51: =AA9/7 -> 68.14285714 | AC51: CDU | AD51: 207.125 | AF51: BE | AG51: =AG9/7 -> 39.28571429 | AI51: PPD/PSD | AJ51: 80.73684211 | AL51: IOMAF | AM51: =AM9/7 -> 142.8571429 | AO51: CDU | AP51: 59.76470588
B52: CDS/PP | C52: 32.66666667 | E52: PTP | F52: 0.8571428571 | H52: IOMAF | I52: =I10/7 ->  | K52: PAN | L52: 0 | N52: PPD/PSD | O52: =O10/7 -> 373 | Q52: PS | R52: 200.8461538 | T52: PPD/PSD | U52: =U10/7 -> 45.71428571 | W52: PS | X52: 114.9411765 | Z52: PPD/PSD | AA52: =AA10/7 -> 236.7142857 | AC52: PS | AD52: 206.3571429 | AF52: MMS | AG52: =AG10/7 -> 219.1428571 | AI52: PTP | AJ52: 76.7 | AL52: CDS/PP | AM52: =AM10/7 -> 145.1428571 | AO52: PS | AP52: 59.33333333
B53: PAN | C53: 759 | E53: PAN | F53: 0.8571428571 | H53: CDS/PP | I53: =I11/7 ->  | K53: PPD/PSD | L53: 0 | N53: CDU | O53: =O11/7 -> 346 | Q53: PPD/PSD | R53: 188.625 | T53: CDU | U53: =U11/7 -> 247.1428571 | W53: PS | X53: 113.5714286 | Z53: IOMAF | AA53: =AA11/7 -> 133.5714286 | AC53: CDU | AD53: 200 | AF53: PAN | AG53: =AG11/7 -> 119.5714286 | AI53: CDS/PP | AJ53: 76.33333333 | AL53: PS | AM53: =AM11/7 -> 17.57142857 | AO53: PPD/PSD | AP53: 58.82352941
B54: CDU | C54: 12 | E54: PTP | F54: 0.8333333333 | H54: PS | I54: =I7/8 ->  | K54: IOMAF | L54: 0 | N54: BE | O54: =O7/8 -> 106.75 | Q54: CDS/PP | R54: 186.5 | T54: BE | U54: =U7/8 -> 244.25 | W54: CDS/PP | X54: 108.5555556 | Z54: CDS/PP | AA54: =AA7/8 -> 475 | AC54: PPD/PSD | AD54: 192.6 | AF54: PTP | AG54: =AG7/8 -> 114.5 | AI54: IOMAF | AJ54: 76.09090909 | AL54: PPD/PSD | AM54: =AM7/8 -> 43.25 | AO54: CDS/PP | AP54: 57.66666667
B55: PS | C55: =C7/7 -> 423.8571429 | E55: PAN | F55: 0.8 | H55: CDU | I55: =I8/8 ->  | K55: CDS/PP | L55: 0 | N55: IOMAF | O55: =O8/8 -> 377.25 | Q55: PPD/PSD | R55: 186.3076923 | T55: IOMAF | U55: =U8/8 -> 93.25 | W55: CDS/PP | X55: 108.125 | Z55: PS | AA55: =AA8/8 -> 361.125 | AC55: PPD/PSD | AD55: 190 | AF55: IOMAF | AG55: =AG8/8 -> 20.5 | AI55: CDU | AJ55: 73.04761905 | AL55: CDU | AM55: =AM8/8 -> 44.5 | AO55: CDS/PP | AP55: 56.44444444
B56: PPD/PSD | C56: 15.14285714 | E56: PAN | F56: 0.8 | H56: BE | I56: =I9/8 ->  | K56: PS | L56: 0 | N56: CDS/PP | O56: =O9/8 -> 56.875 | Q56: PS | R56: 177.5294118 | T56: CDS/PP | U56: =U9/8 -> 99.375 | W56: CDS/PP | X56: 106.6666667 | Z56: PPD/PSD | AA56: =AA9/8 -> 59.625 | AC56: IOMAF | AD56: 187 | AF56: CDS/PP | AG56: =AG9/8 -> 34.375 | AI56: MMS | AJ56: 70.46153846 | AL56: BE | AM56: =AM9/8 -> 125 | AO56: IOMAF | AP56: 55.55555556
B57: PTP | C57: 36.42857143 | E57: PS | F57: 0.7692307692 | H57: PAN | I57: =I10/8 ->  | K57: CDU | L57: 0 | N57: PS | O57: =O10/8 -> 326.375 | Q57: IOMAF | R57: 174.0666667 | T57: PS | U57: =U10/8 -> 40 | W57: CDS/PP | X57: 106.5714286 | Z57: CDU | AA57: =AA10/8 -> 207.125 | AC57: PPD/PSD | AD57: 184.1111111 | AF57: PS | AG57: =AG10/8 -> 191.75 | AI57: BE | AJ57: 69.75 | AL57: MMS | AM57: =AM10/8 -> 127 | AO57: MMS | AP57: 53.47368421
B58: IOMAF | C58: 28 | E58: IOMAF | F58: 0.75 | H58: PPD/PSD | I58: =I11/8 ->  | K58: BE | L58: 0 | N58: PPD/PSD | O58: =O11/8 -> 302.75 | Q58: PS | R58: 173 | T58: PPD/PSD | U58: =U11/8 -> 216.25 | W58: IOMAF | X58: 102.8421053 | Z58: BE | AA58: =AA11/8 -> 116.875 | AC58: IOMAF | AD58: 180.952381 | AF58: PPD/PSD | AG58: =AG11/8 -> 104.625 | AI58: IOMAF | AJ58: 69.72727273 | AL58: PAN | AM58: =AM11/8 -> 15.375 | AO58: BE | AP58: 52.63157895
B59: PCTP/MRPP | C59: 650.5714286 | E59: PCTP/MRPP | F59: 0.7272727273 | H59: IOMAF | I59: =I7/9 ->  | K59: PAN | L59: 0 | N59: CDU | O59: =O7/9 -> 94.88888889 | Q59: PS | R59: 170.8 | T59: CDU | U59: =U7/9 -> 217.1111111 | W59: IOMAF | X59: 101.7647059 | Z59: IOMAF | AA59: =AA7/9 -> 422.2222222 | AC59: PS | AD59: 180.5625 | AF59: CDU | AG59: =AG7/9 -> 101.7777778 | AI59: PTP | AJ59: 68.75 | AL59: IOMAF | AM59: =AM7/9 -> 38.44444444 | AO59: PAN | AP59: 50.85714286
B60: PS | C60: 10.28571429 | E60: CDS/PP | F60: 0.7142857143 | H60: CDS/PP | I60: =I8/9 ->  | K60: PPD/PSD | L60: 0 | N60: BE | O60: =O8/9 -> 335.3333333 | Q60: CDS/PP | R60: 167.6666667 | T60: BE | U60: =U8/9 -> 82.88888889 | W60: CDS/PP | X60: 99.375 | Z60: CDS/PP | AA60: =AA8/9 -> 321 | AC60: BE | AD60: 172.7272727 | AF60: BE | AG60: =AG8/9 -> 18.22222222 | AI60: BE | AJ60: 66.69565217 | AL60: CDS/PP | AM60: =AM8/9 -> 39.55555556 | AO60: PPD/PSD | AP60: 50.8
B61: PPD/PSD | C61: =C7/8 -> 370.875 | E61: IOMAF | F61: 0.6666666667 | H61: PS | I61: =I9/9 ->  | K61: IOMAF | L61: 0 | N61: IOMAF | O61: =O9/9 -> 50.55555556 | Q61: BE | R61: 163.1875 | T61: IOMAF | U61: =U9/9 -> 88.33333333 | W61: BE | X61: 97.7 | Z61: PS | AA61: =AA9/9 -> 53 | AC61: CDS/PP | AD61: 169.9411765 | AF61: MMS | AG61: =AG9/9 -> 30.55555556 | AI61: PS | AJ61: 65.42857143 | AL61: PS | AM61: =AM9/9 -> 111.1111111 | AO61: PS | AP61: 50
B62: PTP | C62: 13.25 | E62: PCTP/MRPP | F62: 0.6666666667 | H62: CDU | I62: =I10/9 ->  | K62: CDS/PP | L62: 0 | N62: CDS/PP | O62: =O10/9 -> 290.1111111 | Q62: CDS/PP | R62: 161.4666667 | T62: CDS/PP | U62: =U10/9 -> 35.55555556 | W62: BE | X62: 96.11111111 | Z62: PPD/PSD | AA62: =AA10/9 -> 184.1111111 | AC62: PS | AD62: 165.7 | AF62: PAN | AG62: =AG10/9 -> 170.4444444 | AI62: CDS/PP | AJ62: 64.38461538 | AL62: PPD/PSD | AM62: =AM10/9 -> 112.8888889 | AO62: MMS | AP62: 49.42857143
B63: IOMAF | C63: 31.875 | E63: PS | F63: 0.6666666667 | H63: BE | I63: =I11/9 ->  | K63: PS | L63: 0 | N63: PS | O63: =O11/9 -> 269.1111111 | Q63: IOMAF | R63: 158.8421053 | T63: PS | U63: =U11/9 -> 192.2222222 | W63: IOMAF | X63: 93.25 | Z63: CDU | AA63: =AA11/9 -> 103.8888889 | AC63: CDU | AD63: 165.2173913 | AF63: PTP | AG63: =AG11/9 -> 93 | AI63: CDS/PP | AJ63: 63.91666667 | AL63: CDU | AM63: =AM11/9 -> 13.66666667 | AO63: IOMAF | AP63: 48.38095238
B64: PCTP/MRPP | C64: 24.5 | E64: PPD/PSD | F64: 0.6666666667 | H64: PAN | I64: =I7/10 ->  | K64: CDU | L64: 0 | N64: PPD/PSD | O64: =O7/10 -> 85.4 | Q64: CDU | R64: 153.5882353 | T64: PPD/PSD | U64: =U7/10 -> 195.4 | W64: CDU | X64: 93.04761905 | Z64: BE | AA64: =AA7/10 -> 380 | AC64: IOMAF | AD64: 160.5 | AF64: IOMAF | AG64: =AG7/10 -> 91.6 | AI64: MMS | AJ64: 61.36 | AL64: BE | AM64: =AM7/10 -> 34.6 | AO64: PAN | AP64: 47.61904762
B65: BE | C65: 569.25 | E65: PAN | F65: 0.6153846154 | H65: PPD/PSD | I65: =I8/10 ->  | K65: CDU | L65: 0 | N65: CDU | O65: =O8/10 -> 301.8 | Q65: IOMAF | R65: 151.6666667 | T65: CDU | U65: =U8/10 -> 74.6 | W65: CDU | X65: 91.05263158 | Z65: IOMAF | AA65: =AA8/10 -> 288.9 | AC65: IOMAF | AD65: 159 | AF65: CDS/PP | AG65: =AG8/10 -> 16.4 | AI65: PAN | AJ65: 61.06666667 | AL65: MMS | AM65: =AM8/10 -> 35.6 | AO65: BE | AP65: 46.18181818
B66: CDS/PP | C66: 9 | E66: CDS/PP | F66: 0.6 | H66: IOMAF | I66: =I9/10 ->  | K66: BE | L66: 0 | N66: BE | O66: =O9/10 -> 45.5 | Q66: IOMAF | R66: 151.375 | T66: BE | U66: =U9/10 -> 79.5 | W66: PPD/PSD | X66: 88.81818182 | Z66: CDS/PP | AA66: =AA9/10 -> 47.7 | AC66: PPD/PSD | AD66: 158.3333333 | AF66: PS | AG66: =AG9/10 -> 27.5 | AI66: MMS | AJ66: 59.78571429 | AL66: PAN | AM66: =AM9/10 -> 100 | AO66: CDU | AP66: 45.45454545
B67: PAN | C67: =C7/9 -> 329.6666667 | E67: PPD/PSD | F67: 0.5714285714 | H67: CDS/PP | I67: =I10/10 ->  | K67: PAN | L67: 0 | N67: IOMAF | O67: =O10/10 -> 261.1 | Q67: BE | R67: 150.9 | T67: IOMAF | U67: =U10/10 -> 32 | W67: IOMAF | X67: 88.33333333 | Z67: PS | AA67: =AA10/10 -> 165.7 | AC67: BE | AD67: 155.8333333 | AF67: PPD/PSD | AG67: =AG10/10 -> 153.4 | AI67: PPD/PSD | AJ67: 59 | AL67: IOMAF | AM67: =AM10/10 -> 101.6 | AO67: CDU | AP67: 44.5
B68: CDU | C68: 11.77777778 | E68: BE | F68: 0.5714285714 | H68: PS | I68: =I11/10 ->  | K68: PPD/PSD | L68: 0 | N68: CDS/PP | O68: =O11/10 -> 242.2 | Q68: PPD/PSD | R68: 145.0555556 | T68: CDS/PP | U68: =U11/10 -> 173 | W68: PPD/PSD | X68: 86.5 | Z68: PPD/PSD | AA68: =AA11/10 -> 93.5 | AC68: BE | AD68: 152.0526316 | AF68: CDU | AG68: =AG11/10 -> 83.7 | AI68: PPD/PSD | AJ68: 57.25 | AL68: CDS/PP | AM68: =AM11/10 -> 12.3 | AO68: PS | AP68: 44.17391304
B69: PS | C69: 28.33333333 | E69: IOMAF | F69: 0.5454545455 | H69: CDU | I69: =I7/11 ->  | K69: IOMAF | L69: 0 | N69: PS | O69: =O7/11 -> 77.63636364 | Q69: CDU | R69: 143.7142857 | T69: PS | U69: =U7/11 -> 177.6363636 | W69: PS | X69: 84.95652174 | Z69: CDU | AA69: =AA7/11 -> 345.4545455 | AC69: PS | AD69: 152 | AF69: BE | AG69: =AG7/11 -> 83.27272727 | AI69: PS | AJ69: 55.8 | AL69: PS | AM69: =AM7/11 -> 31.45454545 | AO69: CDS/PP | AP69: 43.47826087
B70: PPD/PSD | C70: 21.77777778 | E70: PS | F70: 0.5 | H70: BE | I70: =I8/11 ->  | K70: CDS/PP | L70: 0 | N70: PPD/PSD | O70: =O8/11 -> 274.3636364 | Q70: BE | R70: 142.4705882 | T70: PPD/PSD | U70: =U8/11 -> 67.81818182 | W70: BE | X70: 82.88888889 | Z70: BE | AA70: =AA8/11 -> 262.6363636 | AC70: CDS/PP | AD70: 150.6363636 | AF70: MMS | AG70: =AG8/11 -> 14.90909091 | AI70: CDU | AJ70: 55 | AL70: PPD/PSD | AM70: =AM8/11 -> 32.36363636 | AO70: PPD/PSD | AP70: 43.25
B71: PTP | C71: 506 | E71: PTP | F71: 0.5 | H71: PAN | I71: =I9/11 ->  | K71: PS | L71: 0 | N71: CDU | O71: =O9/11 -> 41.36363636 | Q71: CDS/PP | R71: 142.3333333 | T71: CDU | U71: =U9/11 -> 72.27272727 | W71: PS | X71: 82.38095238 | Z71: IOMAF | AA71: =AA9/11 -> 43.36363636 | AC71: CDS/PP | AD71: 146.1538462 | AF71: PAN | AG71: =AG9/11 -> 25 | AI71: PS | AJ71: 54.66666667 | AL71: CDU | AM71: =AM9/11 -> 90.90909091 | AO71: PAN | AP71: 42.33333333
B72: IOMAF | C72: 8 | E72: PS | F72: 0.5 | H72: PPD/PSD | I72: =I10/11 ->  | K72: CDU | L72: 0 | N72: BE | O72: =O10/11 -> 237.3636364 | Q72: PS | R72: 137.4210526 | T72: BE | U72: =U10/11 -> 29.09090909 | W72: CDS/PP | X72: 81.41666667 | Z72: CDS/PP | AA72: =AA10/11 -> 150.6363636 | AC72: CDU | AD72: 144.45 | AF72: PTP | AG72: =AG10/11 -> 139.4545455 | AI72: PTP | AJ72: 53.88235294 | AL72: BE | AM72: =AM10/11 -> 92.36363636 | AO72: MMS | AP72: 41.66666667
B73: PCTP/MRPP | C73: =C7/10 -> 296.7 | E73: CDS/PP | F73: 0.4615384615 | H73: IOMAF | I73: =I11/11 ->  | K73: BE | L73: 0 | N73: IOMAF | O73: =O11/11 -> 220.1818182 | Q73: PPD/PSD | R73: 137.1818182 | T73: IOMAF | U73: =U11/11 -> 157.2727273 | W73: IOMAF | X73: 80 | Z73: PS | AA73: =AA11/11 -> 85 | AC73: CDU | AD73: 140.7407407 | AF73: IOMAF | AG73: =AG11/11 -> 76.09090909 | AI73: PAN | AJ73: 52.3125 | AL73: MMS | AM73: =AM11/11 -> 11.18181818 | AO73: MMS | AP73: 41
B74: BE | C74: 10.6 | E74: CDU | F74: 0.4444444444 | H74: CDS/PP | I74: =I7/12 ->  | K74: PAN | L74: 0 | N74: IOMAF | O74: =O7/12 -> 71.16666667 | Q74: CDU | R74: 134.5555556 | T74: CDS/PP | U74: =U7/12 -> 162.8333333 | W74: BE | X74: 79.5 | Z74: PPD/PSD | AA74: =AA7/12 -> 316.6666667 | AC74: IOMAF | AD74: 138.0833333 | AF74: CDS/PP | AG74: =AG7/12 -> 76.33333333 | AI74: CDU | AJ74: 50.88888889 | AL74: PAN | AM74: =AM7/12 -> 28.83333333 | AO74: CDU | AP74: 40.64
B75: CDS/PP | C75: 25.5 | E75: PCTP/MRPP | F75: 0.4285714286 | H75: PS | I75: =I8/12 ->  | K75: PPD/PSD | L75: 0 | N75: CDS/PP | O75: =O8/12 -> 251.5 | Q75: CDS/PP | R75: 131.2173913 | T75: PS | U75: =U8/12 -> 62.16666667 | W75: CDS/PP | X75: 78.63636364 | Z75: CDU | AA75: =AA8/12 -> 240.75 | AC75: CDS/PP | AD75: 137.5714286 | AF75: PS | AG75: =AG8/12 -> 13.66666667 | AI75: PPD/PSD | AJ75: 49.23529412 | AL75: IOMAF | AM75: =AM8/12 -> 29.66666667 | AO75: PPD/PSD | AP75: 40
B76: PAN | C76: 19.6 | E76: CDS/PP | F76: 0.4 | H76: CDU | I76: =I9/12 ->  | K76: IOMAF | L76: 0 | N76: PS | O76: =O9/12 -> 37.91666667 | Q76: CDS/PP | R76: 130.55 | T76: PPD/PSD | U76: =U9/12 -> 66.25 | W76: IOMAF | X76: 78.16 | Z76: BE | AA76: =AA9/12 -> 39.75 | AC76: IOMAF | AD76: 133.5714286 | AF76: PPD/PSD | AG76: =AG9/12 -> 22.91666667 | AI76: IOMAF | AJ76: 48.21052632 | AL76: CDS/PP | AM76: =AM9/12 -> 83.33333333 | AO76: CDS/PP | AP76: 39.55555556
B77: CDU | C77: 455.4 | E77: BE | F77: 0.4 | H77: CDU | I77: =I10/12 ->  | K77: CDS/PP | L77: 0 | N77: PPD/PSD | O77: =O10/12 -> 217.5833333 | Q77: PPD/PSD | R77: 127.4736842 | T77: CDU | U77: =U10/12 -> 26.66666667 | W77: IOMAF | X77: 75.2173913 | Z77: IOMAF | AA77: =AA10/12 -> 138.0833333 | AC77: IOMAF | AD77: 131.3181818 | AF77: CDU | AG77: =AG10/12 -> 127.8333333 | AI77: PTP | AJ77: 46.5 | AL77: PS | AM77: =AM10/12 -> 84.66666667 | AO77: PS | AP77: 39.07692308
B78: PS | C78: 7.2 | E78: PTP | F78: 0.3636363636 | H78: BE | I78: =I11/12 ->  | K78: PS | L78: 0 | N78: CDU | O78: =O11/12 -> 201.8333333 | Q78: IOMAF | R78: 125.75 | T78: BE | U78: =U11/12 -> 144.1666667 | W78: BE | X78: 75.15384615 | Z78: CDS/PP | AA78: =AA11/12 -> 77.91666667 | AC78: BE | AD78: 127.4615385 | AF78: BE | AG78: =AG11/12 -> 69.75 | AI78: IOMAF | AJ78: 45.83333333 | AL78: PPD/PSD | AM78: =AM11/12 -> 10.25 | AO78: CDS/PP | AP78: 38.46153846
B79: PPD/PSD | C79: =C7/11 -> 269.7272727 | E79: IOMAF | F79: 0.3333333333 | H79: PAN | I79: =I7/13 ->  | K79: CDU | L79: 0 | N79: BE | O79: =O7/13 -> 65.69230769 | Q79: IOMAF | R79: 124.3333333 | T79: IOMAF | U79: =U7/13 -> 150.3076923 | W79: CDU | X79: 74.6 | Z79: PS | AA79: =AA7/13 -> 292.3076923 | AC79: BE | AD79: 125.6086957 | AF79: MMS | AG79: =AG7/13 -> 70.46153846 | AI79: BE | AJ79: 45.8 | AL79: CDU | AM79: =AM7/13 -> 26.61538462 | AO79: IOMAF | AP79: 38.44444444
B80: PTP | C80: 9.636363636 | E80: CDU | F80: 0.3333333333 | H80: PPD/PSD | I80: =I8/13 ->  | K80: BE | L80: 0 | N80: IOMAF | O80: =O8/13 -> 232.1538462 | Q80: IOMAF | R80: 122 | T80: CDS/PP | U80: =U8/13 -> 57.38461538 | W80: CDU | X80: 72.37037037 | Z80: PPD/PSD | AA80: =AA8/13 -> 222.2307692 | AC80: CDU | AD80: 120.375 | AF80: PAN | AG80: =AG8/13 -> 12.61538462 | AI80: CDU | AJ80: 44.05263158 | AL80: BE | AM80: =AM8/13 -> 27.38461538 | AO80: PS | AP80: 37.03703704
B81: IOMAF | C81: 23.18181818 | E81: BE | F81: 0.3076923077 | H81: IOMAF | I81: =I9/13 ->  | K81: PAN | L81: 0 | N81: CDS/PP | O81: =O9/13 -> 35 | Q81: PS | R81: 121.1 | T81: PS | U81: =U9/13 -> 61.15384615 | W81: CDU | X81: 72.27272727 | Z81: CDU | AA81: =AA9/13 -> 36.69230769 | AC81: BE | AD81: 119.25 | AF81: PTP | AG81: =AG9/13 -> 21.15384615 | AI81: CDS/PP | AJ81: 43.61904762 | AL81: MMS | AM81: =AM9/13 -> 76.92307692 | AO81: MMS | AP81: 35.6
B82: PCTP/MRPP | C82: 17.81818182 | E82: PS | F82: 0.2857142857 | H82: CDS/PP | I82: =I10/13 ->  | K82: PPD/PSD | L82: 0 | N82: PS | O82: =O10/13 -> 200.8461538 | Q82: BE | R82: 120.72 | T82: PPD/PSD | U82: =U10/13 -> 24.61538462 | W82: BE | X82: 72.08333333 | Z82: BE | AA82: =AA10/13 -> 127.4615385 | AC82: IOMAF | AD82: 118.3571429 | AF82: IOMAF | AG82: =AG10/13 -> 118 | AI82: IOMAF | AJ82: 41.85 | AL82: IOMAF | AM82: =AM10/13 -> 78.15384615 | AO82: BE | AP82: 34.6
B83: BE | C83: 414 | E83: IOMAF | F83: 0.2857142857 | H83: PS | I83: =I11/13 ->  | K83: CDU | L83: 0 | N83: PPD/PSD | O83: =O11/13 -> 186.3076923 | Q83: BE | R83: 118.6818182 | T83: CDU | U83: =U11/13 -> 133.0769231 | W83: CDU | X83: 69.2 | Z83: IOMAF | AA83: =AA11/13 -> 71.92307692 | AC83: BE | AD83: 116.875 | AF83: CDS/PP | AG83: =AG11/13 -> 64.38461538 | AI83: MMS | AJ83: 41.63636364 | AL83: CDS/PP | AM83: =AM11/13 -> 9.461538462 | AO83: PPD/PSD | AP83: 32.36363636
B84: CDS/PP | C84: 6.545454545 | E84: PPD/PSD | F84: 0.25 | H84: CDU | I84: =I7/14 ->  | K84: BE | L84: 0 | N84: CDU | O84: =O7/14 -> 61 | Q84: CDU | R84: 116.0769231 | T84: BE | U84: =U7/14 -> 139.5714286 | W84: PPD/PSD | X84: 67.81818182 | Z84: CDS/PP | AA84: =AA7/14 -> 271.4285714 | AC84: PPD/PSD | AD84: 115.56 | AF84: PS | AG84: =AG7/14 -> 65.42857143 | AI84: PAN | AJ84: 41 | AL84: PS | AM84: =AM7/14 -> 24.71428571 | AO84: PS | AP84: 31.45454545
B85: PAN | C85: =C7/12 -> 247.25 | E85: PAN | F85: 0.2222222222 | H85: BE | I85: =I8/14 ->  | K85: PAN | L85: 0 | N85: BE | O85: =O8/14 -> 215.5714286 | Q85: CDS/PP | R85: 115.3333333 | T85: IOMAF | U85: =U8/14 -> 53.28571429 | W85: PPD/PSD | X85: 66.53846154 | Z85: PS | AA85: =AA8/14 -> 206.3571429 | AC85: IOMAF | AD85: 111.1153846 | AF85: PPD/PSD | AG85: =AG8/14 -> 11.71428571 | AI85: BE | AJ85: 39.85714286 | AL85: PPD/PSD | AM85: =AM8/14 -> 25.42857143 | AO85: PPD/PSD | AP85: 30.75
B86: CDU | C86: 8.833333333 | E86: PCTP/MRPP | F86: 0.2 | H86: PAN | I86: =I9/14 ->  | K86: PPD/PSD | L86: 0 | N86: IOMAF | O86: =O9/14 -> 32.5 | Q86: BE | R86: 113.75 | T86: CDS/PP | U86: =U9/14 -> 56.78571429 | W86: PPD/PSD | X86: 66.25 | Z86: PPD/PSD | AA86: =AA9/14 -> 34.07142857 | AC86: BE | AD86: 110.4666667 | AF86: CDU | AG86: =AG9/14 -> 19.64285714 | AI86: PS | AJ86: 39.82608696 | AL86: CDU | AM86: =AM9/14 -> 71.42857143 | AO86: IOMAF | AP86: 29.66666667
B87: PS | C87: 21.25 | E87: PPD/PSD | F87: 0.1818181818 | H87: PPD/PSD | I87: =I10/14 ->  | K87: IOMAF | L87: 0 | N87: CDS/PP | O87: =O10/14 -> 186.5 | Q87: PPD/PSD | R87: 113.5217391 | T87: PS | U87: =U10/14 -> 22.85714286 | W87: BE | X87: 64 | Z87: IOMAF | AA87: =AA10/14 -> 118.3571429 | AC87: BE | AD87: 107 | AF87: BE | AG87: =AG10/14 -> 109.5714286 | AI87: BE | AJ87: 39.28571429 | AL87: BE | AM87: =AM10/14 -> 72.57142857 | AO87: PAN | AP87: 28.83333333
B88: PPD/PSD | C88: 16.33333333 | E88: PAN | F88: 0.1666666667 | H88: IOMAF | I88: =I11/14 ->  | K88: CDS/PP | L88: 0 | N88: PS | O88: =O11/14 -> 173 | Q88: PPD/PSD | R88: 111.7777778 | T88: PPD/PSD | U88: =U11/14 -> 123.5714286 | W88: PS | X88: 62.16666667 | Z88: CDS/PP | AA88: =AA11/14 -> 66.78571429 | AC88: CDU | AD88: 103.8888889 | AF88: MMS | AG88: =AG11/14 -> 59.78571429 | AI88: PAN | AJ88: 38.16666667 | AL88: MMS | AM88: =AM11/14 -> 8.785714286 | AO88: BE | AP88: 27.38461538
B89: PTP | C89: 379.5 | E89: PCTP/MRPP | F89: 0.1538461538 | H89: CDS/PP | I89: =I7/15 ->  | K89: PS | L89: 0 | N89: PPD/PSD | O89: =O7/15 -> 56.93333333 | Q89: IOMAF | R89: 110.0909091 | T89: CDU | U89: =U7/15 -> 130.2666667 | W89: PS | X89: 61.15384615 | Z89: PS | AA89: =AA7/15 -> 253.3333333 | AC89: CDU | AD89: 103.5625 | AF89: PAN | AG89: =AG7/15 -> 61.06666667 | AI89: CDS/PP | AJ89: 38.04545455 | AL89: PAN | AM89: =AM7/15 -> 23.06666667 | AO89: CDU | AP89: 26.61538462
B90: IOMAF | C90: 6 | E90: PTP | F90: 0.1538461538 | H90: PS | I90: =I8/15 ->  | K90: CDU | L90: 0 | N90: CDU | O90: =O8/15 -> 201.2 | Q90: PS | R90: 108.7916667 | T90: BE | U90: =U8/15 -> 49.73333333 | W90: CDS/PP | X90: 57.38461538 | Z90: PPD/PSD | AA90: =AA8/15 -> 192.6 | AC90: PPD/PSD | AD90: 97.47058824 | AF90: PTP | AG90: =AG8/15 -> 10.93333333 | AI90: PPD/PSD | AJ90: 36.64 | AL90: IOMAF | AM90: =AM8/15 -> 23.73333333 | AO90: PPD/PSD | AP90: 25.42857143
B91: PCTP/MRPP | C91: =C7/13 -> 228.2307692 | E91: CDU | H91: CDU | I91: =I9/15 ->  | K91: BE | L91: 0 | N91: BE | O91: =O9/15 -> 30.33333333 | Q91: BE | R91: 106.75 | T91: IOMAF | U91: =U9/15 -> 53 | W91: CDS/PP | X91: 56.78571429 | Z91: CDU | AA91: =AA9/15 -> 31.8 | AC91: CDU | AD91: 95.4 | AF91: IOMAF | AG91: =AG9/15 -> 18.33333333 | AI91: MMS | AJ91: 36.39130435 | AL91: CDS/PP | AM91: =AM9/15 -> 66.66666667 | AO91: PS | AP91: 24.71428571
B92: BE | C92: 8.153846154 | E92: PS | H92: BE | I92: =I10/15 ->  | K92: PAN | L92: 0 | N92: IOMAF | O92: =O10/15 -> 174.0666667 | Q92: CDU | R92: 105.3043478 | T92: CDS/PP | U92: =U10/15 -> 21.33333333 | W92: CDU | X92: 53.33333333 | Z92: BE | AA92: =AA10/15 -> 110.4666667 | AC92: PPD/PSD | AD92: 93.5 | AF92: CDS/PP | AG92: =AG10/15 -> 102.2666667 | AI92: IOMAF | AJ92: 35.23076923 | AL92: PS | AM92: =AM10/15 -> 67.73333333 | AO92: IOMAF | AP92: 24.6
B93: CDS/PP | C93: 19.61538462 | E93: PPD/PSD | H93: PAN | I93: =I11/15 ->  | K93: PPD/PSD | L93: 0 | N93: CDS/PP | O93: =O11/15 -> 161.4666667 | Q93: CDS/PP | R93: 104.44 | T93: PS | U93: =U11/15 -> 115.3333333 | W93: IOMAF | X93: 53.28571429 | Z93: IOMAF | AA93: =AA11/15 -> 62.33333333 | AC93: PS | AD93: 92.05555556 | AF93: PS | AG93: =AG11/15 -> 55.8 | AI93: PS | AJ93: 34.875 | AL93: PPD/PSD | AM93: =AM11/15 -> 8.2 | AO93: IOMAF | AP93: 23.73333333
B94: PAN | C94: 15.07692308 | E94: PTP | H94: PPD/PSD | I94: =I7/16 ->  | K94: IOMAF | L94: 0 | N94: PS | O94: =O7/16 -> 53.375 | Q94: PPD/PSD | R94: 100.9166667 | T94: PPD/PSD | U94: =U7/16 -> 122.125 | W94: IOMAF | X94: 53 | Z94: CDS/PP | AA94: =AA7/16 -> 237.5 | AC94: CDS/PP | AD94: 87.21052632 | AF94: PPD/PSD | AG94: =AG7/16 -> 57.25 | AI94: CDS/PP | AJ94: 34.375 | AL94: CDU | AM94: =AM7/16 -> 21.625 | AO94: PAN | AP94: 23.06666667
B95: PS | C95: 350.3076923 | E95: IOMAF | H95: CDU | I95: =I8/16 ->  | K95: CDS/PP | L95: 0 | N95: PPD/PSD | O95: =O8/16 -> 188.625 | Q95: IOMAF | R95: 100.4230769 | T95: CDU | U95: =U8/16 -> 46.625 | W95: BE | X95: 49.73333333 | Z95: PS | AA95: =AA8/16 -> 180.5625 | AC95: PS | AD95: 85 | AF95: CDU | AG95: =AG8/16 -> 10.25 | AI95: BE | AJ95: 33.92592593 | AL95: BE | AM95: =AM8/16 -> 22.25 | AO95: BE | AP95: 22.25
B96: PPD/PSD | C96: 5.538461538 | E96: PCTP/MRPP | H96: BE | I96: =I9/16 ->  | K96: PS | L96: 0 | N96: CDU | O96: =O9/16 -> 28.4375 | Q96: PS | R96: 96.88 | T96: BE | U96: =U9/16 -> 49.6875 | W96: BE | X96: 49.6875 | Z96: PPD/PSD | AA96: =AA9/16 -> 29.8125 | AC96: IOMAF | AD96: 82.85 | AF96: BE | AG96: =AG9/16 -> 17.1875 | AI96: PAN | AJ96: 33.48 | AL96: MMS | AM96: =AM9/16 -> 62.5 | AO96: CDU | AP96: 21.625
B97: PTP | C97: =C7/13 -> 228.2307692 | E97: CDU | H97: PAN | I97: =I10/16 ->  | K97: CDU | L97: 0 | N97: BE | O97: =O10/16 -> 163.1875 | Q97: CDU | R97: 94.88888889 | T97: IOMAF | U97: =U10/16 -> 20 | W97: CDU | X97: 46.76470588 | Z97: CDU | AA97: =AA10/16 -> 103.5625 | AC97: PPD/PSD | AD97: 79.5 | AF97: MMS | AG97: =AG10/16 -> 95.875 | AI97: PPD/PSD | AJ97: 32.8 | AL97: PAN | AM97: =AM10/16 -> 63.5 | AO97: PS | AP97: 20.94117647
B98: IOMAF | C98: =C8/14 -> 7.571428571 | E98: PS | H98: PPD/PSD | I98: =I11/16 ->  | K98: BE | L98: 0 | N98: IOMAF | O98: =O11/16 -> 151.375 | Q98: CDS/PP | R98: 93.15384615 | T98: CDS/PP | U98: =U11/16 -> 108.125 | W98: CDU | X98: 46.625 | Z98: BE | AA98: =AA11/16 -> 58.4375 | AC98: PPD/PSD | AD98: 78.9047619 | AF98: PAN | AG98: =AG11/16 -> 52.3125 | AI98: CDU | AJ98: 32.19230769 | AL98: IOMAF | AM98: =AM11/16 -> 7.6875 | AO98: BE | AP98: 20.5
B99: PCTP/MRPP | C99: =C9/14 -> 18.21428571 | E99: PPD/PSD | H99: IOMAF | I99: =I7/17 ->  | K99: PAN | L99: 0 | N99: CDS/PP | O99: =O7/17 -> 50.23529412 | Q99: CDU | R99: 91 | T99: PS | U99: =U7/17 -> 114.9411765 | W99: PPD/PSD | X99: 45.71428571 | Z99: IOMAF | AA99: =AA7/17 -> 223.5294118 | AC99: CDS/PP | AD99: 77.91666667 | AF99: PTP | AG99: =AG7/17 -> 53.88235294 | AI99: MMS | AJ99: 30.55555556 | AL99: CDS/PP | AM99: =AM7/17 -> 20.35294118 | AO99: CDS/PP | AP99: 20.35294118
B100: BE | C100: =C10/14 -> 14 | E100: PTP | H100: CDS/PP | I100: =I8/17 ->  | K100: PPD/PSD | L100: 0 | N100: PS | O100: =O8/17 -> 177.5294118 | Q100: PPD/PSD | R100: 85.4 | T100: PPD/PSD | U100: =U8/17 -> 43.88235294 | W100: PPD/PSD | X100: 44.16666667 | Z100: CDS/PP | AA100: =AA8/17 -> 169.9411765 | AC100: PS | AD100: 75.31818182 | AF100: IOMAF | AG100: =AG8/17 -> 9.647058824 | AI100: PS | AJ100: 27.5 | AL100: PS | AM100: =AM8/17 -> 20.94117647 | AO100: PAN | AP100: 19.77777778
B101: CDS/PP | C101: =C11/14 -> 325.2857143 | E101: IOMAF | H101: PS | I101: =I9/17 ->  | K101: IOMAF | L101: 0 | N101: PPD/PSD | O101: =O9/17 -> 26.76470588 | Q101: PS | R101: 77.63636364 | T101: CDU | U101: =U9/17 -> 46.76470588 | W101: PPD/PSD | X101: 43.88235294 | Z101: PS | AA101: =AA9/17 -> 28.05882353 | AC101: CDS/PP | AD101: 72.04347826 | AF101: CDS/PP | AG101: =AG9/17 -> 16.17647059 | AI101: PTP | AJ101: 27.33333333 | AL101: PPD/PSD | AM101: =AM9/17 -> 58.82352941 | AO101: MMS | AP101: 19.22222222
B102: PAN | C102: =C12/14 -> 5.142857143 | E102: PCTP/MRPP | H102: CDU | I102: =I10/17 ->  | K102: CDS/PP | L102: 0 | N102: CDU | O102: =O10/17 -> 153.5882353 | Q102: PPD/PSD | R102: 75.83333333 | T102: BE | U102: =U10/17 -> 18.82352941 | W102: PS | X102: 41.84210526 | Z102: PPD/PSD | AA102: =AA10/17 -> 97.47058824 | AC102: IOMAF | AD102: 71.92307692 | AF102: PS | AG102: =AG10/17 -> 90.23529412 | AI102: PAN | AJ102: 25 | AL102: CDU | AM102: =AM10/17 -> 59.76470588 | AO102: CDU | AP102: 18.73684211
B103: CDU | E103: CDU | H103: BE | I103: =I11/17 ->  | K103: PS | L103: 0 | N103: BE | O103: =O11/17 -> 142.4705882 | Q103: IOMAF | R103: 71.16666667 | T103: IOMAF | U103: =U11/17 -> 101.7647059 | W103: PS | X103: 41.44444444 | Z103: CDU | AA103: =AA11/17 -> 55 | AC103: IOMAF | AD103: 69.04166667 | AF103: PPD/PSD | AG103: =AG11/17 -> 49.23529412 | AI103: CDU | AJ103: 23.42857143 | AL103: BE | AM103: =AM11/17 -> 7.235294118 | AO103: PPD/PSD | AP103: 18.21052632
B104: PS | E104: PS | H104: PAN | I104: =I7/18 ->  | K104: CDU | L104: 0 | N104: IOMAF | O104: =O7/18 -> 47.44444444 | Q104: BE | R104: 65.69230769 | T104: CDS/PP | U104: =U7/18 -> 108.5555556 | W104: PS | X104: 40 | Z104: BE | AA104: =AA7/18 -> 211.1111111 | AC104: PS | AD104: 68.14285714 | AF104: CDU | AG104: =AG7/18 -> 50.88888889 | AI104: PPD/PSD | AJ104: 22.91666667 | AL104: MMS | AM104: =AM7/18 -> 19.22222222 | AO104: CDS/PP | AP104: 17.8
B105: PPD/PSD | E105: PPD/PSD | H105: PPD/PSD | I105: =I8/18 ->  | K105: BE | L105: 0 | N105: CDS/PP | O105: =O8/18 -> 167.6666667 | Q105: PS | R105: 65 | T105: PS | U105: =U8/18 -> 41.44444444 | W105: CDS/PP | X105: 39.75 | Z105: IOMAF | AA105: =AA8/18 -> 160.5 | AC105: CDS/PP | AD105: 66.78571429 | AF105: BE | AG105: =AG8/18 -> 9.111111111 | AI105: PTP | AJ105: 21.15384615 | AL105: PAN | AM105: =AM8/18 -> 19.77777778 | AO105: PS | AP105: 17.57142857
B106: PTP | E106: PTP | H106: IOMAF | I106: =I9/18 ->  | K106: PAN | L106: 0 | N106: PS | O106: =O9/18 -> 25.27777778 | Q106: CDU | R106: 61 | T106: PPD/PSD | U106: =U9/18 -> 44.16666667 | W106: CDS/PP | X106: 39.26315789 | Z106: CDS/PP | AA106: =AA9/18 -> 26.5 | AC106: BE | AD106: 66.28 | AF106: MMS | AG106: =AG9/18 -> 15.27777778 | AI106: IOMAF | AJ106: 20.5 | AL106: IOMAF | AM106: =AM9/18 -> 55.55555556 | AO106: IOMAF | AP106: 17.3
B107: IOMAF | E107: IOMAF | H107: CDS/PP | I107: =I10/18 ->  | K107: PPD/PSD | L107: 0 | N107: PPD/PSD | O107: =O10/18 -> 145.0555556 | Q107: PPD/PSD | R107: 56.93333333 | T107: CDU | U107: =U10/18 -> 17.77777778 | W107: IOMAF | X107: 37.85714286 | Z107: PS | AA107: =AA10/18 -> 92.05555556 | AC107: PS | AD107: 63.73076923 | AF107: PAN | AG107: =AG10/18 -> 85.22222222 | AI107: CDU | AJ107: 19.64285714 | AL107: CDS/PP | AM107: =AM10/18 -> 56.44444444 | AO107: MMS | AP107: 16.95238095
B108: PCTP/MRPP | E108: PCTP/MRPP | H108: PS | I108: =I11/18 ->  | K108: IOMAF | L108: 0 | N108: CDU | O108: =O11/18 -> 134.5555556 | Q108: CDS/PP | R108: 56.875 | T108: BE | U108: =U11/18 -> 96.11111111 | W108: IOMAF | X108: 37.3 | Z108: PPD/PSD | AA108: =AA11/18 -> 51.94444444 | AC108: IOMAF | AD108: 62.33333333 | AF108: PTP | AG108: =AG11/18 -> 46.5 | AI108: IOMAF | AJ108: 18.33333333 | AL108: PS | AM108: =AM11/18 -> 6.833333333 | AO108: BE | AP108: 16.47619048
E109: CDU | H109: CDU | I109: =I7/19 ->  | K109: CDS/PP | L109: 0 | N109: BE | O109: =O7/19 -> 44.94736842 | Q109: PS | R109: 53.375 | T109: IOMAF | U109: =U7/19 -> 102.8421053 | W109: BE | X109: 36.13636364 | Z109: CDU | AA109: =AA7/19 -> 200 | AC109: PPD/PSD | AD109: 59.625 | AF109: IOMAF | AG109: =AG7/19 -> 48.21052632 | AI109: BE | AJ109: 18.22222222 | AL109: PPD/PSD | AM109: =AM7/19 -> 18.21052632 | AO109: PPD/PSD | AP109: 16.18181818
E110: PS | H110: BE | I110: =I8/19 ->  | K110: PS | L110: 0 | N110: IOMAF | O110: =O8/19 -> 158.8421053 | Q110: IOMAF | R110: 50.55555556 | T110: CDS/PP | U110: =U8/19 -> 39.26315789 | W110: CDS/PP | X110: 35.55555556 | Z110: BE | AA110: =AA8/19 -> 152.0526316 | AC110: BE | AD110: 58.4375 | AF110: CDS/PP | AG110: =AG8/19 -> 8.631578947 | AI110: BE | AJ110: 17.1875 | AL110: CDU | AM110: =AM8/19 -> 18.73684211 | AO110: PS | AP110: 15.72727273
E111: PPD/PSD | H111: PAN | I111: =I9/19 ->  | K111: CDU | L111: 0 | N111: CDS/PP | O111: =O9/19 -> 23.94736842 | Q111: CDS/PP | R111: 50.23529412 | T111: PS | U111: =U9/19 -> 41.84210526 | W111: BE | X111: 35.52380952 | Z111: IOMAF | AA111: =AA9/19 -> 25.10526316 | AC111: CDU | AD111: 55 | AF111: PS | AG111: =AG9/19 -> 14.47368421 | AI111: CDS/PP | AJ111: 16.4 | AL111: BE | AM111: =AM9/19 -> 52.63157895 | AO111: IOMAF | AP111: 15.47826087
E112: PTP | H112: PPD/PSD | I112: =I10/19 ->  | K112: CDU | L112: 0 | N112: PS | O112: =O10/19 -> 137.4210526 | Q112: IOMAF | R112: 47.44444444 | T112: PPD/PSD | U112: =U10/19 -> 16.84210526 | W112: CDU | X112: 34.56521739 | Z112: CDS/PP | AA112: =AA10/19 -> 87.21052632 | AC112: PS | AD112: 53 | AF112: PPD/PSD | AG112: =AG10/19 -> 80.73684211 | AI112: CDS/PP | AJ112: 16.17647059 | AL112: MMS | AM112: =AM10/19 -> 53.47368421 | AO112: PAN | AP112: 15.375
E113: IOMAF | H113: IOMAF | I113: =I11/19 ->  | K113: BE | L113: 0 | N113: PPD/PSD | O113: =O11/19 -> 127.4736842 | Q113: BE | R113: 45.5 | T113: CDU | U113: =U11/19 -> 91.05263158 | W113: CDU | X113: 33.90909091 | Z113: PS | AA113: =AA11/19 -> 49.21052632 | AC113: PPD/PSD | AD113: 51.94444444 | AF113: CDU | AG113: =AG11/19 -> 44.05263158 | AI113: MMS | AJ113: 15.27777778 | AL113: PAN | AM113: =AM11/19 -> 6.473684211 | AO113: PAN | AP113: 15.04347826
E114: PCTP/MRPP | H114: CDS/PP | I114: =I7/20 ->  | K114: PAN | L114: 0 | N114: CDU | O114: =O7/20 -> 42.7 | Q114: BE | R114: 44.94736842 | T114: BE | U114: =U7/20 -> 97.7 | W114: PPD/PSD | X114: 33.125 | Z114: PPD/PSD | AA114: =AA7/20 -> 190 | AC114: PS | AD114: 49.21052632 | AF114: BE | AG114: =AG7/20 -> 45.8 | AI114: MMS | AJ114: 14.90909091 | AL114: IOMAF | AM114: =AM7/20 -> 17.3 | AO114: BE | AP114: 14.83333333
H115: PS | I115: =I8/20 ->  | K115: PPD/PSD | L115: 0 | N115: BE | O115: =O8/20 -> 150.9 | Q115: CDU | R115: 42.7 | T115: IOMAF | U115: =U8/20 -> 37.3 | W115: PPD/PSD | X115: 32.43478261 | Z115: CDU | AA115: =AA8/20 -> 144.45 | AC115: CDS/PP | AD115: 47.7 | AF115: MMS | AG115: =AG8/20 -> 8.2 | AI115: PS | AJ115: 14.47368421 | AL115: CDS/PP | AM115: =AM8/20 -> 17.8 | AO115: CDU | AP115: 14.41666667
H116: CDU | I116: =I9/20 ->  | K116: IOMAF | L116: 0 | N116: IOMAF | O116: =O9/20 -> 22.75 | Q116: CDU | R116: 41.36363636 | T116: CDS/PP | U116: =U9/20 -> 39.75 | W116: IOMAF | X116: 32 | Z116: BE | AA116: =AA9/20 -> 23.85 | AC116: CDS/PP | AD116: 46.75 | AF116: PAN | AG116: =AG9/20 -> 13.75 | AI116: PAN | AJ116: 13.75 | AL116: PS | AM116: =AM9/20 -> 50 | AO116: PS | AP116: 14.24
H117: BE | I117: =I10/20 ->  | K117: CDS/PP | L117: 0 | N117: CDS/PP | O117: =O10/20 -> 130.55 | Q117: PPD/PSD | R117: 40.66666667 | T117: PS | U117: =U10/20 -> 16 | W117: PS | X117: 31.8 | Z117: IOMAF | AA117: =AA10/20 -> 82.85 | AC117: CDU | AD117: 44.52380952 | AF117: PTP | AG117: =AG10/20 -> 76.7 | AI117: PS | AJ117: 13.66666667 | AL117: PPD/PSD | AM117: =AM10/20 -> 50.8 | AO117: CDS/PP | AP117: 13.84
H118: PAN | I118: =I11/20 ->  | K118: PS | L118: 0 | N118: PS | O118: =O11/20 -> 121.1 | Q118: PS | R118: 38.81818182 | T118: PPD/PSD | U118: =U11/20 -> 86.5 | W118: PS | X118: 31.08333333 | Z118: CDS/PP | AA118: =AA11/20 -> 46.75 | AC118: IOMAF | AD118: 43.36363636 | AF118: IOMAF | AG118: =AG11/20 -> 41.85 | AI118: PPD/PSD | AJ118: 13.0952381 | AL118: CDU | AM118: =AM11/20 -> 6.15 | AO118: IOMAF | AP118: 13.69230769
H119: PPD/PSD | I119: =I7/21 ->  | K119: CDU | L119: 0 | N119: PPD/PSD | O119: =O7/21 -> 40.66666667 | Q119: PS | R119: 37.91666667 | T119: CDU | U119: =U7/21 -> 93.04761905 | W119: CDS/PP | X119: 30.57692308 | Z119: IOMAF | AA119: =AA7/21 -> 180.952381 | AC119: PPD/PSD | AD119: 42.5 | AF119: CDS/PP | AG119: =AG7/21 -> 43.61904762 | AI119: PAN | AJ119: 12.61538462 | AL119: BE | AM119: =AM7/21 -> 16.47619048 | AO119: CDU | AP119: 13.66666667
H120: IOMAF | I120: =I8/21 ->  | K120: BE | L120: 0 | N120: CDU | O120: =O8/21 -> 143.7142857 | Q120: IOMAF | R120: 37.13043478 | T120: BE | U120: =U8/21 -> 35.52380952 | W120: CDS/PP | X120: 29.84 | Z120: CDS/PP | AA120: =AA8/21 -> 137.5714286 | AC120: PS | AD120: 40.65217391 | AF120: PS | AG120: =AG8/21 -> 7.80952381 | AI120: PTP | AJ120: 12.5 | AL120: MMS | AM120: =AM8/21 -> 16.95238095 | AO120: MMS | AP120: 13.30769231
H121: CDS/PP | I121: =I9/21 ->  | K121: PAN | L121: 0 | N121: BE | O121: =O9/21 -> 21.66666667 | Q121: BE | R121: 35.58333333 | T121: IOMAF | U121: =U9/21 -> 37.85714286 | W121: IOMAF | X121: 29.44444444 | Z121: PS | AA121: =AA9/21 -> 22.71428571 | AC121: BE | AD121: 39.75 | AF121: PPD/PSD | AG121: =AG9/21 -> 13.0952381 | AI121: CDU | AJ121: 11.95652174 | AL121: PAN | AM121: =AM9/21 -> 47.61904762 | AO121: CDS/PP | AP121: 13.18518519
H122: PS | I122: =I10/21 ->  | K122: PPD/PSD | L122: 0 | N122: IOMAF | O122: =O10/21 -> 124.3333333 | Q122: CDS/PP | R122: 35 | T122: CDS/PP | U122: =U10/21 -> 15.23809524 | W122: BE | X122: 29.09090909 | Z122: PPD/PSD | AA122: =AA10/21 -> 78.9047619 | AC122: CDS/PP | AD122: 38.95833333 | AF122: CDU | AG122: =AG10/21 -> 73.04761905 | AI122: PPD/PSD | AJ122: 11.71428571 | AL122: IOMAF | AM122: =AM10/21 -> 48.38095238 | AO122: IOMAF | AP122: 12.81481481
H123: CDU | I123: =I11/21 ->  | K123: CDU | L123: 0 | N123: CDS/PP | O123: =O11/21 -> 115.3333333 | Q123: CDU | R123: 34.16 | T123: PS | U123: =U11/21 -> 82.38095238 | W123: IOMAF | X123: 28.69230769 | Z123: CDU | AA123: =AA11/21 -> 44.52380952 | AC123: IOMAF | AD123: 37.4 | AF123: BE | AG123: =AG11/21 -> 39.85714286 | AI123: IOMAF | AJ123: 11.45833333 | AL123: CDS/PP | AM123: =AM11/21 -> 5.857142857 | AO123: CDS/PP | AP123: 12.3
H124: CDU | I124: =I7/22 ->  | K124: BE | L124: 0 | N124: PS | O124: =O7/22 -> 38.81818182 | Q124: PPD/PSD | R124: 32.84615385 | T124: PPD/PSD | U124: =U7/22 -> 88.81818182 | W124: BE | X124: 27.62962963 | Z124: BE | AA124: =AA7/22 -> 172.7272727 | AC124: CDU | AD124: 36.69230769 | AF124: MMS | AG124: =AG7/22 -> 41.63636364 | AI124: BE | AJ124: 11 | AL124: PS | AM124: =AM7/22 -> 15.72727273 | AO124: MMS | AP124: 11.18181818
H125: BE | I125: =I8/22 ->  | K125: PAN | L125: 0 | N125: PPD/PSD | O125: =O8/22 -> 137.1818182 | Q125: IOMAF | R125: 32.5 | T125: CDU | U125: =U8/22 -> 33.90909091 | W125: CDU | X125: 26.66666667 | Z125: IOMAF | AA125: =AA8/22 -> 131.3181818 | AC125: PPD/PSD | AD125: 35.96153846 | AF125: PAN | AG125: =AG8/22 -> 7.454545455 | AI125: PTP | AJ125: 10.93333333 | AL125: PPD/PSD | AM125: =AM8/22 -> 16.18181818 | AO125: PPD/PSD | AP125: 10.25
H126: PAN | I126: =I9/22 ->  | K126: PPD/PSD | L126: 0 | N126: CDU | O126: =O9/22 -> 20.68181818 | Q126: PS | R126: 31.62962963 | T126: BE | U126: =U9/22 -> 36.13636364 | W126: PPD/PSD | X126: 24.61538462 | Z126: CDS/PP | AA126: =AA9/22 -> 21.68181818 | AC126: PPD/PSD | AD126: 34.07142857 | AF126: PTP | AG126: =AG9/22 -> 12.5 | AI126: PS | AJ126: 10.57692308 | AL126: CDU | AM126: =AM9/22 -> 45.45454545 | AO126: CDS/PP | AP126: 9.461538462
H127: PPD/PSD | I127: =I10/22 ->  | K127: IOMAF | L127: 0 | N127: BE | O127: =O10/22 -> 118.6818182 | Q127: BE | R127: 30.33333333 | T127: IOMAF | U127: =U10/22 -> 14.54545455 | W127: PS | X127: 22.85714286 | Z127: PS | AA127: =AA10/22 -> 75.31818182 | AC127: CDU | AD127: 31.8 | AF127: IOMAF | AG127: =AG10/22 -> 69.72727273 | AI127: CDU | AJ127: 10.25 | AL127: BE | AM127: =AM10/22 -> 46.18181818 | AO127: MMS | AP127: 8.785714286
H128: IOMAF | I128: =I11/22 ->  | K128: CDS/PP | L128: 0 | N128: IOMAF | O128: =O11/22 -> 110.0909091 | Q128: CDU | R128: 28.4375 | T128: CDS/PP | U128: =U11/22 -> 78.63636364 | W128: CDS/PP | X128: 21.33333333 | Z128: PPD/PSD | AA128: =AA11/22 -> 42.5 | AC128: PPD/PSD | AD128: 29.8125 | AF128: CDS/PP | AG128: =AG11/22 -> 38.04545455 | AI128: PAN | AJ128: 10.18518519 | AL128: MMS | AM128: =AM11/22 -> 5.590909091 | AO128: PPD/PSD | AP128: 8.2
H129: CDS/PP | I129: =I7/23 ->  | K129: PS | L129: 0 | N129: IOMAF | O129: =O7/23 -> 37.13043478 | Q129: PPD/PSD | R129: 26.76470588 | T129: PS | U129: =U7/23 -> 84.95652174 | W129: IOMAF | X129: 20 | Z129: CDU | AA129: =AA7/23 -> 165.2173913 | AC129: PS | AD129: 28.05882353 | AF129: PS | AG129: =AG7/23 -> 39.82608696 | AI129: IOMAF | AJ129: 9.647058824 | AL129: PAN | AM129: =AM7/23 -> 15.04347826 | AO129: IOMAF | AP129: 7.6875
H130: PS | I130: =I8/23 ->  | K130: CDU | L130: 0 | N130: CDS/PP | O130: =O8/23 -> 131.2173913 | Q130: PS | R130: 25.27777778 | T130: PPD/PSD | U130: =U8/23 -> 32.43478261 | W130: BE | X130: 18.82352941 | Z130: BE | AA130: =AA8/23 -> 125.6086957 | AC130: CDS/PP | AD130: 26.5 | AF130: PPD/PSD | AG130: =AG8/23 -> 7.130434783 | AI130: BE | AJ130: 9.111111111 | AL130: IOMAF | AM130: =AM8/23 -> 15.47826087 | AO130: BE | AP130: 7.235294118
H131: CDU | I131: =I9/23 ->  | K131: BE | L131: 0 | N131: PS | O131: =O9/23 -> 19.7826087 | Q131: CDS/PP | R131: 23.94736842 | T131: CDU | U131: =U9/23 -> 34.56521739 | W131: CDU | X131: 17.77777778 | Z131: IOMAF | AA131: =AA9/23 -> 20.73913043 | AC131: IOMAF | AD131: 25.10526316 | AF131: CDU | AG131: =AG9/23 -> 11.95652174 | AI131: CDS/PP | AJ131: 8.631578947 | AL131: CDS/PP | AM131: =AM9/23 -> 43.47826087 | AO131: PS | AP131: 6.833333333
H132: BE | I132: =I10/23 ->  | K132: PAN | L132: 0 | N132: PPD/PSD | O132: =O10/23 -> 113.5217391 | Q132: IOMAF | R132: 22.75 | T132: BE | U132: =U10/23 -> 13.91304348 | W132: PPD/PSD | X132: 16.84210526 | Z132: CDS/PP | AA132: =AA10/23 -> 72.04347826 | AC132: BE | AD132: 23.85 | AF132: BE | AG132: =AG10/23 -> 66.69565217 | AI132: MMS | AJ132: 8.2 | AL132: PS | AM132: =AM10/23 -> 44.17391304 | AO132: PAN | AP132: 6.473684211
H133: PAN | I133: =I11/23 ->  | K133: PPD/PSD | L133: 0 | N133: CDU | O133: =O11/23 -> 105.3043478 | Q133: BE | R133: 21.66666667 | T133: IOMAF | U133: =U11/23 -> 75.2173913 | W133: PS | X133: 16 | Z133: PS | AA133: =AA11/23 -> 40.65217391 | AC133: PS | AD133: 22.71428571 | AF133: MMS | AG133: =AG11/23 -> 36.39130435 | AI133: PS | AJ133: 7.80952381 | AL133: PPD/PSD | AM133: =AM11/23 -> 5.347826087 | AO133: CDU | AP133: 6.15
H134: PPD/PSD | I134: =I7/24 ->  | K134: IOMAF | L134: 0 | N134: BE | O134: =O7/24 -> 35.58333333 | Q134: CDU | R134: 20.68181818 | T134: CDS/PP | U134: =U7/24 -> 81.41666667 | W134: CDS/PP | X134: 15.23809524 | Z134: PPD/PSD | AA134: =AA7/24 -> 158.3333333 | AC134: CDS/PP | AD134: 21.68181818 | AF134: PAN | AG134: =AG7/24 -> 38.16666667 | AI134: PAN | AJ134: 7.454545455 | AL134: CDU | AM134: =AM7/24 -> 14.41666667 | AO134: CDS/PP | AP134: 5.857142857
H135: CDU | I135: =I8/24 ->  | K135: CDS/PP | L135: 0 | N135: IOMAF | O135: =O8/24 -> 125.75 | Q135: PS | R135: 19.7826087 | T135: PS | U135: =U8/24 -> 31.08333333 | W135: IOMAF | X135: 14.54545455 | Z135: CDU | AA135: =AA8/24 -> 120.375 | AC135: IOMAF | AD135: 20.73913043 | AF135: PTP | AG135: =AG8/24 -> 6.833333333 | AI135: PPD/PSD | AJ135: 7.130434783 | AL135: BE | AM135: =AM8/24 -> 14.83333333 | AO135: MMS | AP135: 5.590909091
H136: BE | I136: =I9/24 ->  | K136: PS | L136: 0 | N136: CDS/PP | O136: =O9/24 -> 18.95833333 | Q136: CDS/PP | R136: 18.95833333 | T136: PPD/PSD | U136: =U9/24 -> 33.125 | W136: BE | X136: 13.91304348 | Z136: BE | AA136: =AA9/24 -> 19.875 | AC136: BE | AD136: 19.875 | AF136: IOMAF | AG136: =AG9/24 -> 11.45833333 | AI136: PTP | AJ136: 6.833333333 | AL136: MMS | AM136: =AM9/24 -> 41.66666667 | AO136: PPD/PSD | AP136: 5.347826087
H137: PAN | I137: =I10/24 ->  | K137: CDU | L137: 0 | N137: PS | O137: =O10/24 -> 108.7916667 | Q137: IOMAF | R137: 18.2 | T137: CDU | U137: =U10/24 -> 13.33333333 | W137: CDU | X137: 13.33333333 | Z137: IOMAF | AA137: =AA10/24 -> 69.04166667 | AC137: CDU | AD137: 19.08 | AF137: CDS/PP | AG137: =AG10/24 -> 63.91666667 | AI137: CDU | AJ137: 6.56 | AL137: PAN | AM137: =AM10/24 -> 42.33333333 | AO137: IOMAF | AP137: 5.125
H138: PPD/PSD | I138: =I11/24 ->  | K138: BE | L138: 0 | N138: PPD/PSD | O138: =O11/24 -> 100.9166667 | Q138: BE | R138: 17.5 | T138: BE | U138: =U11/24 -> 72.08333333 | W138: PPD/PSD | X138: 12.8 | Z138: CDS/PP | AA138: =AA11/24 -> 38.95833333 | AC138: CDS/PP | AD138: 18.34615385 | AF138: PS | AG138: =AG11/24 -> 34.875 | AI138: CDS/PP | AJ138: 6.307692308 | AL138: IOMAF | AM138: =AM11/24 -> 5.125 | AO138: BE | AP138: 4.92
H139: IOMAF | I139: =I7/25 ->  | K139: PAN | L139: 0 | N139: CDU | O139: =O7/25 -> 34.16 | Q139: CDU | R139: 16.85185185 | T139: IOMAF | U139: =U7/25 -> 78.16 | W139: PS | X139: 12.30769231 | Z139: PS | AA139: =AA7/25 -> 152 | AC139: IOMAF | AD139: 17.66666667 | AF139: PPD/PSD | AG139: =AG7/25 -> 36.64 | AI139: MMS | AJ139: 6.074074074 | AL139: CDS/PP | AM139: =AM7/25 -> 13.84 | AO139: PPD/PSD | AP139: 4.730769231
H140: CDS/PP | I140: =I8/25 ->  | K140: PPD/PSD | L140: 0 | N140: BE | O140: =O8/25 -> 120.72 | Q140: BE | R140: 96.7037037 | T140: CDS/PP | U140: =U8/25 -> 29.84 | W140: CDS/PP | X140: 11.85185185 | Z140: PPD/PSD | AA140: =AA8/25 -> 115.56 | AC140: CDS/PP | AD140: 61.37037037 | AF140: CDU | AG140: =AG8/25 -> 6.56 | AI140: PTP | AJ140: 56.81481481 | AL140: PS | AM140: =AM8/25 -> 14.24 | AO140: PPD/PSD | AP140: 37.62962963
H141: PS | I141: =I9/25 ->  | K141: IOMAF | L141: 0 | N141: IOMAF | O141: =O9/25 -> 18.2 | Q141: IOMAF | R141: 89.7037037 | T141: PS | U141: =U9/25 -> 31.8 | W141: PS | X141: 64.07407407 | Z141: CDU | AA141: =AA9/25 -> 19.08 | AC141: PS | AD141: 34.62962963 | AF141: BE | AG141: =AG9/25 -> 11 | AI141: IOMAF | AJ141: 31 | AL141: PPD/PSD | AM141: =AM9/25 -> 40 | AO141: CDU | AP141: 4.555555556
H142: CDU | I142: =I10/25 ->  | K142: CDS/PP | L142: 0 | N142: CDS/PP | O142: =O10/25 -> 104.44 | Q142: CDS/PP | T142: PPD/PSD | U142: =U10/25 -> 12.8 | W142: PPD/PSD | Z142: BE | AA142: =AA10/25 -> 66.28 | AC142: PPD/PSD | AF142: MMS | AG142: =AG10/25 -> 61.36 | AI142: CDS/PP | AL142: CDU | AM142: =AM10/25 -> 40.64 | AO142: BE
H143: BE | I143: =I11/25 ->  | K143: PS | L143: 0 | N143: PS | O143: =O11/25 -> 96.88 | Q143: PS | T143: CDU | U143: =U11/25 -> 69.2 | W143: CDU | Z143: IOMAF | AA143: =AA11/25 -> 37.4 | AC143: CDU | AF143: PAN | AG143: =AG11/25 -> 33.48 | AI143: PS | AL143: BE | AM143: =AM11/25 -> 4.92 | AO143: MMS
H144: PAN | I144: =I7/26 ->  | K144: CDU | L144: 0 | N144: PPD/PSD | O144: =O7/26 -> 32.84615385 | Q144: PPD/PSD | T144: BE | U144: =U7/26 -> 75.15384615 | W144: BE | Z144: CDS/PP | AA144: =AA7/26 -> 146.1538462 | AC144: BE | AF144: IOMAF | AG144: =AG7/26 -> 35.23076923 | AI144: PPD/PSD | AL144: MMS | AM144: =AM7/26 -> 13.30769231
H145: PPD/PSD | I145: =I8/26 ->  | K145: BE | L145: 0 | N145: CDU | O145: =O8/26 -> 116.0769231 | Q145: CDU | T145: IOMAF | U145: =U8/26 -> 28.69230769 | W145: IOMAF | Z145: IOMAF | AA145: =AA8/26 -> 111.1153846 | AC145: IOMAF | AF145: CDS/PP | AG145: =AG8/26 -> 6.307692308 | AL145: IOMAF | AM145: =AM8/26 -> 13.69230769
H146: IOMAF | I146: =I9/26 ->  | K146: PAN | L146: 0 | N146: BE | O146: =O9/26 -> 17.5 | Q146: BE | T146: CDS/PP | U146: =U9/26 -> 30.57692308 | W146: CDS/PP | Z146: CDS/PP | AA146: =AA9/26 -> 18.34615385 | AC146: CDS/PP | AF146: PS | AG146: =AG9/26 -> 10.57692308 | AL146: CDS/PP | AM146: =AM9/26 -> 38.46153846
H147: CDS/PP | I147: =I10/26 ->  | K147: PPD/PSD | L147: 0 | N147: IOMAF | O147: =O10/26 -> 100.4230769 | Q147: IOMAF | T147: PS | U147: =U10/26 -> 12.30769231 | W147: PS | Z147: PS | AA147: =AA10/26 -> 63.73076923 | AC147: PS | AF147: PPD/PSD | AG147: =AG10/26 -> 59 | AL147: PS | AM147: =AM10/26 -> 39.07692308
H148: PS | I148: =I11/26 ->  | K148: IOMAF | L148: 0 | N148: CDS/PP | O148: =O11/26 -> 93.15384615 | Q148: CDS/PP | T148: PPD/PSD | U148: =U11/26 -> 66.53846154 | W148: PPD/PSD | Z148: PPD/PSD | AA148: =AA11/26 -> 35.96153846 | AC148: PPD/PSD | AF148: CDU | AG148: =AG11/26 -> 32.19230769 | AL148: PPD/PSD | AM148: =AM11/26 -> 4.730769231
H149: CDU | I149: =I7/27 ->  | K149: CDS/PP | L149: 0 | N149: PS | O149: =O7/27 -> 31.62962963 | Q149: PS | T149: CDU | U149: =U7/27 -> 72.37037037 | W149: CDU | Z149: CDU | AA149: =AA7/27 -> 140.7407407 | AC149: CDU | AF149: BE | AG149: =AG7/27 -> 33.92592593 | AL149: IOMAF | AM149: =AM7/27 -> 12.81481481
H150: BE | I150: =I8/27 ->  | K150: PS | L150: 0 | N150: PPD/PSD | O150: =O8/27 -> 111.7777778 | Q150: PPD/PSD | T150: BE | U150: =U8/27 -> 27.62962963 | W150: BE | Z150: BE | AA150: =AA8/27 -> 107 | AC150: BE | AF150: MMS | AG150: =AG8/27 -> 6.074074074 | AL150: CDS/PP | AM150: =AM8/27 -> 13.18518519
H151: PAN | I151: =I9/27 ->  | K151: CDU | L151: 0 | N151: CDU | O151: =O9/27 -> 16.85185185 | Q151: CDU | T151: IOMAF | U151: =U9/27 -> 29.44444444 | W151: IOMAF | Z151: IOMAF | AA151: =AA9/27 -> 17.66666667 | AF151: PAN | AG151: =AG9/27 -> 10.18518519 | AL151: PS | AM151: =AM9/27 -> 37.03703704
H152: PPD/PSD | I152: =I10/27 ->  | K152: CDU | L152: 0 | N152: BE | O152: =O10/27 -> 96.7037037 | Q152: BE | T152: CDS/PP | U152: =U10/27 -> 11.85185185 | W152: CDS/PP | Z152: CDS/PP | AA152: =AA10/27 -> 61.37037037 | AF152: PTP | AG152: =AG10/27 -> 56.81481481 | AL152: PPD/PSD | AM152: =AM10/27 -> 37.62962963
H153: IOMAF | I153: =I11/27 ->  | K153: BE | L153: 0 | N153: IOMAF | O153: =O11/27 -> 89.7037037 | Q153: IOMAF | T153: PS | U153: =U11/27 -> 64.07407407 | W153: PS | Z153: PS | AA153: =AA11/27 -> 34.62962963 | AF153: IOMAF | AG153: =AG11/27 -> 31 | AL153: CDU | AM153: =AM11/27 -> 4.555555556
H154: CDS/PP | I154: =I7/28 ->  | K154: PAN | L154: 0 | N154: CDS/PP | Q154: CDS/PP | T154: PPD/PSD | W154: PPD/PSD | Z154: PPD/PSD | AF154: CDS/PP | AL154: BE
H155: PS | I155: =I8/28 ->  | K155: PPD/PSD | L155: 0 | N155: PS | Q155: PS | T155: CDU | W155: CDU | Z155: CDU | AF155: PS | AL155: MMS
H156: CDU | I156: =I9/28 ->  | K156: IOMAF | L156: 0 | N156: PPD/PSD | Q156: PPD/PSD | T156: BE | W156: BE | Z156: BE | AF156: PPD/PSD
H157: BE | I157: =I10/28 ->  | K157: CDS/PP | L157: 0 | N157: CDU | Q157: CDU | T157: IOMAF | W157: IOMAF | Z157: IOMAF
H158: PAN | I158: =I11/28 ->  | K158: PS | L158: 0 | N158: BE | Q158: BE | T158: CDS/PP | W158: CDS/PP | Z158: CDS/PP
H159: PPD/PSD | I159: =I7/29 ->  | K159: CDU | L159: 0 | N159: IOMAF | Q159: IOMAF | T159: PS | W159: PS | Z159: PS
H160: IOMAF | I160: =I8/29 ->  | K160: BE | L160: 0 | N160: CDS/PP | Q160: CDS/PP | T160: PPD/PSD | W160: PPD/PSD | Z160: PPD/PSD
H161: CDS/PP | I161: =I9/29 ->  | K161: PAN | L161: 0 | N161: PS | Q161: PS | T161: CDU | W161: CDU | Z161: CDU
H162: PS | I162: =I10/29 ->  | K162: PPD/PSD | L162: 0 | N162: PPD/PSD | Q162: PPD/PSD | T162: BE | W162: BE | Z162: BE
H163: CDU | I163: =I11/29 ->  | K163: IOMAF | L163: 0 | N163: CDU | Q163: CDU | T163: IOMAF | W163: IOMAF
H164: CDU | I164: =I7/30 ->  | K164: CDS/PP | L164: 0 | N164: BE | Q164: BE | T164: CDS/PP | W164: CDS/PP
H165: BE | I165: =I8/30 ->  | K165: PS | L165: 0 | N165: IOMAF | Q165: IOMAF | T165: PS | W165: PS
H166: PAN | I166: =I9/30 ->  | K166: CDU | L166: 0 | N166: CDS/PP | Q166: CDS/PP | T166: PPD/PSD | W166: PPD/PSD
H167: PPD/PSD | I167: =I10/30 ->  | K167: BE | L167: 0 | N167: PS | Q167: PS | T167: CDU | W167: CDU
H168: IOMAF | I168: =I11/30 ->  | K168: PAN | L168: 0 | N168: PPD/PSD | Q168: PPD/PSD | T168: BE | W168: BE
H169: CDS/PP | I169: =I7/31 ->  | K169: PPD/PSD | L169: 0 | N169: CDU | Q169: CDU | T169: IOMAF | W169: IOMAF
H170: PS | I170: =I8/31 ->  | K170: IOMAF | L170: 0 | N170: BE | Q170: BE | T170: CDS/PP | W170: CDS/PP
H171: CDU | I171: =I9/31 ->  | K171: CDS/PP | L171: 0 | N171: IOMAF | Q171: IOMAF | T171: PS | W171: PS
H172: BE | I172: =I10/31 ->  | K172: PS | L172: 0 | N172: CDS/PP | Q172: IOMAF | T172: PPD/PSD | W172: PPD/PSD
H173: PAN | I173: =I11/31 ->  | K173: CDU | L173: 0 | N173: PS | Q173: CDS/PP | T173: CDU | W173: CDU
H174: PPD/PSD | I174: =I7/32 ->  | K174: BE | L174: 0 | N174: PPD/PSD | Q174: PS | T174: BE | W174: BE
H175: IOMAF | I175: =I8/32 ->  | K175: PAN | L175: 0 | N175: CDU | Q175: PPD/PSD | T175: IOMAF | W175: IOMAF
H176: CDS/PP | I176: =I9/32 ->  | K176: PPD/PSD | L176: 0 | N176: BE | Q176: CDU | T176: CDS/PP | W176: CDS/PP
H177: PS | I177: =I10/32 ->  | K177: IOMAF | L177: 0 | N177: IOMAF | T177: PS
H178: CDU | I178: =I11/32 ->  | K178: MAIS OEIRAS | L178: 0 | N178: CDS/PP | T178: PPD/PSD
H179: BE | I179: =I7/33 ->  | K179: CDU | L179: 0 | N179: PS | T179: CDU
H180: PAN | I180: =I8/33 ->  | K180: PS | L180: 0 | N180: PPD/PSD | T180: BE
H181: PPD/PSD | I181: =I9/33 ->  | K181: BE | L181: 0 | N181: CDU | T181: IOMAF
H182: IOMAF | I182: =I10/33 ->  | K182: IOMAF | L182: 0 | N182: BE | T182: CDS/PP
H183: CDS/PP | I183: =I11/33 ->  | K183: MAIS OEIRAS | L183: 0 | N183: IOMAF | T183: PS
H184: PS | I184: =I7/34 ->  | K184: CDU | L184: 0 | N184: IOMAF | T184: PPD/PSD
H185: CDU | I185: =I8/34 ->  | K185: PS | L185: 0 | N185: CDS/PP | T185: CDU
H186: BE | I186: =I9/34 ->  | K186: BE | L186: 0 | N186: PS | T186: BE
H187: PAN | I187: =I10/34 ->  | K187: BE | L187: 0 | N187: PPD/PSD | T187: IOMAF
H188: PPD/PSD | I188: =I11/34 ->  | K188: PPM | L188: 0 | N188: CDU | T188: CDS/PP

Sheet Cálculo (hidden)
B2: Votos | M2: Total: | N2: =SUM(C5:N5) -> 8594
B3: Listas | C3: 1 | D3: 2 | E3: 3 | F3: 4 | G3: 5 | H3: 6 | I3: 7 | J3: 8 | K3: 9 | L3: 10 | M3: 11 | N3: 12
C4: =Apuram!$A12 -> L | D4: =Apuram!$A13 -> MPT | E4: =Apuram!$A14 -> PCTP/MRPP | F4: =Apuram!$A15 -> R.I.R. | G4: =Apuram!$A16 -> B.E. | H4: =Apuram!$A17 -> NC | I4: =Apuram!$A18 -> E | J4: =Apuram!$A19 -> A | K4: =Apuram!$A20 -> ADN | O4: 1. Inserir Nomes
B5: Votos | C5: =Apuram!$L12 -> 2967 | D5: =Apuram!$L13 -> 106 | E5: =Apuram!$L14 -> 255 | F5: =Apuram!$L15 -> 196 | G5: =Apuram!$L16 -> 4554 | H5: =Apuram!$L17 -> 72 | I5: =Apuram!$L18 -> 42 | J5: =Apuram!$L19 -> 72 | K5: =Apuram!$L20 -> 330 | O5: 2. Inserir Votação
B6: % | C6: =IF(C5="","",C5/$N$2) -> 0.3452408657 | D6: =IF(D5="","",D5/$N$2) -> 0.01233418664 | E6: 0.02967186409 | F6: 0.02280660926 | G6: 0.5299045846 | H6: 0.008377938096 | I6: 0.004887130556 | J6: 0.008377938096 | K6: 0.03839888294
B7: Eleitos | M7: Total: | N7: 11 | O7: 3. Inserir Nº Eleitos
B8: Eleitos | C8: =IF(COUNTIF($R:$R,C4)=0,"",COUNTIF($R:$R,C4)) -> 4 | G8: 7 | O8: 4. Ler a Distribuição
B9: % | C9: =IF(C8="","",C8/$N$7) -> 0.3636363636 | G9: 0.6363636364
B11: Cálculos Auxiliares | M11: Mínimo: | N11: =SMALL(O:O,1) -> 650.5719963 | O11: Coef | P11: # Lista
B12: 1 | C12: =IF(C$5="","",IF($N$7>=$B12,C$5/$B12+0.0001+0.0001*RAND(),"")) -> 2967.000138 | D12: =IF(D$5="","",IF($N$7>=$B12,D$5/$B12+0.0002+0.0001*RAND(),"")) -> 106.0002048 | E12: =IF(E$5="","",IF($N$7>=$B12,E$5/$B12+0.0003+0.0001*RAND(),"")) -> 255.0003703 | F12: =IF(F$5="","",IF($N$7>=$B12,F$5/$B12+0.0004+0.0001*RAND(),"")) -> 196.0004669 | G12: =IF(G$5="","",IF($N$7>=$B12,G$5/$B12+0.0005+0.0001*RAND(),"")) -> 4554.000556 | H12: =IF(H$5="","",IF($N$7>=$B12,H$5/$B12+0.0006+0.0001*RAND(),"")) -> 72.0006516 | I12: =IF(I$5="","",IF($N$7>=$B12,I$5/$B12+0.0007+0.0001*RAND(),"")) -> 42.00076714 | J12: =IF(J$5="","",IF($N$7>=$B12,J$5/$B12+0.0008+0.0001*RAND(),"")) -> 72.00089897 | K12: =IF(K$5="","",IF($N$7>=$B12,K$5/$B12+0.0009+0.0001*RAND(),"")) -> 330.0009352 | L12: =IF(L$5="","",IF($N$7>=$B12,L$5/$B12+0.001+0.0001*RAND(),"")) ->  | M12: =IF(M$5="","",IF($N$7>=$B12,M$5/$B12+0.0011+0.0001*RAND(),"")) ->  | N12: =IF(N$5="","",IF($N$7>=$B12,N$5/$B12+0.0012+0.0001*RAND(),"")) ->  | O12: =IF(B12>$N$7,"",LARGE($C$12:$N$25,B12)) -> 4554.000556 | P12: =IF(COUNTIF($C$12:$C$25,O12)=1,$C$4,IF(COUNTIF($D$12:$D$25,O12)=1,$D$4,IF(COUNTIF($E$12:$E$25,O12)=1,$E$4,IF(COUNTIF($F$12:$F$25,O12)=1,$F$4,IF(COUNTIF($G$12:$G$25,O12)=1,$G$4,IF(COUNTIF($H$12:$H$25,O12)=1,$H$4,"")))))) -> B.E. | Q12: =IF(COUNTIF($I$12:$I$25,O12)=1,$I$4,IF(COUNTIF($J$12:$J$25,O12)=1,$J$4,IF(COUNTIF($K$12:$K$25,O12)=1,$K$4,IF(COUNTIF($L$12:$L$25,O12)=1,$L$4,IF(COUNTIF($M$12:$M$25,O12)=1,$M$4,IF(COUNTIF($N$12:$N$25,O12)=1,$N$4,"")))))) ->  | R12: =IF(O12="","",IF(P12="",Q12,P12)) -> B.E.
B13: =IF(B12<$N$7,B12+1,"") -> 2 | C13: =IF(C$5="","",IF($N$7>=$B13,C$5/$B13+0.0001+0.0001*RAND(),"")) -> 1483.500131 | D13: =IF(D$5="","",IF($N$7>=$B13,D$5/$B13+0.0002+0.0001*RAND(),"")) -> 53.00025401 | E13: =IF(E$5="","",IF($N$7>=$B13,E$5/$B13+0.0003+0.0001*RAND(),"")) -> 127.5003294 | F13: =IF(F$5="","",IF($N$7>=$B13,F$5/$B13+0.0004+0.0001*RAND(),"")) -> 98.00045735 | G13: =IF(G$5="","",IF($N$7>=$B13,G$5/$B13+0.0005+0.0001*RAND(),"")) -> 2277.000578 | H13: =IF(H$5="","",IF($N$7>=$B13,H$5/$B13+0.0006+0.0001*RAND(),"")) -> 36.00069692 | I13: =IF(I$5="","",IF($N$7>=$B13,I$5/$B13+0.0007+0.0001*RAND(),"")) -> 21.00070753 | J13: =IF(J$5="","",IF($N$7>=$B13,J$5/$B13+0.0008+0.0001*RAND(),"")) -> 36.00087244 | K13: =IF(K$5="","",IF($N$7>=$B13,K$5/$B13+0.0009+0.0001*RAND(),"")) -> 165.000973 | L13: =IF(L$5="","",IF($N$7>=$B13,L$5/$B13+0.001+0.0001*RAND(),"")) ->  | M13: =IF(M$5="","",IF($N$7>=$B13,M$5/$B13+0.0011+0.0001*RAND(),"")) ->  | N13: =IF(N$5="","",IF($N$7>=$B13,N$5/$B13+0.0012+0.0001*RAND(),"")) ->  | O13: =IF(B13>$N$7,"",LARGE($C$12:$N$25,B13)) -> 2967.000138 | P13: L | Q13: =IF(COUNTIF($I$12:$I$25,O13)=1,$I$4,IF(COUNTIF($J$12:$J$25,O13)=1,$J$4,IF(COUNTIF($K$12:$K$25,O13)=1,$K$4,IF(COUNTIF($L$12:$L$25,O13)=1,$L$4,IF(COUNTIF($M$12:$M$25,O13)=1,$M$4,IF(COUNTIF($N$12:$N$25,O13)=1,$N$4,"")))))) ->  | R13: =IF(O13="","",IF(P13="",Q13,P13)) -> L
B14: =IF(B13<$N$7,B13+1,"") -> 3 | C14: 989.000178 | D14: 35.33363052 | E14: 85.00032587 | F14: 65.33376728 | G14: 1518.000564 | H14: 24.00060551 | I14: 14.0007607 | J14: 24.00085668 | K14: 110.0009842 | O14: =IF(B14>$N$7,"",LARGE($C$12:$N$25,B14)) -> 2277.000578 | P14: B.E. | R14: B.E.
B15: 4 | C15: 741.7501006 | D15: 26.50023861 | E15: 63.75036967 | F15: 49.00047317 | G15: 1138.500524 | H15: 18.00064746 | I15: 10.50070655 | J15: 18.00087592 | K15: 82.50097021 | O15: 1518.000564 | P15: B.E. | Q15: =IF(COUNTIF($I$12:$I$25,O15)=1,$I$4,IF(COUNTIF($J$12:$J$25,O15)=1,$J$4,IF(COUNTIF($K$12:$K$25,O15)=1,$K$4,IF(COUNTIF($L$12:$L$25,O15)=1,$L$4,IF(COUNTIF($M$12:$M$25,O15)=1,$M$4,IF(COUNTIF($N$12:$N$25,O15)=1,$N$4,"")))))) ->  | R15: =IF(O15="","",IF(P15="",Q15,P15)) -> B.E.
B16: 5 | C16: 593.4001002 | D16: 21.20029352 | E16: 51.00033111 | F16: 39.20045369 | G16: 910.8005434 | H16: 14.40067294 | I16: 8.400783622 | J16: 14.40082616 | K16: 66.00093875 | O16: 1483.500131 | P16: L | R16: =IF(O16="","",IF(P16="",Q16,P16)) -> L
B17: 6 | C17: 494.5001527 | D17: 17.66692539 | E17: 42.50034371 | F17: 32.66713256 | G17: 759.0005307 | H17: 12.00060785 | I17: 7.000714903 | J17: 12.00087372 | K17: 55.00099602 | O17: 1138.500524 | P17: B.E. | R17: B.E.
B18: 7 | C18: 423.8572909 | D18: 15.14311711 | E18: 36.42892261 | F18: 28.00044178 | G18: 650.5719963 | H18: 10.28632065 | I18: 6.000736823 | J18: 10.28654848 | K18: 47.14377435 | O18: 989.000178 | P18: L | R18: =IF(O18="","",IF(P18="",Q18,P18)) -> L
B19: 8 | C19: 370.8751776 | D19: 13.25028178 | E19: 31.87535703 | F19: 24.5004527 | G19: 569.2505051 | H19: 9.000610469 | I19: 5.250715172 | J19: 9.000864628 | K19: 41.25093335 | O19: 910.8005434 | P19: B.E. | R19: =IF(O19="","",IF(P19="",Q19,P19)) -> B.E.
B20: 9 | C20: 329.666783 | D20: 11.77798489 | E20: 28.3336356 | F20: 21.77825175 | G20: 506.0005084 | H20: 8.000671393 | I20: 4.667456286 | J20: 8.000845628 | K20: 36.66761658 | O20: 759.0005307 | P20: B.E. | Q20: =IF(COUNTIF($I$12:$I$25,O20)=1,$I$4,IF(COUNTIF($J$12:$J$25,O20)=1,$J$4,IF(COUNTIF($K$12:$K$25,O20)=1,$K$4,IF(COUNTIF($L$12:$L$25,O20)=1,$L$4,IF(COUNTIF($M$12:$M$25,O20)=1,$M$4,IF(COUNTIF($N$12:$N$25,O20)=1,$N$4,"")))))) ->  | R20: =IF(O20="","",IF(P20="",Q20,P20)) -> B.E.
B21: 10 | C21: 296.7001388 | D21: 10.6002097 | E21: 25.50033935 | F21: 19.60046326 | G21: 455.4005356 | H21: 7.200699805 | I21: 4.200712459 | J21: 7.200880929 | K21: 33.00097102 | O21: 741.7501006 | P21: L | R21: L
B22: 11 | C22: 269.7274565 | D22: 9.636587926 | E22: 23.18219455 | F22: 17.81862322 | G22: 414.0005109 | H22: 6.546058905 | I22: 3.818978062 | J22: 6.546309157 | K22: 30.00090795 | O22: 650.5719963 | P22: B.E. | R22: B.E.
O23: =IF(B23>$N$7,"",LARGE($C$12:$N$25,B23)) -> 
Q25: =IF(COUNTIF($I$12:$I$25,O25)=1,$I$4,IF(COUNTIF($J$12:$J$25,O25)=1,$J$4,IF(COUNTIF($K$12:$K$25,O25)=1,$K$4,IF(COUNTIF($L$12:$L$25,O25)=1,$L$4,IF(COUNTIF($M$12:$M$25,O25)=1,$M$4,IF(COUNTIF($N$12:$N$25,O25)=1,$N$4,"")))))) -> 

Sheet Gr_CM (hidden)
A1: Apuramento Provisório do Concelho de Oeiras - 29 de Setembro de 2013
A2: Resultados da Eleição da Câmara Municipal
A4: Total de Secções de Voto | D4: =COUNTIF(#REF!,"<>0") -> 
A5: Apuradas | D5: =COUNTIF(#REF!,">0") -> 
A6: Por Apurar | D6: =COUNTIF(#REF!,0) -> 
A8: Inscritos | B8: Votantes | C8: Expressos | D8: Nulos | E8: Brancos | F8: Abstenções | G8: PS | H8: PPD/PSD | I8: PTP | J8: IOMAF | K8: PCTP/MRPP | L8: BE | M8: CDS/PP | N8: PAN | O8: CDU
A9: =Apuram!$L6 -> 146070 | B9: =Apuram!$L7 -> 97643 | C9: =Apuram!$L8 -> 95976 | D9: =Apuram!$L9 -> 1053 | E9: =Apuram!$L10 -> 614 | F9: =Apuram!$L11 -> 48427 | G9: =Apuram!$L12 -> 2967 | H9: =Apuram!$L13 -> 106 | I9: =Apuram!$L14 -> 255 | J9: =Apuram!$L15 -> 196 | K9: =Apuram!$L16 -> 4554 | L9: =Apuram!$L17 -> 72 | M9: =Apuram!$L18 -> 42 | N9: =Apuram!$L19 -> 72 | O9: =Apuram!$L20 -> 330
B10: =IF(B9=0,0,B9/A9) -> 0.6684671733 | C10: =IF(C9=0,0,C9/B9) -> 0.9829276036 | D10: =IF(D9=0,0,D9/B9) -> 0.0107841832 | E10: =IF(E9=0,0,E9/B9) -> 0.006288213185 | F10: =IF(F9=0,0,F9/A9) -> 0.3315328267 | G10: =IF(G9=0,0,G9/$B9) -> 0.0303862028 | H10: 0.001085587292 | I10: 0.002611554336 | J10: 0.002007312352 | K10: 0.04663928802 | L10: 0.0007373800477 | M10: 0.0004301383612 | N10: 0.0007373800477 | O10: =IF(O9=0,0,O9/$B9) -> 0.003379658552
F11: Mandatos | G11: =#REF! ->  | H11: =#REF! ->  | I11: =#REF! ->  | J11: =#REF! ->  | K11: =#REF! ->  | L11: =#REF! ->  | M11: =#REF! ->  | N11: =#REF! ->  | O11: =#REF! -> 
A37: Assembleia Municipal
A39: Total de Secções de Voto | D39: =COUNTIF(#REF!,"<>0") -> 
A40: Apuradas | D40: =COUNTIF(#REF!,">0") -> 
A41: Por Apurar | D41: =COUNTIF(#REF!,0) -> 
A43: Inscritos | B43: Votantes | C43: Expressos | D43: Nulos | E43: Brancos | F43: Abstenções | G43: PS | H43: PPD/PSD | I43: PTP | J43: IOMAF | K43: PCTP/MRPP | L43: BE | M43: CDS/PP | N43: PAN | O43: CDU
A44: =Apuram!#REF! ->  | B44: =Apuram!#REF! ->  | C44: =Apuram!#REF! ->  | D44: =Apuram!#REF! ->  | E44: =Apuram!#REF! ->  | F44: =Apuram!#REF! ->  | G44: =Apuram!#REF! ->  | H44: =Apuram!#REF! ->  | I44: =Apuram!#REF! ->  | J44: =Apuram!#REF! ->  | K44: =Apuram!#REF! ->  | L44: =Apuram!#REF! ->  | M44: =Apuram!#REF! ->  | N44: =Apuram!#REF! ->  | O44: =Apuram!#REF! -> 
B45: =IF(B44=0,0,B44/A44) ->  | C45: =IF(C44=0,0,C44/B44) ->  | D45: =IF(D44=0,0,D44/B44) ->  | E45: =IF(E44=0,0,E44/B44) ->  | F45: =IF(F44=0,0,F44/A44) ->  | G45: =IF(G44=0,0,G44/$B44) ->  | O45: =IF(O44=0,0,O44/$B44) -> 
F46: Mandatos | G46: =#REF! ->  | H46: =#REF! ->  | I46: =#REF! ->  | J46: =#REF! ->  | K46: =#REF! ->  | L46: =#REF! ->  | M46: =#REF! ->  | N46: =#REF! ->  | O46: =#REF! -> 

Sheet Mandatos (hidden)
B3: Mandatos para o Município de Oeiras
A4: Partidos | D4: PS | E4: PPD/PSD | F4: PTP | G4: IOMAF | H4: PCTP/MRPP | I4: BE | J4: CDS/PP | K4: PAN | L4: CDU
A5: Mandatos CM | D5: =SumColor(#REF!) ->  | E5: =SumColor(#REF!) ->  | F5: =SumColor(#REF!) ->  | G5: =SumColor(#REF!) ->  | H5: =SumColor(#REF!) ->  | I5: =SumColor(#REF!) ->  | J5: =SumColor(#REF!) ->  | K5: =SumColor(#REF!) ->  | L5: =SumColor(#REF!) -> 
A7: Mandatos | D7: =SumColor(#REF!) ->  | E7: =SumColor(#REF!) ->  | F7: =SumColor(#REF!) ->  | G7: =SumColor(#REF!) ->  | H7: =SumColor(#REF!) ->  | I7: =SumColor(#REF!) ->  | J7: =SumColor(#REF!) -> 
A9: Partidos | D9: IOMAF | E9: CDS/PP | F9: PS | G9: PPD/PSD | H9: CDU | I9: BE
A10: Mandatos AF Algés, LAV, CQD | D10: =SumColor(#REF!) ->  | E10: =SumColor(#REF!) ->  | F10: =SumColor(#REF!) ->  | G10: =SumColor(#REF!) ->  | H10: =SumColor(#REF!) ->  | I10: =SumColor(#REF!) -> 
A13: Partidos | D13: IOMAF | E13: CDS/PP | F13: PS | G13: PPD/PSD | H13: CDU | I13: BE
A14: Mandatos | D14: =SumColor(D19:D31) -> 0 | E14: 0 | F14: 0 | G14: 0 | H14: 0 | I14: 0
A17: Partidos | D17: IOMAF | E17: CDS/PP | F17: PS | G17: PPD/PSD | H17: CDU | I17: BE
A18: Mandatos | D18: =SumColor(D23:D41) -> 0 | E18: 0 | F18: 0 | G18: 0 | H18: 0 | I18: 0
A22: Partidos | D22: IOMAF | E22: CDS/PP | F22: PS | G22: PPD/PSD | H22: CDU | I22: BE | J22: MMS | K22: PAN | L22: PTP
A23: Mandatos | D23: =SumColor(D28:D46) -> 0 | E23: 0 | F23: 0 | G23: 0 | H23: 0 | I23: 0 | J23: 0 | K23: 0 | L23: 0
A25: Mandatos | D25: =SumColor(D32:D44) -> 0 | E25: 0 | F25: 0 | G25: 0 | H25: 0 | I25: 0 | J25: 0 | K25: 0
A26: Partidos | D26: IOMAF | E26: CDS/PP | F26: PS | G26: PPD/PSD | H26: CDU | I26: BE | J26: MMS | K26: PAN
